{"text_format":"1","workbook":"xlsx","n_sheets":13,"sheets":["Hoofdmenu","Toelichting","Voorblad","Mededelingen","NAW_gegevens","Kostenverzamelstaat","Specifieke informatie A","Specifieke informatie C","Contractinformatie","Wanbetalers","Controleoverzicht","Blad1","Parameters"],"not_rendered":{"charts":0,"images":1,"macros":1,"external_links":0,"defined_names":1043,"comments":0,"pivot_tables":0},"unopened":[],"bounds":{"document_bytes":16777216,"sheet_cells":100000,"rows_first":2000,"rows_last":500,"rows_between":2000,"halvings":0,"cell_chars":16384,"cell_head_chars":4096},"cells_cut":0,"cells_raw":0,"read":"whole","date_system":"1900"}

{"sheet":"Hoofdmenu","index":0,"n_rows":3,"n_cols":2,"rows_kept":3,"cut":false,"hidden":false,"merged":[[0,0,0,1],[1,0,1,1]]}
[" "]
[{"$f":"CONCATENATE(\"KWARTAALSTAAT ZVW \", jaar_id)","v":"KWARTAALSTAAT ZVW 2025"}]
["Navigatie","Afdrukken"]

{"sheet":"Toelichting","index":1,"n_rows":4,"n_cols":2,"rows_kept":4,"cut":false,"hidden":false,"merged":[]}
[]
[]
[]
[null,{"$f":"CONCATENATE(\" KWARTAALSTAAT ZVW \",jaar_id,\" \",\"(VERSIE: \",revisie_id,\")\")","v":" KWARTAALSTAAT ZVW 2025 (VERSIE: A)"}]

{"sheet":"Voorblad","index":2,"n_rows":35,"n_cols":4,"rows_kept":35,"cut":false,"hidden":false,"merged":[[15,3,16,11],[13,3,14,11],[17,3,18,11]]}
[null,null,"VOORBLAD"]
[]
[]
[]
[]
["Pagina 1",null,null," "]
[]
[]
[]
[]
[]
[]
[]
[null,null,null,{"$f":"CONCATENATE(\"KWARTAALSTAAT ZVW \",jaar_id)","v":"KWARTAALSTAAT ZVW 2025"}]
[]
[]
[]
[null,null,null,"SPECIFIEKE INFORMATIE"]
[]
[]
[]
[null,null,null,"    KOSTENVERZAMELSTAAT (SPECIFIEKE INFORMATIE A)"]
[null,null,null,"     ● Informatie risicoverevening (pagina 1 t/m 4)"]
[]
[null,null,null,"    SPECIFIEKE INFORMATIE A"]
[null,null,null,"     ● Informatie risicoverevening (pagina 1 t/m 2)"]
[]
[null,null,null,"    SPECIFIEKE INFORMATIE C"]
[null,null,null,"     ● Specificaties van kosten en productie (pagina 1 t/m 2)"]
[]
[null,null,null,"    CONTRACTINFORMATIE (SPECIFIEKE INFORMATIE C)"]
[null,null,null,"     ● Specificaties van kosten en productie (pagina 1 & 2)"]
[]
[null,null,null,"    WANBETALERS (SPECIFIEKE INFORMATIE C)"]
[null,null,null,"     ● Specificaties van aantallen (pagina 1)"]

{"sheet":"Mededelingen","index":3,"n_rows":49,"n_cols":12,"rows_kept":49,"cut":false,"hidden":false,"merged":[[48,3,48,4]]}
[]
[]
[]
[]
[]
["Pagina 1",null,null,{"$f":"CONCATENATE(\"KWARTAALSTAAT ZVW \", jaar_id)","v":"KWARTAALSTAAT ZVW 2025"}]
[null,null,null,{"$f":"IF(naw_uzovi_zorgverzekeraar<>\"0000\",CONCATENATE(UPPER(naw_naam_zorgverzekeraar),\", \",UPPER(naw_plaats_zorgverzekeraar)),\"\")","v":""},null,null,null,null,null,null,null,{"$f":"CONCATENATE(\"UZOVI: \",naw_uzovi_zorgverzekeraar)","v":"UZOVI: 0000"}]
[null,null,null,"MEDEDELINGEN :"]
[]
[]
[]
[]
[]
[]
[]
[]
[]
[]
[]
[]
[]
[]
[]
[]
[]
[]
[]
[]
[]
[]
[]
[]
[]
[]
[]
[]
[]
[]
[]
[]
[]
[]
[]
[]
[]
[]
[]
[]
[null,null,null,{"$f":"NOW()","v":"2024-12-16T16:05:05.220"},null,null,null,null,null,null,null,{"$f":"CONCATENATE(\"Mededelingen \",LOWER(A6))","v":"Mededelingen pagina 1"}]

{"sheet":"NAW_gegevens","index":4,"n_rows":35,"n_cols":6,"rows_kept":35,"cut":false,"hidden":false,"merged":[[2,1,2,2],[3,1,3,2]]}
[]
[]
[null,"NAW-GEGEVENS"]
[null,{"$f":"CONCATENATE(\"KWARTAALSTAAT ZVW \", jaar_id)","v":"KWARTAALSTAAT ZVW 2025"}]
[null," Selecteer uw nummer:","0000 KIES UW UZOVI-NUMMER"]
[null," Uzovi-nummer:",{"$f":"MID(keuze_uzovi_nummer,1,4)","v":"0000"}]
[null," Zorgverzekeraar:",{"$f":"MID(keuze_uzovi_nummer,6,40)","v":"KIES UW UZOVI-NUMMER"}]
[null," Plaats:",{"$f":"VLOOKUP(naw_uzovi_zorgverzekeraar,B16:F36,5,FALSE)","v":{"$error":"#N/A"}}]
[null," Contactpersoon:"]
[null," Telefoonnummer:"]
[null," E-mail:"]
[]
[null,"Let op dat u het goede UZOVI-nummer invult, zie onderstaand overzicht:"]
[]
[null,"UZOVI","NAAM",null,null,"PLAATS"]
[null,"0101","N.V. UNIVÉ ZORG",null,null,"ARNHEM"]
[null,"0104","CENTRALE ZORGVERZEKERINGEN NZV N.V.",null,null,"TILBURG"]
[null,"0201","OHRA ZORGVERZEKERINGEN N.V.",null,null,"TILBURG"]
[null,"0403","ASR BASIS ZIEKTENKOSTENVERZEKERINGEN N.V. ",null,null,"UTRECHT"]
[null,"0699","IZA ZORGVERZEKERAAR N.V.",null,null,"ARNHEM"]
[null,"0736","N.V. ZORGVERZEKERAAR UMC",null,null,"ARNHEM"]
[null,"3311","ZILVEREN KRUIS ACHMEA ZORGVERZEKERINGEN N.V.",null,null,"UTRECHT"]
[null,"3313","INTERPOLIS ZORGVERZEKERINGEN N.V.",null,null,"UTRECHT"]
[null,3332,"MENZIS ZORGVERZEKERAAR NV",null,null,"WAGENINGEN"]
[null,3333,"ANDERZORG NV",null,null,"WAGENINGEN"]
[null,3343,"ONVZ ZIEKTEKOSTENVERZEKERAAR N.V.",null,null,"HOUTEN"]
[null,3347,"SALLAND ZORGVERZEKERAAR N.V.",null,null,"DEVENTER"]
[null,3351,"FBTO ZORGVERZEKERINGEN N.V.",null,null,"LEEUWARDEN"]
[null,3358,"DE FRIESLAND ZORGVERZEKERAAR N.V.",null,null,"LEEUWARDEN"]
[null,3359,"EUCARE INSURANCE PCC LTD",null,null,"TA' XBIEX"]
[null,"7029","OWM ZORGVERZEKERAAR 'DSW' U.A.",null,null,"SCHIEDAM"]
[null,"7037","STAD HOLLAND ZORGVERZEKERAAR OWM U.A.",null,null,"SCHIEDAM"]
[null,"7085","OWM ZORGVERZEKERAAR ZORG EN ZEKERHEID U.A.",null,null,"LEIDEN"]
[null,"7095","VGZ ZORGVERZEKERAAR N.V.",null,null,"ARNHEM"]
[null,"7119","CZ ZORGVERZEKERINGEN N.V.",null,null,"TILBURG"]

{"sheet":"Kostenverzamelstaat","index":5,"n_rows":140,"n_cols":18,"rows_kept":140,"cut":false,"hidden":false,"merged":[[10,14,11,14],[12,14,13,14],[0,2,0,15],[10,3,10,7],[12,13,13,13],[12,8,13,8],[12,9,13,9],[12,10,13,10],[12,11,13,11],[12,12,13,12],[10,8,11,9],[10,10,11,11],[10,12,11,13],[101,3,101,6],[91,8,92,8],[91,9,92,9],[91,10,92,10],[91,11,92,11],[48,8,49,9],[48,10,49,11],[55,3,55,6],[91,14,92,14],[59,3,59,6],[77,3,77,6],[91,12,92,12],[89,14,90,14],[91,13,92,13],[89,8,90,9],[89,10,90,11],[89,12,90,13],[50,13,51,13],[48,12,49,13],[48,14,49,14],[50,8,51,8],[130,14,131,14],[130,8,131,8],[130,9,131,9],[130,10,131,10],[130,11,131,11],[130,12,131,12],[130,13,131,13],[50,9,51,9],[50,10,51,10],[50,11,51,11],[50,12,51,12],[50,14,51,14]]}
[null,null,"INVULSPECIFICATIES SPECIFIEKE INFORMATIE A"]
[]
[]
[]
[]
["Pagina 1",null,null,{"$f":"CONCATENATE(\"KWARTAALSTAAT ZVW \", jaar_id)","v":"KWARTAALSTAAT ZVW 2025"}]
[null,null,null,"SPECIFIEKE INFORMATIE A: KOSTENVERZAMELSTAAT"]
[null,null,null,{"$f":"IF(naw_uzovi_zorgverzekeraar<>\"0000\",CONCATENATE(UPPER(naw_naam_zorgverzekeraar),\", \",UPPER(naw_plaats_zorgverzekeraar)),\"\")","v":""},null,null,null,null,null,null,null,null,null,null,{"$f":"CONCATENATE(\"UZOVI: \",naw_uzovi_zorgverzekeraar)","v":"UZOVI: 0000"}]
[null,null,null,"SPECIFICATIES INFORMATIE RISICOVEREVENING"]
[null,null,null,{"$f":"$D$7","v":"SPECIFIEKE INFORMATIE A: KOSTENVERZAMELSTAAT"}]
[null,null,null,null,null,null,null,null,{"$f":"CONCATENATE(\"LASTEN \", jaar_id)","v":"LASTEN 2025"},null,{"$f":"CONCATENATE(\"LASTEN \", jaar_id-1)","v":"LASTEN 2024"},null,{"$f":"CONCATENATE(\"LASTEN \", jaar_id-2)","v":"LASTEN 2023"},null,"LASTEN uit eerdere jaren"]
[]
[null,null,null,null,null,null,null,null,{"$f":"CONCATENATE(\"LASTEN \", jaar_id,\" inclusief balanspost \")","v":"LASTEN 2025 inclusief balanspost "},{"$f":"CONCATENATE(\"Ontvangen en geaccepteerde declaraties m.b.t. \", jaar_id)","v":"Ontvangen en geaccepteerde declaraties m.b.t. 2025"},{"$f":"CONCATENATE(\"LASTEN \", jaar_id-1,\" inclusief balanspost \")","v":"LASTEN 2024 inclusief balanspost "},{"$f":"CONCATENATE(\"Ontvangen en geaccepteerde declaraties m.b.t. \", jaar_id-1)","v":"Ontvangen en geaccepteerde declaraties m.b.t. 2024"},{"$f":"CONCATENATE(\"LASTEN \", jaar_id-2, \" inclusief balanspost \")","v":"LASTEN 2023 inclusief balanspost "},{"$f":"CONCATENATE(\"Ontvangen en geaccepteerde declaraties m.b.t. \", jaar_id-2)","v":"Ontvangen en geaccepteerde declaraties m.b.t. 2023"},"In 2025 ontvangen en geaccepteerde declaraties m.b.t. 2022 en ouder"]
[null,null,null," KOSTENRUBRIEK",null,null,null,"code"]
[null,null,null," 01  HUISARTSENZORG en MDZ"]
[null,null,null," Bijzondere betalingen",null,null,null,"503   ",null,null,null,null,null,null,null,null,null,{"$f":"IF(OR((I16-J16)/IF(I16=0,1,I16)<-10%,(K16-L16)/IF(K16=0,1,K16)<-10%,(M16-O16)/IF(M16=0,1,M16)<-10%),\"De balans is < -10%, als dit plausibel is dan vragen wij u dit nader toe te lichten bij de opmerkingen, zo niet dan dient u uw raming aan te scherpen.\",\"\")","v":""}]
[null,null,null," Avond-, nacht- en weekenddiensten",null,null,null,"504   ",null,null,null,null,null,null,null,null,null,{"$f":"IF(OR((I17-J17)/IF(I17=0,1,I17)<-10%,(K17-L17)/IF(K17=0,1,K17)<-10%,(M17-O17)/IF(M17=0,1,M17)<-10%),\"De balans is < -10%, als dit plausibel is dan vragen wij u dit nader toe te lichten bij de opmerkingen, zo niet dan dient u uw raming aan te scherpen.\",\"\")","v":""}]
[null,null,null," Inschrijftarieven",null,null,null,"505   ",null,null,null,null,null,null,null,null,null,""]
[null,null,null," Consulttarieven",null,null,null,"506   ",null,null,null,null,null,null,null,null,null,""]
[null,null,null," Overige tarieven",null,null,null,"507   ",null,null,null,null,null,null,null,null,null,""]
[null,null,null," Multidisciplinaire zorg",null,null,null,"510   ",null,null,null,null,null,null,null,null,null,""]
[null,null,null," Resultaatbeloning en zorgvernieuwing huisartsen",null,null,null,"515   ",null,null,null,null,null,null,null,null,null,""]
[null,null,null," Resultaatbeloning en zorgvernieuwing MDZ",null,null,null,"516   ",null,null,null,null,null,null,null,null,null,""]
[null,null,null," TOTAAL RUBRIEK 01",null,null,null,null,{"$f":"SUM(I16:I23)","v":0},0,0,0,0,0,0]
[null,null,null," 02 FARMACEUTISCHE ZORG"]
[null,null,null," Farmaceutische zorg",null,null,null,"520   ",null,null,null,null,null,null,null,null,null,{"$f":"IF(OR((I26-J26)/IF(I26=0,1,I26)<-10%,(K26-L26)/IF(K26=0,1,K26)<-10%,(M26-O26)/IF(M26=0,1,M26)<-10%),\"De balans is < -10%, als dit plausibel is dan vragen wij u dit nader toe te lichten bij de opmerkingen, zo niet dan dient u uw raming aan te scherpen.\",\"\")","v":""}]
[null,null,null," TOTAAL RUBRIEK 02",null,null,null,null,{"$f":"SUM(I26:I26)","v":0},0,0,0,0,0,0]
[null,null,null," 03 VERPLEGING EN VERZORGING ",null,null,null,null,null,null,null,null,null,null,null,null,null,{"$f":"IF(OR((I28-J28)/IF(I28=0,1,I28)<-10%,(K28-L28)/IF(K28=0,1,K28)<-10%,(M28-O28)/IF(M28=0,1,M28)<-10%),\"De balans is < -10%, als dit plausibel is dan vragen wij u dit nader toe te lichten bij de opmerkingen, zo niet dan dient u uw raming aan te scherpen.\",\"\")","v":""}]
[null,null,null," Kosten van verpleging en verzorging ",null,null,null,"530   ",null,null,null,null,null,null,null,null,null,""]
[null,null,null," TOTAAL RUBRIEK 03",null,null,null,null,{"$f":"SUM(I29:I29)","v":0},0,0,0,0,0,0]
[null,null,null," 04  MONDZORG"]
[null,null,null," Kosten mondzorg volwassen verzekerden",null,null,null,"560.1",null,null,null,null,null,null,null,null,null,{"$f":"IF(OR((I32-J32)/IF(I32=0,1,I32)<-10%,(K32-L32)/IF(K32=0,1,K32)<-10%,(M32-O32)/IF(M32=0,1,M32)<-10%),\"De balans is < -10%, als dit plausibel is dan vragen wij u dit nader toe te lichten bij de opmerkingen, zo niet dan dient u uw raming aan te scherpen.\",\"\")","v":""}]
[null,null,null," Kosten mondzorg jeugdige verzekerden",null,null,null,"560.2",null,null,null,null,null,null,null,null,null,""]
[null,null,null," Kosten gebitsprothesen",null,null,null,"561   ",null,null,null,null,null,null,null,null,null,""]
[null,null,null," TOTAAL RUBRIEK 04",null,null,null,null,{"$f":"SUM(I32:I34)","v":0},0,0,0,0,0,0]
[null,null,null," 05  VERLOSKUNDIGE ZORG"]
[null,null,null," Kosten verloskundige zorg door verloskundigen",null,null,null,"580   ",null,null,null,null,null,null,null,null,null,{"$f":"IF(OR((I37-J37)/IF(I37=0,1,I37)<-10%,(K37-L37)/IF(K37=0,1,K37)<-10%,(M37-O37)/IF(M37=0,1,M37)<-10%),\"De balans is < -10%, als dit plausibel is dan vragen wij u dit nader toe te lichten bij de opmerkingen, zo niet dan dient u uw raming aan te scherpen.\",\"\")","v":""}]
[null,null,null," Kosten Integrale geboortezorg ",null,null,null,"582   ",null,null,null,null,null,null,null,null,null,""]
[null,null,null," TOTAAL RUBRIEK 05",null,null,null,null,{"$f":"SUM(I37:I38)","v":0},0,0,0,0,0,0]
[]
[]
[null,null,null,{"$f":"NOW()","v":"2024-12-16T16:05:05.220"},null,null,null,null,null,null,null,null,null,null,{"$f":"CONCATENATE(\"Kostenverzamelstaat, \",LOWER(A6))","v":"Kostenverzamelstaat, pagina 1"}]
[]
["Pagina 2",null,null,{"$f":"CONCATENATE(\"KWARTAALSTAAT ZVW \", jaar_id)","v":"KWARTAALSTAAT ZVW 2025"}]
[null,null,null,{"$f":"D7","v":"SPECIFIEKE INFORMATIE A: KOSTENVERZAMELSTAAT"}]
[null,null,null,{"$f":"IF(naw_uzovi_zorgverzekeraar<>\"0000\",CONCATENATE(UPPER(naw_naam_zorgverzekeraar),\", \",UPPER(naw_plaats_zorgverzekeraar)),\"\")","v":""},null,null,null,null,null,null,null,null,null,null,{"$f":"CONCATENATE(\"UZOVI: \",naw_uzovi_zorgverzekeraar)","v":"UZOVI: 0000"}]
[null,null,null,"SPECIFICATIES INFORMATIE RISICOVEREVENING"]
[null,null,null,"SPECIFIEKE INFORMATIE A: KOSTENVERZAMELSTAAT - vervolg"]
[null,null,null,null,null,null,null,null,{"$f":"I$11","v":"LASTEN 2025"},null,{"$f":"K$11","v":"LASTEN 2024"},null,{"$f":"M$11","v":"LASTEN 2023"},null,{"$f":"O$11","v":"LASTEN uit eerdere jaren"}]
[]
[null,null,null,null,null,null,null,null,{"$f":"I$13","v":"LASTEN 2025 inclusief balanspost "},{"$f":"J$13","v":"Ontvangen en geaccepteerde declaraties m.b.t. 2025"},"LASTEN 2024 inclusief balanspost ","Ontvangen en geaccepteerde declaraties m.b.t. 2024","LASTEN 2023 inclusief balanspost ","Ontvangen en geaccepteerde declaraties m.b.t. 2023","In 2025 ontvangen en geaccepteerde declaraties m.b.t. 2022 en ouder"]
[null,null,null," KOSTENRUBRIEK",null,null,null,"code"]
[null,null,null," 06  MEDISCH SPECIALISTISCHE ZORG",null,null,null,null,null,null,null,null,null,null,null,null,null,{"$f":"IF(OR((I53-J53)/IF(I53=0,1,I53)<-10%,(K53-L53)/IF(K53=0,1,K53)<-10%,(M53-O53)/IF(M53=0,1,M53)<-10%),\"De balans is < -10%, als dit plausibel is dan vragen wij u dit nader toe te lichten bij de opmerkingen, zo niet dan dient u uw raming aan te scherpen.\",\"\")","v":""}]
[null,null,null," Kosten specialisten mondziekten en kaakchirurgie",null,null,null,"545   ",null,null,null,null,null,null,null,null,null,""]
[null,null,null," NTS",null,null,null,"  610.1   "]
[null,null,null," Eerstelijnsdiagnostiek aangevraagd door eerstelijnszorg-aanbieders geleverd door huisartsenlaboratoria en Trombosediensten",null,null,null,"  610.2   "]
[null,null,null," Overige zorgproducten",null,null,null,"611   ",null,null,null,null,null,null,null,null,null,""]
[null,null,null," Kosten add-ons - Dure geneesmiddelen",null,null,null,"612.1",null,null,null,null,null,null,null,null,null,""]
[null,null,null," Kosten add-ons - IC",null,null,null,"612.2",null,null,null,null,null,null,null,null,null,""]
[null,null,null," Integrale kosten van DBC-zorgproduct \n gereguleerde segment  ",null,null,null,"613.1",null,null,null,null,null,null,null,null,null,""]
[null,null,null," Integrale kosten DBC-zorgproduct vrije segment",null,null,null,"615.1",null,null,null,null,null,null,null,null,null,""]
[null,null,null," Integrale kosten extramuraal werkende \n specialisten",null,null,null,"619   ",null,null,null,null,null,null,null,null,null,""]
[null,null,null," Meerkosten COVID-19, toeslagen",null,null,null,"806.2   "]
[null,null,null," TOTAAL RUBRIEK 06",null,null,null,null,{"$f":"SUM(I54:I62)","v":0},0,0,0,0,0,0]
[null,null,null," 07  PARAMEDISCHE ZORG"]
[null,null,null," Kosten fysiotherapie",null,null,null,"620   ",null,null,null,null,null,null,null,null,null,{"$f":"IF(OR((I66-J66)/IF(I66=0,1,I66)<-10%,(K66-L66)/IF(K66=0,1,K66)<-10%,(M66-O66)/IF(M66=0,1,M66)<-10%),\"De balans is < -10%, als dit plausibel is dan vragen wij u dit nader toe te lichten bij de opmerkingen, zo niet dan dient u uw raming aan te scherpen.\",\"\")","v":""}]
[null,null,null," Kosten oefentherapie Mensendieck/Cesar",null,null,null,"621   ",null,null,null,null,null,null,null,null,null,""]
[null,null,null," Kosten logopedie",null,null,null,"623   ",null,null,null,null,null,null,null,null,null,""]
[null,null,null," Kosten ergotherapie",null,null,null,"624   ",null,null,null,null,null,null,null,null,null,""]
[null,null,null," Kosten dieetadvisering",null,null,null,"625   ",null,null,null,null,null,null,null,null,null,""]
[null,null,null," Gecombineerde Leefstijl Interventie (GLI)",null,null,null,"626   ",null,null,null,null,null,null,null,null,null,""]
[null,null,null," TOTAAL RUBRIEK 07",null,null,null,null,{"$f":"SUM(I66:I71)","v":0},0,0,0,0,0,0]
[null,null,null," 08  HULPMIDDELENZORG"]
[null,null,null," Hulpmiddelenzorg ",null,null,null,"640   ",null,null,null,null,null,null,null,null,null,{"$f":"IF(OR((I74-J74)/IF(I74=0,1,I74)<-10%,(K74-L74)/IF(K74=0,1,K74)<-10%,(M74-O74)/IF(M74=0,1,M74)<-10%),\"De balans is < -10%, als dit plausibel is dan vragen wij u dit nader toe te lichten bij de opmerkingen, zo niet dan dient u uw raming aan te scherpen.\",\"\")","v":""}]
[null,null,null," TOTAAL RUBRIEK 08",null,null,null,null,{"$f":"SUM(I74:I74)","v":0},0,0,0,0,0,0]
[null,null,null," 09  ZIEKENVERVOER"]
[null,null,null," Kosten vervoer per ambulance/helikopter",null,null,null,"650   ",null,null,null,null,null,null,null,null,null,{"$f":"IF(OR((I77-J77)/IF(I77=0,1,I77)<-10%,(K77-L77)/IF(K77=0,1,K77)<-10%,(M77-O77)/IF(M77=0,1,M77)<-10%),\"De balans is < -10%, als dit plausibel is dan vragen wij u dit nader toe te lichten bij de opmerkingen, zo niet dan dient u uw raming aan te scherpen.\",\"\")","v":""}]
[null,null,null," Opbrengstenverrekeningen regionale ambulance-\n voorzieningen",null,null,null,"650.1",null,null,null,null,null,null,null,null,null,""]
[null,null,null," Kosten vervoer per openbaar vervoer, taxi \n en eigen auto",null,null,null,"651   ",null,null,null,null,null,null,null,null,null,""]
[null,null,null," TOTAAL RUBRIEK 09",null,null,null,null,{"$f":"SUM(I77:I79)","v":0},0,0,0,0,0,0]
[]
[]
[null,null,null,{"$f":"NOW()","v":"2024-12-16T16:05:05.220"},null,null,null,null,null,null,null,null,null,null,{"$f":"CONCATENATE(\"Kostenverzamelstaat, \",LOWER(A44))","v":"Kostenverzamelstaat, pagina 2"}]
[]
["Pagina 3",null,null,{"$f":"CONCATENATE(\"KWARTAALSTAAT ZVW \", jaar_id)","v":"KWARTAALSTAAT ZVW 2025"}]
[null,null,null,{"$f":"D7","v":"SPECIFIEKE INFORMATIE A: KOSTENVERZAMELSTAAT"}]
[null,null,null,{"$f":"IF(naw_uzovi_zorgverzekeraar<>\"0000\",CONCATENATE(UPPER(naw_naam_zorgverzekeraar),\", \",UPPER(naw_plaats_zorgverzekeraar)),\"\")","v":""},null,null,null,null,null,null,null,null,null,null,{"$f":"CONCATENATE(\"UZOVI: \",naw_uzovi_zorgverzekeraar)","v":"UZOVI: 0000"}]
[null,null,null,"SPECIFICATIES INFORMATIE RISICOVEREVENING"]
[null,null,null,"SPECIFIEKE INFORMATIE A: KOSTENVERZAMELSTAAT - vervolg"]
[null,null,null,null,null,null,null,null,{"$f":"CONCATENATE(\"LASTEN \", jaar_id)","v":"LASTEN 2025"},null,{"$f":"CONCATENATE(\"LASTEN \", jaar_id-1)","v":"LASTEN 2024"},null,{"$f":"CONCATENATE(\"LASTEN \", jaar_id-2)","v":"LASTEN 2023"},null,{"$f":"O$11","v":"LASTEN uit eerdere jaren"}]
[]
[null,null,null,null,null,null,null,null,{"$f":"I$13","v":"LASTEN 2025 inclusief balanspost "},{"$f":"J$13","v":"Ontvangen en geaccepteerde declaraties m.b.t. 2025"},"LASTEN 2024 inclusief balanspost ","Ontvangen en geaccepteerde declaraties m.b.t. 2024","LASTEN 2023 inclusief balanspost ","Ontvangen en geaccepteerde declaraties m.b.t. 2023","In 2025 ontvangen en geaccepteerde declaraties m.b.t. 2022 en ouder"]
[null,null,null," KOSTENRUBRIEK",null,null,null,"code"]
[null,null,null," 10 GENEESKUNDIGE GEESTELIJKE GEZONDHEIDSZORG"]
[null,null,null," Kosten consulten GGZ",null,null,null,"666   "]
[null,null,null," Kosten intramuraal verblijf GGZ",null,null,null,"667   "]
[null,null,null," Kosten overige prestaties GGZ",null,null,null,"668   "]
[null,null,null," TOTAAL RUBRIEK 10",null,null,null,null,{"$f":"SUM(I95:I97)","v":0},0,0,0,0,0,0]
[null,null,null," 11  GRZ, ELV EN GZSP"]
[null,null,null," Geriatrische Revalidatiezorg (GRZ)",null,null,null,"670   "]
[null,null,null," Eerstelijnsverblijf (ELV)",null,null,null,"671   ",null,null,null,null,null,null,null,null,null,{"$f":"IF(OR((I101-J101)/IF(I101=0,1,I101)<-10%,(K101-L101)/IF(K101=0,1,K101)<-10%,(M101-O101)/IF(M101=0,1,M101)<-10%),\"De balans is < -10%, als dit plausibel is dan vragen wij u dit nader toe te lichten bij de opmerkingen, zo niet dan dient u uw raming aan te scherpen.\",\"\")","v":""}]
[null,null,null," Generalistische Geneeskundige  Zorg Specifieke Patiëntgroepen (GZSP)",null,null,null,"672   ",null,null,null,null,null,null,null,null,null,""]
[null,null,null," TOTAAL RUBRIEK 11",null,null,null,null,{"$f":"SUM(I100:I102)","v":0},0,0,0,0,0,0]
[null,null,null," 12  KRAAMZORG"]
[null,null,null," Kraamzorg",null,null,null,"680   ",null,null,null,null,null,null,null,null,null,{"$f":"IF(OR((I105-J105)/IF(I105=0,1,I105)<-10%,(K105-L105)/IF(K105=0,1,K105)<-10%,(M105-O105)/IF(M105=0,1,M105)<-10%),\"De balans is < -10%, als dit plausibel is dan vragen wij u dit nader toe te lichten bij de opmerkingen, zo niet dan dient u uw raming aan te scherpen.\",\"\")","v":""}]
[null,null,null," TOTAAL RUBRIEK 12",null,null,null,null,{"$f":"SUM(I105:I105)","v":0},0,0,0,0,0,0]
[null,null,null," 13  DIVERSE OVERIGE KOSTEN"]
[null,null,null," Overige kosten",null,null,null,"700   ",null,null,null,null,null,null,null,null,null,{"$f":"IF(OR((I108-J108)/IF(I108=0,1,I108)<-10%,(K108-L108)/IF(K108=0,1,K108)<-10%,(M108-O108)/IF(M108=0,1,M108)<-10%),\"De balans is < -10%, als dit plausibel is dan vragen wij u dit nader toe te lichten bij de opmerkingen, zo niet dan dient u uw raming aan te scherpen.\",\"\")","v":""}]
[null,null,null," Overige geneeskundige zorg",null,null,null,"701   ",null,null,null,null,null,null,null,null,null,""]
[null,null,null," Kosten van zorg zintuiglijk gehandicapten ",null,null,null,"702   ",null,null,null,null,null,null,null,null,null,""]
[null,null,null," Transformatiemiddelen IZA",null,null,null,"703   "]
[null,null,null," TOTAAL RUBRIEK 13",null,null,null,null,{"$f":"SUM(I108:I111)","v":0},0,0,0,0,0,0]
[null,null,null," 15  GRENSOVERSCHRIJDENDE ZORG"]
[null,null,null," Kosten via verzekeraar",null,null,null,"720   ",null,null,null,null,null,null,null,null,null,{"$f":"IF(OR((I114-J114)/IF(I114=0,1,I114)<-10%,(K114-L114)/IF(K114=0,1,K114)<-10%,(M114-O114)/IF(M114=0,1,M114)<-10%),\"De balans is < -10%, als dit plausibel is dan vragen wij u dit nader toe te lichten bij de opmerkingen, zo niet dan dient u uw raming aan te scherpen.\",\"\")","v":""}]
[null,null,null," Kosten via verbindingsorgaan",null,null,null,"721   ",null,null,null,null,null,null,null,null,null,""]
[null,null,null," TOTAAL RUBRIEK 15",null,null,null,null,{"$f":"SUM(I114:I115)","v":0},0,0,0,0,0,0]
[null,null,null," 16  KWALITEITSGELDEN"]
[null,null,null," Kwaliteitsgelden",null,null,null,"730   ",null,null,null,null,null,null,null,null,null,{"$f":"IF(OR((I118-J118)/IF(I118=0,1,I118)<-10%,(K118-L118)/IF(K118=0,1,K118)<-10%,(M118-O118)/IF(M118=0,1,M118)<-10%),\"De balans is < -10%, als dit plausibel is dan vragen wij u dit nader toe te lichten bij de opmerkingen, zo niet dan dient u uw raming aan te scherpen.\",\"\")","v":""}]
[null,null,null," TOTAAL RUBRIEK 16",null,null,null,null,{"$f":"SUM(I118:I118)","v":0},{"$f":"SUM(J118:J118)","v":0},0,0,0,0,0]
[null,null,null," TOTAAL LASTEN   (bruto-schade, definitie ZIN)",null,null,null,null,{"$f":"SUM(I24,I27,I30,I35,I39,I64,I72,I75,I80,I98,I103,I106,I112,I116,I119)","v":0},0,0,0,0,0,0]
[]
[null,null,null,{"$f":"NOW()","v":"2024-12-16T16:05:05.220"},null,null,null,null,null,null,null,null,null,null,{"$f":"CONCATENATE(\"Kostenverzamelstaat, \",LOWER(A85))","v":"Kostenverzamelstaat, pagina 3"}]
[]
["Pagina 4",null,null,{"$f":"CONCATENATE(\"KWARTAALSTAAT ZVW \", jaar_id)","v":"KWARTAALSTAAT ZVW 2025"}]
[null,null,null,{"$f":"D7","v":"SPECIFIEKE INFORMATIE A: KOSTENVERZAMELSTAAT"}]
[null,null,null,{"$f":"IF(naw_uzovi_zorgverzekeraar<>\"0000\",CONCATENATE(UPPER(naw_naam_zorgverzekeraar),\", \",UPPER(naw_plaats_zorgverzekeraar)),\"\")","v":""},null,null,null,null,null,null,null,null,null,null,{"$f":"CONCATENATE(\"UZOVI: \",naw_uzovi_zorgverzekeraar)","v":"UZOVI: 0000"}]
[null,null,null,"SPECIFICATIES INFORMATIE RISICOVEREVENING"]
[null,null,null,"SPECIFIEKE INFORMATIE A: KOSTENVERZAMELSTAAT - vervolg"]
[]
[]
[null,null,null,null,null,null,null,null,{"$f":"CONCATENATE(\"Totale baten\",\" \",jaar_id,\" \",\"inclusief balanspost\")","v":"Totale baten 2025 inclusief balanspost"},{"$f":"CONCATENATE(\"waarvan\",\" \",\"ontvangen\",\" \",\"m.b.t.\",jaar_id)","v":"waarvan ontvangen m.b.t.2025"},{"$f":"CONCATENATE(\"Totale baten\",\" \",jaar_id-1,\" \",\"inclusief balanspost\")","v":"Totale baten 2024 inclusief balanspost"},{"$f":"CONCATENATE(\"waarvan\",\" \",\"ontvangen\",\" \",\"m.b.t.\",jaar_id-1)","v":"waarvan ontvangen m.b.t.2024"},{"$f":"CONCATENATE(\"Totale baten\",\" \",jaar_id-2,\" \",\"inclusief balanspost\")","v":"Totale baten 2023 inclusief balanspost"},{"$f":"CONCATENATE(\"waarvan\",\" \",\"ontvangen\",\" \",\"m.b.t.\",jaar_id-2)","v":"waarvan ontvangen m.b.t.2023"},{"$f":"CONCATENATE(\"Totale in 2025\",\" \",\" ontvangen baten\",\" \",\"m.b.t\",\" \",jaar_id-3,\" en ouder\")","v":"Totale in 2025  ontvangen baten m.b.t 2022 en ouder"}]
[null,null,null," BATEN ZVW",null,null,null,"code"]
[null,null,null," OPBRENGSTEN VERHAAL",null,null,null,"890.1",null,null,null,null,null,null,null,null,null,{"$f":"IF(OR((I133-J133)/IF(I133=0,1,I133)<-10%,(K133-L133)/IF(K133=0,1,K133)<-10%,(M133-O133)/IF(M133=0,1,M133)<-10%),\"De balans is < -10%, als dit plausibel is dan vragen wij u dit nader toe te lichten bij de opmerkingen, zo niet dan dient u uw raming aan te scherpen.\",\"\")","v":""}]
[null,null,null," SCHADE T.L.V. HET VRIJWILLIG EIGEN RISICO",null,null,null,"910   ",null,null,null,null,null,null,null,null,null,""]
[null,null,null," SCHADE T.L.V. HET VERPLICHT EIGEN RISICO",null,null,null,"915   ",null,null,null,null,null,null,null,null,null,""]
[null,null,null," GEBOEKTE NETTO PREMIES",null,null,null,"940   ",null,null,null,null,null,null,null,null,null,""]
[]
[]
[]
[null,null,null,{"$f":"NOW()","v":"2024-12-16T16:05:05.220"},null,null,null,null,null,null,null,null,null,null,{"$f":"CONCATENATE(\"Kostenverzamelstaat, \",LOWER(A124))","v":"Kostenverzamelstaat, pagina 4"}]

{"sheet":"Specifieke informatie A","index":6,"n_rows":93,"n_cols":12,"rows_kept":93,"cut":false,"hidden":false,"merged":[[11,10,12,10],[11,3,12,9],[13,3,13,9],[14,3,14,9],[92,3,92,4],[86,9,88,11],[47,3,47,4],[56,11,57,11],[56,8,56,10],[56,4,57,4]]}
[null,null,"INVULSPECIFICATIES SPECIFIEKE INFORMATIE A"]
[]
[]
[]
[]
["Pagina 1",null,null,{"$f":"CONCATENATE(\"KWARTAALSTAAT ZVW \", jaar_id)","v":"KWARTAALSTAAT ZVW 2025"}]
[null,null,null,"SPECIFIEKE INFORMATIE A  2025: DETAILINFORMATIE RVE"]
[null,null,null,{"$f":"IF(naw_uzovi_zorgverzekeraar<>\"0000\",CONCATENATE(UPPER(naw_naam_zorgverzekeraar),\", \",UPPER(naw_plaats_zorgverzekeraar)),\"\")","v":""},null,null,null,null,null,null,null,{"$f":"CONCATENATE(\"UZOVI: \",naw_uzovi_zorgverzekeraar)","v":"UZOVI: 0000"}]
[]
[null,null,null,"SPECIFICATIES INFORMATIE RISICOVEREVENING"]
[null,null,null,"KOSTEN NAAR DEELBIJDRAGE"]
[null,null,null," KOSTEN NAAR DEELBIJDRAGE",null,null,null,null,null,null,{"$f":"CONCATENATE(\"LASTEN \", jaar_id,\" inclusief balanspost \")","v":"LASTEN 2025 inclusief balanspost "}]
[]
[null,null,null," Variabele zorgkosten "]
[null,null,null," Vaste zorgkosten"]
[null,null,null," Kosten geneeskundige geestelijke gezondheidszorg "]
[null,null,null," TOTAAL lasten (bruto-schade, definitie ZIN)",null,null,null,null,null,null,{"$f":"SUM(K14:K16)","v":0}]
[]
[]
[]
[]
[]
[]
[]
[]
[]
[]
[]
[]
[]
[]
[]
[]
[]
[]
[]
[]
[]
[]
[]
[]
[]
[]
[]
[]
[]
[]
[null,null,null,{"$f":"NOW()","v":"2024-12-16T16:05:05.220"},null,null,null,null,null,null,null,{"$f":"CONCATENATE(\"Specifieke informatie A, \",LOWER(A6))","v":"Specifieke informatie A, pagina 1"}]
[]
["Pagina 2",null,null,{"$f":"CONCATENATE(\"KWARTAALSTAAT ZVW \", jaar_id,\" \",kwartaal_id,\"E KWARTAAL\")","v":"KWARTAALSTAAT ZVW 2025 2E KWARTAAL"}]
[null,null,null,"SPECIFIEKE INFORMATIE A: VERZEKERDENSTANDEN"]
[null,null,null,{"$f":"IF(naw_uzovi_zorgverzekeraar<>\"0000\",CONCATENATE(UPPER(naw_naam_zorgverzekeraar),\", \",UPPER(naw_plaats_zorgverzekeraar)),\"\")","v":""},null,null,null,null,null,null,null,{"$f":"CONCATENATE(\"UZOVI: \",naw_uzovi_zorgverzekeraar)","v":"UZOVI: 0000"}]
[]
[null,null,null,"SPECIFICATIES INFORMATIE RISICOVEREVENING"]
[null,null,null,"VERZEKERDENSTAND NAAR RISICOKLASSE",null,null,null,null,null,null,null,"Peildatum: 1e van de maand"]
[null,null,null,null,null,null,null,null,null,null,null,"voor de maand April 2025"]
[null,null,null,null,"LEEFTIJD",null,null,null,"AANTAL NAAR GESLACHT",null,null,"TOTAAL \nAANTAL"]
[null,null,null,null,null,null,null,null,"MAN","VROUW","ONBEPAALD"]
[null,null,null,"  1a.   0  t/m   1",null,null,null,null,null,null,null,{"$f":"SUM(I59:K59)","v":0}]
[null,null,null,"  1b.   2  t/m   4",null,null,null,null,null,null,null,{"$f":"SUM(I60:K60)","v":0}]
[null,null,null,"  2.     5  t/m   9",null,null,null,null,null,null,null,0]
[null,null,null,"  3.   10  t/m 14",null,null,null,null,null,null,null,0]
[null,null,null,"  4.   15  t/m 19",null,null,null,null,null,null,null,0]
[null,null,null,"  5.   20  t/m 24",null,null,null,null,null,null,null,0]
[null,null,null,"  6.   25  t/m 29",null,null,null,null,null,null,null,0]
[null,null,null,"  7.   30  t/m 34",null,null,null,null,null,null,null,0]
[null,null,null,"  8.   35  t/m 39",null,null,null,null,null,null,null,0]
[null,null,null,"  9.   40  t/m 44",null,null,null,null,null,null,null,0]
[null,null,null," 10.  45  t/m 49",null,null,null,null,null,null,null,0]
[null,null,null," 11.  50  t/m 54",null,null,null,null,null,null,null,0]
[null,null,null," 12.  55  t/m 59",null,null,null,null,null,null,null,0]
[null,null,null," 13.  60  t/m 64",null,null,null,null,null,null,null,0]
[null,null,null," 14.  65  t/m 69",null,null,null,null,null,null,null,0]
[null,null,null," 15.  70  t/m 74",null,null,null,null,null,null,null,0]
[null,null,null," 16.  75  t/m 79",null,null,null,null,null,null,null,0]
[null,null,null," 17.  80  t/m 84",null,null,null,null,null,null,null,0]
[null,null,null," 18.  85  t/m 89",null,null,null,null,null,null,null,0]
[null,null,null," 19.  90 en ouder",null,null,null,null,null,null,null,0]
[null,null,null," TOTAAL",null,null,null,null,{"$f":"SUM(I59:I78)","v":0},{"$f":"SUM(J59:J78)","v":0},{"$f":"SUM(K59:K78)","v":0},0]
[]
[null,null,null,"VERZEKERDENSTAND NAAR NOMINALE PREMIE",null,null,null,null,null,null,null,"Peildatum: 1e van de maand"]
[null,null,null,null,null,null,null,null,null,null,null,"voor de maand APRIL 2025"]
[null,null,null,null,null,null,null,null,null,null,null,"AANTAL"]
[null,null,null," Verzekerden met nominale premie Zvw"]
[null,null,null," Verzekerden zonder nominale premie Zvw"]
[null,null,null," TOTAAL",null,null,null,null,null,null,null,{"$f":"SUM(L84:L85)","v":0}]
[null,null,null,null,null,null,null,null,null,{"$f":"IF(AND(ISBLANK(K78)=FALSE,ISBLANK(L84)=FALSE),IF(L84<SUM(L64:L78),\"ATTENTIE: is het juist dat het aantal verzekerden \nmet nominale premie kleiner is dan het totaal\naantal verzekerden van 20 jaar en ouder?\",\"\"),\"\")","v":""}]
[]
[]
[]
[]
[]
[null,null,null,{"$f":"NOW()","v":"2024-12-16T16:05:05.220"},null,null,null,null,null,null,null,{"$f":"CONCATENATE(\"Specifieke informatie A, \",LOWER(A50))","v":"Specifieke informatie A, pagina 2"}]

{"sheet":"Specifieke informatie C","index":7,"n_rows":74,"n_cols":12,"rows_kept":74,"cut":false,"hidden":false,"merged":[[73,3,73,4],[59,3,59,5],[63,9,64,9],[62,10,62,11],[63,11,64,11],[67,3,67,5],[68,3,68,5],[69,3,69,5],[62,6,62,7],[62,3,64,5],[65,3,65,5],[66,3,66,5],[60,3,60,5],[63,10,64,10],[63,6,64,6],[63,8,64,8],[62,8,62,9],[63,7,64,7],[25,3,25,5],[31,3,31,5],[21,3,21,5],[22,3,22,5],[23,3,23,5],[24,3,24,5],[32,3,32,5],[33,3,33,5],[48,3,48,5],[49,3,49,5],[50,3,50,5],[51,3,51,5],[47,3,47,5],[30,3,30,5],[34,3,34,5],[27,3,29,5],[58,3,58,5],[44,3,46,5],[28,11,29,11],[54,11,55,11],[37,3,37,4],[53,3,55,5],[53,6,53,7],[53,8,53,9],[53,10,53,11],[54,6,55,6],[54,7,55,7],[54,8,55,8],[54,9,55,9],[54,10,55,10],[45,11,46,11],[57,3,57,5],[56,3,56,5],[44,8,44,9],[44,10,44,11],[45,6,46,6],[45,7,46,7],[45,8,46,8],[45,9,46,9],[45,10,46,10],[44,6,44,7],[19,11,20,11],[19,7,20,7],[19,6,20,6],[18,10,18,11],[19,10,20,10],[27,6,27,7],[27,8,27,9],[27,10,27,11],[28,6,29,6],[28,7,29,7],[28,8,29,8],[28,9,29,9],[28,10,29,10],[12,10,13,10],[12,11,13,11],[11,8,11,9],[11,10,11,11],[11,3,13,5],[11,6,11,7],[12,6,13,6],[12,9,13,9],[12,7,13,7],[12,8,13,8],[18,3,20,5],[18,6,18,7],[19,9,20,9],[19,8,20,8],[14,3,14,5],[16,3,16,5],[15,3,15,5],[18,8,18,9]]}
[" ",null,"INVULSPECIFICATIES SPECIFIEKE INFORMATIE C"]
[]
[]
[]
[]
["Pagina 1",null,null,{"$f":"CONCATENATE(\"KWARTAALSTAAT ZVW \", jaar_id)","v":"KWARTAALSTAAT ZVW 2025"}]
[null,null,null,"SPECIFIEKE INFORMATIE C: SPECIFICATIES VAN KOSTEN EN PRODUCTIE"]
[null,null,null,{"$f":"IF(naw_uzovi_zorgverzekeraar<>\"0000\",CONCATENATE(UPPER(naw_naam_zorgverzekeraar),\", \",UPPER(naw_plaats_zorgverzekeraar)),\"\")","v":""},null,null,null,null,null,null,null,{"$f":"CONCATENATE(\"UZOVI: \",naw_uzovi_zorgverzekeraar)","v":"UZOVI: 0000"}]
[null,null,null,"SPECIFICATIES VAN KOSTEN EN PRODUCTIE"]
[]
[null,null,null,"RUBRIEK 06 MEDISCH SPECIALISTISCHE ZORG"]
[null,null,null," CODE 610.2\n",null,null,{"$f":"CONCATENATE(\"LASTEN \", jaar_id)","v":"LASTEN 2025"},null,{"$f":"CONCATENATE(\"LASTEN \", jaar_id-1)","v":"LASTEN 2024"},null,{"$f":"CONCATENATE(\"LASTEN \", jaar_id-2)","v":"LASTEN 2023"}]
[null,null,null,null,null,null,{"$f":"CONCATENATE(\"LASTEN \", jaar_id,\" inclusief balanspost \")","v":"LASTEN 2025 inclusief balanspost "},{"$f":"CONCATENATE(\"Ontvangen en geaccepteerde declaraties m.b.t. \", jaar_id)","v":"Ontvangen en geaccepteerde declaraties m.b.t. 2025"},{"$f":"CONCATENATE(\"LASTEN \", jaar_id-1,\" inclusief balanspost \")","v":"LASTEN 2024 inclusief balanspost "},{"$f":"CONCATENATE(\"Ontvangen en geaccepteerde declaraties m.b.t. \", jaar_id-1)","v":"Ontvangen en geaccepteerde declaraties m.b.t. 2024"},{"$f":"CONCATENATE(\"LASTEN \", \" inclusief balanspost m.b.t. \",jaar_id-2)","v":"LASTEN  inclusief balanspost m.b.t. 2023"},{"$f":"CONCATENATE(\"Ontvangen en geaccepteerde declaraties m.b.t. \", jaar_id-2)","v":"Ontvangen en geaccepteerde declaraties m.b.t. 2023"}]
[]
[null,null,null,"Eerstelijnsdiagnostiek aangevraagd door eerstelijnszorg-aanbieders geleverd door huisartsenlaboratoria"]
[null,null,null,"Trombosediensten"]
[null,null,null," TOTAAL code 610.2",null,null,{"$f":"SUM(G15:G16)","v":0},{"$f":"SUM(H15:H16)","v":0},0,0,{"$f":"SUM(K15:K15)","v":0},0]
[]
[null,null,null," CODE 611 - OVERIGE ZORGPRODUCTEN NAAR INSTELLING",null,null,{"$f":"G12","v":"LASTEN 2025"},null,{"$f":"I12","v":"LASTEN 2024"},null,{"$f":"K12","v":"LASTEN 2023"}]
[null,null,null,null,null,null,{"$f":"G13","v":"LASTEN 2025 inclusief balanspost "},{"$f":"H13","v":"Ontvangen en geaccepteerde declaraties m.b.t. 2025"},"LASTEN 2024 inclusief balanspost ","Ontvangen en geaccepteerde declaraties m.b.t. 2024","LASTEN  inclusief balanspost m.b.t. 2023","Ontvangen en geaccepteerde declaraties m.b.t. 2023"]
[]
[null,null,null," Academische ziekenhuizen"]
[null,null,null," Algemene ziekenhuizen"]
[null,null,null," Zelfstandige behandelcentra"]
[null,null,null," Overige zorgaanbieders"]
[null,null,null," TOTAAL code 611",null,null,{"$f":"SUM(G22:G25)","v":0},0,0,0,0,0]
[]
[null,null,null," CODE 612.1 - KOSTEN ADD-ONS DURE \n GENEESMIDDELEN NAAR INSTELLING",null,null,{"$f":"G12","v":"LASTEN 2025"},null,{"$f":"I19","v":"LASTEN 2024"},null,{"$f":"K19","v":"LASTEN 2023"}]
[null,null,null,null,null,null,{"$f":"G20","v":"LASTEN 2025 inclusief balanspost "},{"$f":"H20","v":"Ontvangen en geaccepteerde declaraties m.b.t. 2025"},{"$f":"I20","v":"LASTEN 2024 inclusief balanspost "},{"$f":"J20","v":"Ontvangen en geaccepteerde declaraties m.b.t. 2024"},{"$f":"K20","v":"LASTEN  inclusief balanspost m.b.t. 2023"},{"$f":"L20","v":"Ontvangen en geaccepteerde declaraties m.b.t. 2023"}]
[null,null,null,null,null,null,null,null,"Ontvangen en geaccepteerde declaraties mbt jaar T","Ontvangen en geaccepteerde declaraties mbt jaar T","Ontvangen en geaccepteerde declaraties mbt jaar T","Ontvangen en geaccepteerde declaraties mbt jaar T"]
[null,null,null," Academische ziekenhuizen"]
[null,null,null," Algemene ziekenhuizen"]
[null,null,null," Zelfstandige behandelcentra"]
[null,null,null," Overige zorgaanbieders"]
[null,null,null," TOTAAL code 612.1",null,null,{"$f":"SUM(G31:G34)","v":0},{"$f":"SUM(H31:H34)","v":0},0,0,0,0]
[]
[]
[null,null,null,{"$f":"NOW()","v":"2024-12-16T16:05:05.220"},null,null,null,null,null,null,null,{"$f":"CONCATENATE(\"Specifieke informatie C, \",LOWER(A6))","v":"Specifieke informatie C, pagina 1"}]
[]
["Pagina 2",null,null,{"$f":"CONCATENATE(\"KWARTAALSTAAT ZVW \", jaar_id,\" \",kwartaal_id,\"E KWARTAAL\")","v":"KWARTAALSTAAT ZVW 2025 2E KWARTAAL"}]
[null,null,null,{"$f":"D7","v":"SPECIFIEKE INFORMATIE C: SPECIFICATIES VAN KOSTEN EN PRODUCTIE"}]
[null,null,null,{"$f":"IF(naw_uzovi_zorgverzekeraar<>\"0000\",CONCATENATE(UPPER(naw_naam_zorgverzekeraar),\", \",UPPER(naw_plaats_zorgverzekeraar)),\"\")","v":""},null,null,null,null,null,null,null,{"$f":"CONCATENATE(\"UZOVI: \",naw_uzovi_zorgverzekeraar)","v":"UZOVI: 0000"}]
[null,null,null,"SPECIFICATIES VAN KOSTEN EN PRODUCTIE"]
[null,null,null,"RUBRIEK 06 MEDISCH SPECIALISTISCHE ZORG - vervolg"]
[null,null,null," CODE 612.2 - KOSTEN ADD-ONS IC  \n NAAR INSTELLING",null,null,{"$f":"G28","v":"LASTEN 2025"},null,{"$f":"I28","v":"LASTEN 2024"},null,{"$f":"K28","v":"LASTEN 2023"}]
[null,null,null,null,null,null,{"$f":"G29","v":"LASTEN 2025 inclusief balanspost "},{"$f":"H29","v":"Ontvangen en geaccepteerde declaraties m.b.t. 2025"},{"$f":"I29","v":"LASTEN 2024 inclusief balanspost "},{"$f":"J29","v":"Ontvangen en geaccepteerde declaraties m.b.t. 2024"},{"$f":"K29","v":"LASTEN  inclusief balanspost m.b.t. 2023"},{"$f":"L29","v":"Ontvangen en geaccepteerde declaraties m.b.t. 2023"}]
[null,null,null,null,null,null,null,null,"Ontvangen en geaccepteerde declaraties mbt jaar T","Ontvangen en geaccepteerde declaraties mbt jaar T","Ontvangen en geaccepteerde declaraties mbt jaar T","Ontvangen en geaccepteerde declaraties mbt jaar T"]
[null,null,null," Academische ziekenhuizen"]
[null,null,null," Algemene ziekenhuizen"]
[null,null,null," Zelfstandige behandelcentra"]
[null,null,null," Overige zorgaanbieders"]
[null,null,null," TOTAAL code 612.2",null,null,{"$f":"SUM(G48:G51)","v":0},{"$f":"SUM(H48:H51)","v":0},0,0,0,0]
[]
[null,null,null,"  CODE 613.1 - INTEGRALE KOSTEN VAN \n  DBC-ZORGPRODUCTEN GEREGULEERDE \n  SEGMENT NAAR \n  INSTELLING",null,null,{"$f":"G45","v":"LASTEN 2025"},null,{"$f":"I45","v":"LASTEN 2024"},null,{"$f":"K45","v":"LASTEN 2023"}]
[null,null,null,null,null,null,{"$f":"G46","v":"LASTEN 2025 inclusief balanspost "},{"$f":"H46","v":"Ontvangen en geaccepteerde declaraties m.b.t. 2025"},{"$f":"I46","v":"LASTEN 2024 inclusief balanspost "},{"$f":"J46","v":"Ontvangen en geaccepteerde declaraties m.b.t. 2024"},{"$f":"K46","v":"LASTEN  inclusief balanspost m.b.t. 2023"},{"$f":"L46","v":"Ontvangen en geaccepteerde declaraties m.b.t. 2023"}]
[null,null,null,null,null,"code"]
[null,null,null," Academische ziekenhuizen"]
[null,null,null," Algemene ziekenhuizen"]
[null,null,null," Zelfstandige behandelcentra"]
[null,null,null," Overige zorgaanbieders"]
[null,null,null," TOTAAL code 613.1",null,null,{"$f":"SUM(G57:G60)","v":0},{"$f":"SUM(H57:H60)","v":0},{"$f":"SUM(I57:I60)","v":0},0,0,0]
[]
[null,null,null,"  CODE 615.1 - INTEGRALE KOSTEN VAN\n  DBC-ZORGPRODUCTEN VRIJE SEGMENT\n  NAAR INSTELLING",null,null,{"$f":"G54","v":"LASTEN 2025"},null,{"$f":"I54","v":"LASTEN 2024"},null,{"$f":"K54","v":"LASTEN 2023"}]
[null,null,null,null,null,null,{"$f":"G55","v":"LASTEN 2025 inclusief balanspost "},{"$f":"H55","v":"Ontvangen en geaccepteerde declaraties m.b.t. 2025"},"LASTEN 2024 inclusief balanspost ","Ontvangen en geaccepteerde declaraties m.b.t. 2024","LASTEN  inclusief balanspost m.b.t. 2023","Ontvangen en geaccepteerde declaraties m.b.t. 2023"]
[null,null,null,null,null,"code"]
[null,null,null," Academische ziekenhuizen"]
[null,null,null," Algemene ziekenhuizen"]
[null,null,null," Zelfstandige behandelcentra"]
[null,null,null," Overige zorgaanbieders"]
[null,null,null," TOTAAL code 615.1",null,null,{"$f":"SUM(G66:G69)","v":0},0,0,0,0,0]
[]
[]
[]
[null,null,null,{"$f":"NOW()","v":"2024-12-16T16:05:05.220"},null,null,null,null,null,null,null,{"$f":"CONCATENATE(\"Specifieke informatie C, \",LOWER(A40))","v":"Specifieke informatie C, pagina 2"}]

{"sheet":"Contractinformatie","index":8,"n_rows":93,"n_cols":11,"rows_kept":93,"cut":false,"hidden":false,"merged":[[69,3,69,9],[68,3,68,9],[70,3,70,9],[67,3,67,9],[54,3,54,9],[74,3,74,9],[73,3,73,10],[90,3,90,9],[76,3,76,9],[77,3,77,9],[78,3,78,9],[79,3,79,9],[81,3,81,9],[85,3,85,10],[80,3,80,10],[82,3,82,9],[83,3,83,9],[84,3,84,9],[89,3,89,9],[92,3,92,4],[47,3,47,4],[75,3,75,10],[86,3,86,9],[87,3,87,9],[88,3,88,9],[55,3,55,9],[56,3,56,9],[57,3,57,9],[58,3,58,9],[59,3,59,9],[60,3,60,9],[61,3,61,9],[63,3,63,9],[64,3,64,9],[71,3,71,9],[10,3,10,10],[9,3,9,9],[11,3,11,9],[12,3,12,9],[13,3,13,9],[14,3,14,9],[16,3,16,9],[17,3,17,9],[18,3,18,9],[15,3,15,10],[19,3,19,9],[21,3,21,9],[24,3,24,9],[25,3,25,9],[26,3,26,9],[20,3,20,10],[27,3,27,9],[28,3,28,9],[29,3,29,9],[32,3,32,9],[53,3,53,9],[33,3,33,9],[34,3,34,9],[35,3,35,9],[36,3,36,9],[37,3,37,9],[38,3,38,9],[39,3,39,9],[40,3,40,9],[42,3,42,9],[43,3,43,9]]}
[null,null,"INVULSPECIFICATIES SPECIFIEKE INFORMATIE C"]
[]
[]
[]
[]
["Pagina 1",null,null,{"$f":"CONCATENATE(\"KWARTAALSTAAT ZVW \", jaar_id)","v":"KWARTAALSTAAT ZVW 2025"}]
[null,null,null,"SPECIFIEKE INFORMATIE C - CONTRACTINFORMATIE"]
[null,null,null,{"$f":"IF(naw_uzovi_zorgverzekeraar<>\"0000\",CONCATENATE(UPPER(naw_naam_zorgverzekeraar),\", \",UPPER(naw_plaats_zorgverzekeraar)),\"\")","v":""},null,null,null,null,null,null,{"$f":"CONCATENATE(\"UZOVI: \",naw_uzovi_zorgverzekeraar)","v":"UZOVI: 0000"}]
[null,null,null," CONTRACTINFORMATIE HUISARTSENZORG EN MULTIDISCIPLINAIRE ZORG, rubriek 01"]
[null,null,null,null,null,null,null,null,null,null,{"$f":"CONCATENATE(\"LASTEN \", jaar_id,\" inclusief balanspost \")","v":"LASTEN 2025 inclusief balanspost "}]
[null,null,null," Huisartsenzorg, codes 503, 504, 505, 506, 507, 515"]
[null,null,null," Gecontracteerde zorg"]
[null,null,null," Lopende onderhandelingen"]
[null,null,null," Niet gecontracteerde zorg"]
[null,null,null," Subtotaal huisartsenzorg",null,null,null,null,null,{"$f":"SUM(J12:J14)","v":0},{"$f":"SUM(K12:K14)","v":0}]
[null,null,null," Multidisciplinaire zorg, codes 510 en 516"]
[null,null,null," Gecontracteerde zorg"]
[null,null,null," Lopende onderhandelingen"]
[null,null,null," Niet gecontracteerde zorg"]
[null,null,null," Subtotaal multidisciplinaire zorg",null,null,null,null,null,{"$f":"SUM(J17:J19)","v":0},{"$f":"SUM(K17:K19)","v":0}]
[null,null,null," Huisartsenzorg en multidisciplinaire zorg"]
[null,null,null," TOTAAL RUBRIEK 01 ",null,null,null,null,null,null,{"$f":"SUM(K15+K20)","v":0}]
[]
[null,null,null," CONTRACTINFORMATIE VERPLEGING EN VERZORGING, rubriek 03"]
[null,null,null,null,null,null,null,null,null,null,{"$f":"K$10","v":"LASTEN 2025 inclusief balanspost "}]
[null,null,null," Gecontracteerde zorg"]
[null,null,null," Lopende onderhandelingen"]
[null,null,null," Niet gecontracteerde zorg"]
[null,null,null," PGB"]
[null,null,null," TOTAAL RUBRIEK 03",null,null,null,null,null,{"$f":"SUM(J26:J28)","v":0},{"$f":"SUM(K26:K29)","v":0}]
[]
[null,null,null," CONTRACTINFORMATIE MEDISCH SPECIALISTISCHE ZORG, rubriek 06"]
[null,null,null,null,null,null,null,null,null,null,{"$f":"K$10","v":"LASTEN 2025 inclusief balanspost "}]
[null,null,null," Gecontracteerde zorg: aanneemsom"]
[null,null,null," Gecontracteerde zorg: plafond"]
[null,null,null," Gecontracteerde zorg: nacalculatie bij aanneemsommen en plafondcontracten"]
[null,null,null," Gecontracteerde zorg: open einde contract"]
[null,null,null," Subtotaal gecontracteerde zorg",null,null,null,null,null,{"$f":"SUM(J34:J37)","v":0},{"$f":"SUM(K34:K37)","v":0}]
[null,null,null," Lopende onderhandelingen"]
[null,null,null," Niet gecontracteerde zorg"]
[null,null,null," TOTAAL RUBRIEK 06 ",null,null,null,null,null,{"$f":"SUM(J38:J40)","v":0},{"$f":"SUM(K38:K40)","v":0}]
[]
[null,null,null,null,null,null,null,null,null,2020,{"$f":"jaar_id","v":2025}]
[null,null,null," Totaal afgesproken maximumomzet plafondcontracten"]
[]
[]
[]
[null,null,null,{"$f":"NOW()","v":"2024-12-16T16:05:05.220"},null,null,null,null,null,null,{"$f":"CONCATENATE(\"Specifieke informatie C - Contractinformatie, \",LOWER(A6))","v":"Specifieke informatie C - Contractinformatie, pagina 1"}]
[]
["Pagina 2",null,null,{"$f":"CONCATENATE(\"KWARTAALSTAAT ZVW \", jaar_id,\" \",kwartaal_id,\"E KWARTAAL\")","v":"KWARTAALSTAAT ZVW 2025 2E KWARTAAL"}]
[null,null,null,"SPECIFIEKE INFORMATIE C - CONTRACTINFORMATIE"]
[null,null,null,{"$f":"IF(naw_uzovi_zorgverzekeraar<>\"0000\",CONCATENATE(UPPER(naw_naam_zorgverzekeraar),\", \",UPPER(naw_plaats_zorgverzekeraar)),\"\")","v":""},null,null,null,null,null,null,{"$f":"CONCATENATE(\"UZOVI: \",naw_uzovi_zorgverzekeraar)","v":"UZOVI: 0000"}]
[null,null,null," CONTRACTINFORMATIE GENEESKUNDIGE GEESTELIJKE GEZONDHEIDSZORG, rubriek 10"]
[null,null,null,null,null,null,null,null,null,"Lasten inclusief \nbalanspost \n2020",{"$f":"K$10","v":"LASTEN 2025 inclusief balanspost "}]
[null,null,null," Gecontracteerde zorg: aanneemsom"]
[null,null,null," Gecontracteerde zorg: plafond"]
[null,null,null," Gecontracteerde zorg: nacalculatie bij aanneemsommen en plafondcontracten"]
[null,null,null," Gecontracteerde zorg: open einde contract"]
[null,null,null," Subtotaal gecontracteerde zorg",null,null,null,null,null,{"$f":"SUM(J55:J58)","v":0},{"$f":"SUM(K55:K58)","v":0}]
[null,null,null," Lopende onderhandelingen"]
[null,null,null," Niet gecontracteerde zorg"]
[null,null,null," TOTAAL RUBRIEK 10 ",null,null,null,null,null,{"$f":"SUM(J59:J61)","v":0},{"$f":"SUM(K59:K61)","v":0}]
[]
[null,null,null,null,null,null,null,null,null,2020,{"$f":"K43","v":2025}]
[null,null,null," Totaal afgesproken maximumomzet plafondcontracten"]
[]
[null,null,null," CONTRACTINFORMATIE ZINTUIGLIJK GEHANDICAPTEN, code 702 "]
[null,null,null,null,null,null,null,null,null,"Lasten inclusief \nbalanspost \n2020",{"$f":"K$10","v":"LASTEN 2025 inclusief balanspost "}]
[null,null,null," Gecontracteerde zorg"]
[null,null,null," Lopende onderhandelingen"]
[null,null,null," Niet gecontracteerde zorg"]
[null,null,null," TOTAAL CODE 702",null,null,null,null,null,{"$f":"SUM(J69:J71)","v":0},{"$f":"SUM(K69:K71)","v":0}]
[]
[null,null,null," CONTRACTINFORMATIE GERIATRISCHE REVALIDATIE, EERSTELIJNSVERBLIJF EN GENEESKUNDIGE ZORG       SPECIFIEKE PATIENTGROEPEN, rubriek 11"]
[null,null,null,null,null,null,null,null,null,"Lasten inclusief \nbalanspost \n2020",{"$f":"K$10","v":"LASTEN 2025 inclusief balanspost "}]
[null,null,null," Geriatrische Revalidatie, code 670"]
[null,null,null," Gecontracteerde zorg"]
[null,null,null," Lopende onderhandelingen"]
[null,null,null," Niet gecontracteerde zorg"]
[null,null,null," Subtotaal Geriatrische Revalidatie zorg",null,null,null,null,null,{"$f":"SUM(J77:J79)","v":0},{"$f":"SUM(K77:K79)","v":0}]
[null,null,null," Eerstelijnsverblijf, code 671"]
[null,null,null," Gecontracteerde zorg"]
[null,null,null," Lopende onderhandelingen"]
[null,null,null," Niet gecontracteerde zorg"]
[null,null,null," Subtotaal Eerstelijnsverblijf ",null,null,null,null,null,{"$f":"SUM(J82:J84)","v":0},{"$f":"SUM(K82:K84)","v":0}]
[null,null,null," Geneeskundige Zorg Specifieke Patiëntgroepen, code 672"]
[null,null,null," Gecontracteerde zorg"]
[null,null,null," Lopende onderhandelingen"]
[null,null,null," Niet gecontracteerde zorg"]
[null,null,null," Subtotaal Geneeskundige Zorg Specifieke Patiëntgroepen",null,null,null,null,null,null,{"$f":"SUM(K87:K89)","v":0}]
[null,null,null," TOTAAL RUBRIEK 11 ",null,null,null,null,null,{"$f":"SUM(J80+J85+#REF!)","v":{"$error":"#REF!"}},{"$f":"SUM(K80+K85+K90)","v":0}]
[]
[null,null,null,{"$f":"NOW()","v":"2024-12-16T16:05:05.220"},null,null,null,null,null,null,{"$f":"CONCATENATE(\"Specifieke informatie C - Contractinformatie, \",LOWER(A50))","v":"Specifieke informatie C - Contractinformatie, pagina 2"}]

{"sheet":"Wanbetalers","index":9,"n_rows":48,"n_cols":11,"rows_kept":48,"cut":false,"hidden":false,"merged":[[26,3,26,7],[47,3,47,4],[27,3,27,7],[17,3,17,7],[19,3,19,7],[20,3,20,7],[21,3,21,7],[22,3,22,7],[24,3,24,7],[25,3,25,7],[15,3,15,7],[16,3,16,7],[10,3,10,7],[11,3,11,7],[12,3,12,7],[13,3,13,7]]}
[null,null,"INVULSPECIFICATIES SPECIFIEKE INFORMATIE C"]
[]
[]
[]
[]
["Pagina 1",null,null,{"$f":"CONCATENATE(\"KWARTAALSTAAT ZVW \", jaar_id)","v":"KWARTAALSTAAT ZVW 2025"}]
[null,null,null,"SPECIFIEKE INFORMATIE C - WANBETALERS"]
[null,null,null,{"$f":"IF(naw_uzovi_zorgverzekeraar<>\"0000\",CONCATENATE(UPPER(naw_naam_zorgverzekeraar),\", \",UPPER(naw_plaats_zorgverzekeraar)),\"\")","v":""},null,null,null,null,null,null,{"$f":"CONCATENATE(\"UZOVI: \",naw_uzovi_zorgverzekeraar)","v":"UZOVI: 0000"}]
[]
[null,null,null,"SPECIFICATIES VAN WANBETALERS"]
[null,null,null,null,null,null,null,null,"AANTAL \njanuari","AANTAL \nfebruari","AANTAL \nmaart"]
[null,null,null," Verzekeringnemers die een achterstand in de premiebetaling hebben van \n twee of meer, maar minder dan vier volle maandpremies."]
[null,null,null," Verzekeringnemers die een achterstand in de premiebetaling hebben van \n vier of meer, maar minder dan zes volle maandpremies."]
[null,null,null," Verzekeringnemers die een achterstand in de premiebetaling hebben van \n zes of meer volle maandpremies."]
[]
[null,null,null,null,null,null,null,null,"AANTAL \njanuari","AANTAL \nfebruari","AANTAL \nmaart"]
[null,null,null," Verstuurde tweedemaandsbrieven"]
[null,null,null," Verstuurde vierdemaandsbrieven"]
[]
[null,null,null,null,null,null,null,null,"AANTAL \njanuari","AANTAL \nfebruari","AANTAL \nmaart"]
[null,null,null," Debiteuren met een interne betalingsregeling, al dan niet uitsluitend \n voor premiebetaling."]
[null,null,null," Debiteuren met een externe betalingsregeling, al dan niet uitsluitend \n voor premiebetaling."]
[null,null,null," Actieve stabilisatieovereenkomsten voor premiebetaling."]
[]
[null,null,null,null,null,null,null,null,"AANTAL \njanuari","AANTAL \nfebruari","AANTAL \nmaart"]
[null,null,null," Wanbetalers bij CAK aangemeld met een betalingsachterstand van minder \n dan € 250."]
[null,null,null," Wanbetalers bij CAK aangemeld met een betalingsachterstand van \n meer dan € 250, maar minder dan € 750."]
[null,null,null," Wanbetalers bij CAK aangemeld met een betalingsachterstand van meer \n dan € 750."]
[]
[]
[]
[]
[]
[]
[]
[]
[]
[]
[]
[]
[]
[]
[]
[]
[]
[]
[]
[null,null,null,{"$f":"NOW()","v":"2024-12-16T16:05:05.220"},null,null,null,null,null,null,{"$f":"CONCATENATE(\"Specifieke informatie C - Wanbetalers, \",LOWER(A6))","v":"Specifieke informatie C - Wanbetalers, pagina 1"}]

{"sheet":"Controleoverzicht","index":10,"n_rows":158,"n_cols":12,"rows_kept":158,"cut":false,"hidden":false,"merged":[[102,3,102,8],[128,9,129,9],[145,3,145,10],[128,3,129,8],[144,3,144,10],[149,11,150,11],[128,11,129,11],[128,10,129,10],[119,10,120,10],[125,3,125,8],[122,3,122,8],[149,9,150,9],[149,10,150,10],[123,3,123,8],[124,3,124,8],[146,3,146,11],[132,3,132,8],[119,11,120,11],[136,11,137,11],[136,10,137,10],[136,9,137,9],[138,3,138,8],[140,3,140,8],[121,3,121,8],[119,3,120,8],[54,11,55,11],[56,3,56,8],[104,9,105,9],[63,3,63,8],[64,3,64,8],[79,11,80,11],[99,3,99,8],[79,9,80,9],[86,3,86,8],[79,10,80,10],[84,3,84,8],[95,3,96,8],[97,3,97,8],[104,11,105,11],[95,11,96,11],[95,10,96,10],[98,3,98,8],[82,3,82,8],[74,3,74,8],[70,3,70,8],[72,3,72,8],[73,3,73,8],[71,3,71,8],[104,3,105,8],[45,3,45,8],[35,3,35,8],[14,10,15,10],[39,3,39,8],[101,3,101,8],[119,9,120,9],[95,9,96,9],[66,3,66,8],[79,3,80,8],[43,3,43,8],[42,3,42,8],[40,3,40,8],[37,3,37,8],[41,3,41,8],[83,3,83,8],[81,3,81,8],[65,3,65,8],[69,3,69,8],[68,3,68,8],[67,3,67,8],[104,10,105,10],[44,3,44,8],[59,3,59,8],[61,3,61,8],[31,3,31,8],[8,3,9,8],[10,3,10,8],[14,3,15,8],[11,3,11,8],[12,3,12,8],[28,3,28,8],[29,3,29,8],[27,3,27,8],[23,3,23,8],[25,3,25,8],[22,3,22,8],[24,3,24,8],[16,3,16,8],[18,3,19,8],[26,3,26,8],[21,3,21,8],[14,11,15,11],[14,9,15,9],[8,9,9,9],[153,3,153,8],[36,3,36,8],[62,3,62,8],[151,3,151,8],[152,3,152,8],[154,3,154,8],[46,3,46,8],[47,3,47,8],[18,11,19,11],[18,9,19,9],[18,10,19,10],[20,3,20,8],[54,10,55,10],[54,9,55,9],[32,3,32,8],[38,3,38,8],[60,3,60,8],[33,3,33,8],[57,3,57,8],[34,3,34,8],[30,3,30,8],[156,3,156,8],[54,3,55,8],[155,3,155,8],[75,3,75,8],[136,3,137,8],[149,3,150,8],[141,3,141,8],[131,3,131,8],[134,3,134,8],[133,3,133,8],[130,3,130,8],[142,3,142,8],[139,3,139,8],[76,3,76,8],[126,3,126,8],[58,3,58,8],[108,3,108,8],[109,3,109,8],[106,3,106,8],[110,3,110,8],[111,3,111,8],[107,3,107,8],[85,3,85,8],[100,3,100,8]]}
[null,null,"CONTROLEOVERZICHT"]
[]
[]
[]
[]
["Pagina 1",null,null,{"$f":"CONCATENATE(\"KWARTAALSTAAT ZVW \", jaar_id)","v":"KWARTAALSTAAT ZVW 2025"}]
[null,null,null,"CONTROLEOVERZICHT",null,null,null,null,null,null,null,{"$f":"CONCATENATE(\"UZOVI: \",naw_uzovi_zorgverzekeraar)","v":"UZOVI: 0000"}]
[null,null,null,"SPECIFIEKE INFORMATIE A"]
[null,null,null," VERZEKERDENSTANDEN",null,null,null,null,null,"APRIL"]
[]
[null,null,null," Verzekerdenstand naar risicoklasse",null,null,null,null,null,{"$f":"'Specifieke informatie A'!L79","v":0}]
[null,null,null," Verzekerdenstand naar nominale premie",null,null,null,null,null,{"$f":"'Specifieke informatie A'!L86","v":0}]
[null,null,null," Verschil",null,null,null,null,null,{"$f":"IF(J11<>J12,J11-J12,\"\")","v":""}]
[]
[null,null,null," KOSTENSPECIFICATIES",null,null,null,null,null,"VOLGENS\nKOSTENVER- \nZAMELSTAAT","VOLGENS\nDETAIL- \nSPECIFICATIE ","VERSCHIL"]
[]
[null,null,null," Totaal kosten t.l.v. deelbijdragen (totaal lasten t/m rubriek 16)\n - inclusief balanspost",null,null,null,null,null,{"$f":"Kostenverzamelstaat!I120","v":0},{"$f":"'Specifieke informatie A'!K17","v":0},{"$f":"IF(J17<>K17,J17-K17,\"\")","v":""}]
[]
[null,null,null," KOSTENVERZAMELSTAAT",null,null,null,null,null,{"$f":"CONCATENATE(\"Kosten balanspost  \", jaar_id-2)","v":"Kosten balanspost  2023"},{"$f":"CONCATENATE(\"Kosten balanspost  \", jaar_id-1)","v":"Kosten balanspost  2024"},{"$f":"CONCATENATE(\"Kosten balanspost  \", jaar_id)","v":"Kosten balanspost  2025"}]
[]
[null,null,null," 503 Bijzondere betalingen",null,null,null,null,null,{"$f":"Kostenverzamelstaat!M16-Kostenverzamelstaat!O16","v":0},{"$f":"Kostenverzamelstaat!K16-Kostenverzamelstaat!L16","v":0},{"$f":"Kostenverzamelstaat!I16-Kostenverzamelstaat!J16","v":0}]
[null,null,null," 504 Avond-, nacht- en weekenddiensten",null,null,null,null,null,{"$f":"(Kostenverzamelstaat!M17)-(Kostenverzamelstaat!O17)","v":0},{"$f":"Kostenverzamelstaat!K17-Kostenverzamelstaat!L17","v":0},{"$f":"Kostenverzamelstaat!I17-Kostenverzamelstaat!J17","v":0}]
[null,null,null," 505 Inschrijftarieven",null,null,null,null,null,{"$f":"Kostenverzamelstaat!M18-Kostenverzamelstaat!O18","v":0},{"$f":"Kostenverzamelstaat!K18-Kostenverzamelstaat!L18","v":0},{"$f":"Kostenverzamelstaat!I18-Kostenverzamelstaat!J18","v":0}]
[null,null,null," 506 Consulttarieven",null,null,null,null,null,{"$f":"(Kostenverzamelstaat!M19)-(Kostenverzamelstaat!O19)","v":0},{"$f":"Kostenverzamelstaat!K19-Kostenverzamelstaat!L19","v":0},{"$f":"Kostenverzamelstaat!I19-Kostenverzamelstaat!J19","v":0}]
[null,null,null," 507 Overige tarieven",null,null,null,null,null,{"$f":"(Kostenverzamelstaat!M20)-(Kostenverzamelstaat!O20)","v":0},{"$f":"Kostenverzamelstaat!K20-Kostenverzamelstaat!L20","v":0},{"$f":"Kostenverzamelstaat!I20-Kostenverzamelstaat!J20","v":0}]
[null,null,null," 510 Multidisciplinaire zorg",null,null,null,null,null,{"$f":"Kostenverzamelstaat!M21-Kostenverzamelstaat!O21","v":0},{"$f":"Kostenverzamelstaat!K21-Kostenverzamelstaat!L21","v":0},{"$f":"Kostenverzamelstaat!I21-Kostenverzamelstaat!J21","v":0}]
[null,null,null," 515 Resultaatbeloning en zorgvernieuwing huisartsen",null,null,null,null,null,{"$f":"(Kostenverzamelstaat!M22)-(Kostenverzamelstaat!O22)","v":0},{"$f":"Kostenverzamelstaat!K22-Kostenverzamelstaat!L22","v":0},{"$f":"Kostenverzamelstaat!I22-Kostenverzamelstaat!J22","v":0}]
[null,null,null," 516 Resultaatbeloning en zorgvernieuwing MDZ",null,null,null,null,null,{"$f":"Kostenverzamelstaat!M23-Kostenverzamelstaat!O23","v":0},{"$f":"Kostenverzamelstaat!K23-Kostenverzamelstaat!L23","v":0},{"$f":"Kostenverzamelstaat!I23-Kostenverzamelstaat!J23","v":0}]
[null,null,null," 520 Farmaceutische zorg",null,null,null,null,null,{"$f":"Kostenverzamelstaat!M26-Kostenverzamelstaat!O26","v":0},{"$f":"Kostenverzamelstaat!K26-Kostenverzamelstaat!L26","v":0},{"$f":"Kostenverzamelstaat!I26-Kostenverzamelstaat!J26","v":0}]
[null,null,null," 530 Kosten van verpleging en verzorging",null,null,null,null,null,{"$f":"(Kostenverzamelstaat!M29)-(Kostenverzamelstaat!O29)","v":0},{"$f":"Kostenverzamelstaat!K29-Kostenverzamelstaat!L29","v":0},{"$f":"Kostenverzamelstaat!I29-Kostenverzamelstaat!J29","v":0}]
[null,null,null," 545 Kosten specialisten mondziekten en kaakchirurgie",null,null,null,null,null,{"$f":"Kostenverzamelstaat!M54-Kostenverzamelstaat!O54","v":0},{"$f":"Kostenverzamelstaat!K54-Kostenverzamelstaat!L54","v":0},{"$f":"Kostenverzamelstaat!I54-Kostenverzamelstaat!J54","v":0}]
[null,null,null," 560.1 Kosten mondzorg volwassen verzekerden",null,null,null,null,null,{"$f":"Kostenverzamelstaat!M32-Kostenverzamelstaat!O32","v":0},{"$f":"Kostenverzamelstaat!K32-Kostenverzamelstaat!L32","v":0},{"$f":"Kostenverzamelstaat!I32-Kostenverzamelstaat!J32","v":0}]
[null,null,null," 560.2 Kosten mondzorg jeugdige verzekerden",null,null,null,null,null,{"$f":"Kostenverzamelstaat!M33-Kostenverzamelstaat!O33","v":0},{"$f":"Kostenverzamelstaat!K33-Kostenverzamelstaat!L33","v":0},{"$f":"Kostenverzamelstaat!I33-Kostenverzamelstaat!J33","v":0}]
[null,null,null," 561 Kosten gebitsprothesen",null,null,null,null,null,{"$f":"Kostenverzamelstaat!M34-Kostenverzamelstaat!O34","v":0},{"$f":"Kostenverzamelstaat!K34-Kostenverzamelstaat!L34","v":0},{"$f":"Kostenverzamelstaat!I34-Kostenverzamelstaat!J34","v":0}]
[null,null,null," 580 Kosten verloskundige zorg door verloskundigen",null,null,null,null,null,{"$f":"Kostenverzamelstaat!M37-Kostenverzamelstaat!O37","v":0},{"$f":"Kostenverzamelstaat!K37-Kostenverzamelstaat!L37","v":0},{"$f":"Kostenverzamelstaat!I37-Kostenverzamelstaat!J37","v":0}]
[null,null,null," 582 Kosten Integrale geboortezorg ",null,null,null,null,null,{"$f":"Kostenverzamelstaat!M38-Kostenverzamelstaat!O38","v":0},{"$f":"Kostenverzamelstaat!K38-Kostenverzamelstaat!L38","v":0},{"$f":"Kostenverzamelstaat!I38-Kostenverzamelstaat!J38","v":0}]
[null,null,null," 610.1  NTS",null,null,null,null,null,{"$f":"Kostenverzamelstaat!M55-Kostenverzamelstaat!O55","v":0},{"$f":"Kostenverzamelstaat!K55-Kostenverzamelstaat!L55","v":0},{"$f":"Kostenverzamelstaat!I55-Kostenverzamelstaat!J55","v":0}]
[null,null,null," 610.2  Eerstelijnsdiagnostiek aangevraagd door eerstelijnszorg-aanbieders geleverd door huisartsenlaboratoria en Trombosediensten",null,null,null,null,null,{"$f":"Kostenverzamelstaat!M56-Kostenverzamelstaat!O56","v":0},{"$f":"Kostenverzamelstaat!K56-Kostenverzamelstaat!L56","v":0},{"$f":"Kostenverzamelstaat!I56-Kostenverzamelstaat!J56","v":0}]
[null,null,null," 611 Overige zorgproducten",null,null,null,null,null,{"$f":"Kostenverzamelstaat!M57-Kostenverzamelstaat!O57","v":0},{"$f":"Kostenverzamelstaat!K57-Kostenverzamelstaat!L57","v":0},{"$f":"Kostenverzamelstaat!I57-Kostenverzamelstaat!J57","v":0}]
[null,null,null," 612.1 Kosten add-ons - Dure geneesmiddelen",null,null,null,null,null,{"$f":"Kostenverzamelstaat!M58-Kostenverzamelstaat!O58","v":0},{"$f":"Kostenverzamelstaat!K58-Kostenverzamelstaat!L58","v":0},{"$f":"Kostenverzamelstaat!I58-Kostenverzamelstaat!J58","v":0}]
[null,null,null," 612.2 Kosten add-ons - IC",null,null,null,null,null,{"$f":"(Kostenverzamelstaat!M59)-(Kostenverzamelstaat!O59)","v":0},{"$f":"Kostenverzamelstaat!K59-Kostenverzamelstaat!L59","v":0},{"$f":"Kostenverzamelstaat!I59-Kostenverzamelstaat!J59","v":0}]
[null,null,null," 613.1 Integrale kosten van DBC-zorgproduct gereguleerde segment ",null,null,null,null,null,{"$f":"(Kostenverzamelstaat!M60)-(Kostenverzamelstaat!O60)","v":0},{"$f":"Kostenverzamelstaat!K60-Kostenverzamelstaat!L60","v":0},{"$f":"Kostenverzamelstaat!I60-Kostenverzamelstaat!J60","v":0}]
[null,null,null," 615.1 Integrale kosten van DBC-zorgproduct vrije segment",null,null,null,null,null,{"$f":"(Kostenverzamelstaat!M61)-(Kostenverzamelstaat!O61)","v":0},{"$f":"Kostenverzamelstaat!K61-Kostenverzamelstaat!L61","v":0},{"$f":"Kostenverzamelstaat!I61-Kostenverzamelstaat!J61","v":0}]
[null,null,null," 619 Integrale kosten extramuraal werkende specialisten",null,null,null,null,null,{"$f":"Kostenverzamelstaat!M62-Kostenverzamelstaat!O62","v":0},{"$f":"Kostenverzamelstaat!K62-Kostenverzamelstaat!L62","v":0}]
[null,null,null," 806.2  Meerkosten COVID-19, toeslagen",null,null,null,null,null,{"$f":"Kostenverzamelstaat!M63-Kostenverzamelstaat!O63","v":0}]
[null,null,null," 620 Kosten fysiotherapie",null,null,null,null,null,{"$f":"(Kostenverzamelstaat!M66)-(Kostenverzamelstaat!O66)","v":0},{"$f":"Kostenverzamelstaat!K66-Kostenverzamelstaat!L66","v":0},{"$f":"Kostenverzamelstaat!I66-Kostenverzamelstaat!J66","v":0}]
[null,null,null," 621 Kosten oefentherapie Mensendieck/Cesar",null,null,null,null,null,{"$f":"(Kostenverzamelstaat!M67)-(Kostenverzamelstaat!O67)","v":0},{"$f":"Kostenverzamelstaat!K67-Kostenverzamelstaat!L67","v":0},{"$f":"Kostenverzamelstaat!I67-Kostenverzamelstaat!J67","v":0}]
[null,null,null," 623 Kosten logopedie",null,null,null,null,null,{"$f":"(Kostenverzamelstaat!M68)-(Kostenverzamelstaat!O68)","v":0},{"$f":"Kostenverzamelstaat!K68-Kostenverzamelstaat!L68","v":0},{"$f":"Kostenverzamelstaat!I68-Kostenverzamelstaat!J68","v":0}]
[null,null,null,{"$f":"NOW()","v":"2024-12-16T16:05:05.210"},null,null,null,null,null,null,null,{"$f":"CONCATENATE(\"Controleoverzicht \",LOWER(A6))","v":"Controleoverzicht pagina 1"}]
[]
["Pagina 2",null,null,{"$f":"CONCATENATE(\"KWARTAALSTAAT ZVW \", jaar_id,\" \",kwartaal_id,\"E KWARTAAL\")","v":"KWARTAALSTAAT ZVW 2025 2E KWARTAAL"}]
[null,null,null,"CONTROLEOVERZICHT"]
[null,null,null,{"$f":"IF(naw_uzovi_zorgverzekeraar<>\"0000\",CONCATENATE(UPPER(naw_naam_zorgverzekeraar),\", \",UPPER(naw_plaats_zorgverzekeraar)),\"\")","v":""},null,null,null,null,null,null,null,{"$f":"CONCATENATE(\"UZOVI: \",naw_uzovi_zorgverzekeraar)","v":"UZOVI: 0000"}]
[null,null,null,"SPECIFIEKE INFORMATIE A - vervolg"]
[null,null,null," KOSTENVERZAMELSTAAT",null,null,null,null,null,{"$f":"CONCATENATE(\"Kosten balanspost  \", jaar_id-2)","v":"Kosten balanspost  2023"},{"$f":"CONCATENATE(\"Kosten balanspost  \", jaar_id-1)","v":"Kosten balanspost  2024"},{"$f":"CONCATENATE(\"Kosten balanspost  \", jaar_id)","v":"Kosten balanspost  2025"}]
[]
[null,null,null," 624 Kosten ergotherapie",null,null,null,null,null,{"$f":"(Kostenverzamelstaat!M69)-(Kostenverzamelstaat!O69)","v":0},{"$f":"Kostenverzamelstaat!K69-Kostenverzamelstaat!L69","v":0},{"$f":"Kostenverzamelstaat!I69-Kostenverzamelstaat!J69","v":0}]
[null,null,null," 625 Kosten dieetadvisering ",null,null,null,null,null,{"$f":"(Kostenverzamelstaat!M70)-(Kostenverzamelstaat!O70)","v":0},{"$f":"Kostenverzamelstaat!K70-Kostenverzamelstaat!L70","v":0},{"$f":"Kostenverzamelstaat!I70-Kostenverzamelstaat!J70","v":0}]
[null,null,null," 626 Gecombineerde Leefstijl Interventie (GLI)",null,null,null,null,null,{"$f":"Kostenverzamelstaat!M71-Kostenverzamelstaat!O71","v":0},{"$f":"Kostenverzamelstaat!K71-Kostenverzamelstaat!L71","v":0},{"$f":"Kostenverzamelstaat!I71-Kostenverzamelstaat!J71","v":0}]
[null,null,null," 640 Hulpmiddelenzorg",null,null,null,null,null,{"$f":"Kostenverzamelstaat!M74-Kostenverzamelstaat!O74","v":0},{"$f":"Kostenverzamelstaat!K74-Kostenverzamelstaat!L74","v":0},{"$f":"Kostenverzamelstaat!I74-Kostenverzamelstaat!J74","v":0}]
[null,null,null," 650 Kosten vervoer per ambulance/helikopter",null,null,null,null,null,{"$f":"(Kostenverzamelstaat!M77)-(Kostenverzamelstaat!O77)","v":0},{"$f":"Kostenverzamelstaat!K77-Kostenverzamelstaat!L77","v":0},{"$f":"Kostenverzamelstaat!I77-Kostenverzamelstaat!J77","v":0}]
[null,null,null," 650.1 Opbrengstenverrekeningen regionale ambulancevoorzieningen",null,null,null,null,null,{"$f":"Kostenverzamelstaat!M78-Kostenverzamelstaat!O78","v":0},{"$f":"Kostenverzamelstaat!K78-Kostenverzamelstaat!L78","v":0},{"$f":"Kostenverzamelstaat!I78-Kostenverzamelstaat!J78","v":0}]
[null,null,null," 651 Kosten vervoer per openbaar vervoer, taxi en eigen auto",null,null,null,null,null,{"$f":"Kostenverzamelstaat!M79-Kostenverzamelstaat!O79","v":0},{"$f":"Kostenverzamelstaat!K79-Kostenverzamelstaat!L79","v":0},{"$f":"Kostenverzamelstaat!I79-Kostenverzamelstaat!J79","v":0}]
[null,null,null," 666 1.1 Kosten consulten GGZ",null,null,null,null,null,{"$f":"Kostenverzamelstaat!M95-Kostenverzamelstaat!O95","v":0},{"$f":"Kostenverzamelstaat!K95-Kostenverzamelstaat!L95","v":0},{"$f":"Kostenverzamelstaat!I95-Kostenverzamelstaat!J95","v":0}]
[null,null,null," 667 Kosten intramuraal verblijf GGZ",null,null,null,null,null,{"$f":"Kostenverzamelstaat!M96-Kostenverzamelstaat!O96","v":0},{"$f":"Kostenverzamelstaat!K96-Kostenverzamelstaat!L96","v":0},{"$f":"Kostenverzamelstaat!I96-Kostenverzamelstaat!J96","v":0}]
[null,null,null," 668 overige prestaties GGZ",null,null,null,null,null,{"$f":"Kostenverzamelstaat!M97-Kostenverzamelstaat!O97","v":0},{"$f":"Kostenverzamelstaat!K97-Kostenverzamelstaat!L97","v":0},{"$f":"Kostenverzamelstaat!I97-Kostenverzamelstaat!J97","v":0}]
[null,null,null," 670 Geriatrische revalidatiezorg",null,null,null,null,null,{"$f":"(Kostenverzamelstaat!M100)-(Kostenverzamelstaat!O100)","v":0},{"$f":"Kostenverzamelstaat!K100-Kostenverzamelstaat!L100","v":0},{"$f":"Kostenverzamelstaat!I100-Kostenverzamelstaat!J100","v":0}]
[null,null,null," 671 Eerstelijnsverblijf (ELV)",null,null,null,null,null,{"$f":"(Kostenverzamelstaat!M101)-(Kostenverzamelstaat!O101)","v":0},{"$f":"Kostenverzamelstaat!K101-Kostenverzamelstaat!L101","v":0},{"$f":"Kostenverzamelstaat!I101-Kostenverzamelstaat!J101","v":0}]
[null,null,null," 672 Geneeskundige  Zorg Specifieke Patiëntgroepen (GZSP)",null,null,null,null,null,{"$f":"Kostenverzamelstaat!M102-Kostenverzamelstaat!O102","v":0},{"$f":"Kostenverzamelstaat!K102-Kostenverzamelstaat!L102","v":0},{"$f":"Kostenverzamelstaat!I102-Kostenverzamelstaat!J102","v":0}]
[null,null,null," 680 Kraamzorg",null,null,null,null,null,{"$f":"Kostenverzamelstaat!M105-Kostenverzamelstaat!O105","v":0},{"$f":"Kostenverzamelstaat!K105-Kostenverzamelstaat!L105","v":0},{"$f":"Kostenverzamelstaat!I105-Kostenverzamelstaat!J105","v":0}]
[null,null,null," 700 Overige kosten",null,null,null,null,null,{"$f":"Kostenverzamelstaat!M108-Kostenverzamelstaat!O108","v":0},{"$f":"Kostenverzamelstaat!K108-Kostenverzamelstaat!L108","v":0},{"$f":"Kostenverzamelstaat!I108-Kostenverzamelstaat!J108","v":0}]
[null,null,null," 701 Overige geneeskundige zorg",null,null,null,null,null,{"$f":"Kostenverzamelstaat!M109-Kostenverzamelstaat!O109","v":0},{"$f":"Kostenverzamelstaat!K109-Kostenverzamelstaat!L109","v":0},{"$f":"Kostenverzamelstaat!L109-Kostenverzamelstaat!M109","v":0}]
[null,null,null," 702 Kosten van zorg zintuiglijk gehandicapten ",null,null,null,null,null,{"$f":"Kostenverzamelstaat!M110-Kostenverzamelstaat!O110","v":0},{"$f":"Kostenverzamelstaat!K110-Kostenverzamelstaat!L110","v":0},{"$f":"Kostenverzamelstaat!L110-Kostenverzamelstaat!M110","v":0}]
[null,null,null," 703 Transformatiemiddelen IZA",null,null,null,null,null,{"$f":"Kostenverzamelstaat!M111-Kostenverzamelstaat!O111","v":0},{"$f":"Kostenverzamelstaat!K111-Kostenverzamelstaat!L111","v":0},{"$f":"Kostenverzamelstaat!I111-Kostenverzamelstaat!J111","v":0}]
[null,null,null," 720 Kosten via verzekeraar",null,null,null,null,null,{"$f":"Kostenverzamelstaat!M114-Kostenverzamelstaat!O114","v":0},{"$f":"Kostenverzamelstaat!K114-Kostenverzamelstaat!L114","v":0},{"$f":"Kostenverzamelstaat!I114-Kostenverzamelstaat!J114","v":0}]
[null,null,null," 721 Kosten via verbindingsorgaan",null,null,null,null,null,{"$f":"Kostenverzamelstaat!M115-Kostenverzamelstaat!O115","v":0},{"$f":"Kostenverzamelstaat!K115-Kostenverzamelstaat!L115","v":0},{"$f":"Kostenverzamelstaat!I115-Kostenverzamelstaat!J115","v":0}]
[null,null,null," 730 Kwaliteitsgelden",null,null,null,null,null,{"$f":"Kostenverzamelstaat!M118-Kostenverzamelstaat!O118","v":0},{"$f":"Kostenverzamelstaat!K118-Kostenverzamelstaat!L118","v":0},{"$f":"Kostenverzamelstaat!I118-Kostenverzamelstaat!J118","v":0}]
[]
[null,null,null,"VERGELIJKING SPECIFIEKE INFORMATIE A EN C"]
[null,null,null,"KOSTEN PER CODENUMMER\n(ONTVANGEN EN GEACCEPTEERDE DECLARATIES) 2024",null,null,null,null,null,"Spec. inform. A\nkostenver-\nzamelstaat","Spec. inform. C\ndetail-\ninformatie","VERSCHIL"]
[]
[null,null,null," 610.2  Eerstelijnsdiagnostiek aangevraagd door eerstelijnszorg-aanbieders geleverd door huisartsenlaboratoria en Trombosediensten",null,null,null,null,null,{"$f":"Kostenverzamelstaat!J56","v":0},{"$f":"'Specifieke informatie C'!H$17","v":0},{"$f":"J82-K82","v":0}]
[null,null,null," 611 Overige zorgproducten (naar instelling)",null,null,null,null,null,{"$f":"Kostenverzamelstaat!J57","v":0},{"$f":"'Specifieke informatie C'!H$26","v":0},{"$f":"J83-K83","v":0}]
[null,null,null," 612.1 Kosten add-ons - Dure geneesmiddelen",null,null,null,null,null,{"$f":"Kostenverzamelstaat!J58","v":0},{"$f":"'Specifieke informatie C'!H$35","v":0},0]
[null,null,null," 612.2  Kosten add-ons - IC",null,null,null,null,null,{"$f":"Kostenverzamelstaat!J59","v":0},{"$f":"'Specifieke informatie C'!H$52","v":0},0]
[null,null,null," 613.1 Integrale kosten DBC-zorgproduct gereguleerd segment",null,null,null,null,null,{"$f":"Kostenverzamelstaat!J60","v":0},{"$f":"'Specifieke informatie C'!H$61","v":0},0]
[null,null,null," 615.1 Integrale kosten DBC-zorgproduct vrije segment",null,null,null,null,null,{"$f":"Kostenverzamelstaat!J61","v":0},{"$f":"'Specifieke informatie C'!H$70","v":0},0]
[]
[null,null,null,{"$f":"NOW()","v":"2024-12-16T16:05:05.220"},null,null,null,null,null,null,null,{"$f":"CONCATENATE(\"Controleoverzicht \",LOWER(A51))","v":"Controleoverzicht pagina 2"}]
[]
["Pagina 3",null,null,{"$f":"CONCATENATE(\"KWARTAALSTAAT ZVW \", jaar_id,\" \",kwartaal_id,\"E KWARTAAL\")","v":"KWARTAALSTAAT ZVW 2025 2E KWARTAAL"}]
[null,null,null,"CONTROLEOVERZICHT"]
[null,null,null,{"$f":"IF(naw_uzovi_zorgverzekeraar<>\"0000\",CONCATENATE(UPPER(naw_naam_zorgverzekeraar),\", \",UPPER(naw_plaats_zorgverzekeraar)),\"\")","v":""},null,null,null,null,null,null,null,{"$f":"CONCATENATE(\"UZOVI: \",naw_uzovi_zorgverzekeraar)","v":"UZOVI: 0000"}]
[]
[null,null,null,"VERGELIJKING SPECIFIEKE INFORMATIE A EN C - vervolg"]
[null,null,null," KOSTEN PER CODENUMMER (KOSTEN INCLUSIEF BALANSPOST) 2024",null,null,null,null,null,"Spec. inform. A\nkostenver-\nzamelstaat","Spec. inform. C\ndetail-\ninformatie","VERSCHIL"]
[]
[null,null,null," 610.2  Eerstelijnsdiagnostiek aangevraagd door eerstelijnszorg-aanbieders geleverd door huisartsenlaboratoria en Trombosediensten",null,null,null,null,null,{"$f":"Kostenverzamelstaat!I56","v":0},{"$f":"'Specifieke informatie C'!G$17","v":0},{"$f":"J98-K98","v":0}]
[null,null,null," 611 Overige zorgproducten (naar instelling)",null,null,null,null,null,{"$f":"Kostenverzamelstaat!I57","v":0},{"$f":"'Specifieke informatie C'!G$26","v":0},{"$f":"J99-K99","v":0}]
[null,null,null," 612.1 Kosten add-ons - Dure geneesmiddelen",null,null,null,null,null,{"$f":"Kostenverzamelstaat!I58","v":0},{"$f":"'Specifieke informatie C'!G$35","v":0},0]
[null,null,null," 612.2  Kosten add-ons - IC",null,null,null,null,null,{"$f":"Kostenverzamelstaat!I59","v":0},{"$f":"'Specifieke informatie C'!G$52","v":0},0]
[null,null,null," 613.1 Integrale kosten DBC-zorgproduct gereguleerd segment",null,null,null,null,null,{"$f":"Kostenverzamelstaat!I60","v":0},{"$f":"'Specifieke informatie C'!G$61","v":0},0]
[null,null,null," 615.1 Integrale kosten DBC-zorgproduct vrije segment",null,null,null,null,null,{"$f":"Kostenverzamelstaat!I61","v":0},{"$f":"'Specifieke informatie C'!G$70","v":0},0]
[]
[null,null,null,"KOSTEN PER CODENUMMER \n(ONTVANGEN EN GEACCEPTEERDE DECLARATIES) 2023\n",null,null,null,null,null,"Spec. inform. A\nkostenver-\nzamelstaat","Spec. inform. C\ndetail-\ninformatie","VERSCHIL"]
[]
[null,null,null," 610.2  Eerstelijnsdiagnostiek aangevraagd door eerstelijnszorg-aanbieders geleverd door huisartsenlaboratoria en Trombosediensten",null,null,null,null,null,{"$f":"Kostenverzamelstaat!L56","v":0},{"$f":"'Specifieke informatie C'!J$17","v":0},{"$f":"J107-K107","v":0}]
[null,null,null," 611 Overige zorgproducten (naar instelling)",null,null,null,null,null,{"$f":"Kostenverzamelstaat!L$57","v":0},{"$f":"'Specifieke informatie C'!J$26","v":0},{"$f":"J108-K108","v":0}]
[null,null,null," 612.1 Kosten add-ons - Dure geneesmiddelen",null,null,null,null,null,{"$f":"Kostenverzamelstaat!L$58","v":0},{"$f":"'Specifieke informatie C'!J$35","v":0},0]
[null,null,null," 612.2  Kosten add-ons - IC",null,null,null,null,null,{"$f":"Kostenverzamelstaat!L$59","v":0},{"$f":"'Specifieke informatie C'!J$52","v":0},0]
[null,null,null," 613.1 Integrale kosten DBC-zorgproduct gereguleerd segment",null,null,null,null,null,{"$f":"Kostenverzamelstaat!L$60","v":0},{"$f":"'Specifieke informatie C'!J$61","v":0},0]
[null,null,null," 615.1 Integrale kosten DBC-zorgproduct vrije segment",null,null,null,null,null,{"$f":"Kostenverzamelstaat!L$61","v":0},{"$f":"'Specifieke informatie C'!J$70","v":0},0]
[]
[null,null,null,{"$f":"NOW()","v":"2024-12-16T16:05:05.220"},null,null,null,null,null,null,null,{"$f":"CONCATENATE(\"Controleoverzicht \",LOWER(A91))","v":"Controleoverzicht pagina 3"}]
[]
["Pagina 4",null,null,{"$f":"CONCATENATE(\"KWARTAALSTAAT ZVW \", jaar_id,\" \",kwartaal_id,\"E KWARTAAL\")","v":"KWARTAALSTAAT ZVW 2025 2E KWARTAAL"}]
[null,null,null,"CONTROLEOVERZICHT"]
[null,null,null,{"$f":"IF(naw_uzovi_zorgverzekeraar<>\"0000\",CONCATENATE(UPPER(naw_naam_zorgverzekeraar),\", \",UPPER(naw_plaats_zorgverzekeraar)),\"\")","v":""},null,null,null,null,null,null,null,{"$f":"CONCATENATE(\"UZOVI: \",naw_uzovi_zorgverzekeraar)","v":"UZOVI: 0000"}]
[null,null,null,"VERGELIJKING SPECIFIEKE INFORMATIE A EN C - vervolg"]
[null,null,null," KOSTEN PER CODENUMMER (KOSTEN INCLUSIEF BALANSPOST) 2023",null,null,null,null,null,"Spec. inform. A\nkostenver-\nzamelstaat","Spec. inform. C\ndetail-\ninformatie","VERSCHIL"]
[]
[null,null,null," 610.2  Eerstelijnsdiagnostiek aangevraagd door eerstelijnszorg-aanbieders geleverd door huisartsenlaboratoria en Trombosediensten",null,null,null,null,null,{"$f":"Kostenverzamelstaat!K56","v":0},{"$f":"'Specifieke informatie C'!I$17","v":0},{"$f":"J122-K122","v":0}]
[null,null,null," 611 Overige zorgproducten (naar instelling)",null,null,null,null,null,{"$f":"Kostenverzamelstaat!K$57","v":0},{"$f":"'Specifieke informatie C'!I$26","v":0},{"$f":"J123-K123","v":0}]
[null,null,null," 612.1 Kosten add-ons - Dure geneesmiddelen",null,null,null,null,null,{"$f":"Kostenverzamelstaat!K$58","v":0},{"$f":"'Specifieke informatie C'!I$35","v":0},0]
[null,null,null," 612.2  Kosten add-ons - IC",null,null,null,null,null,{"$f":"Kostenverzamelstaat!K$59","v":0},{"$f":"'Specifieke informatie C'!I$52","v":0},0]
[null,null,null," 613.1 Integrale kosten DBC-zorgproduct gereguleerd segment",null,null,null,null,null,{"$f":"Kostenverzamelstaat!K$60","v":0},{"$f":"'Specifieke informatie C'!I$61","v":0},0]
[null,null,null," 615.1 Integrale kosten DBC-zorgproduct vrije segment",null,null,null,null,null,{"$f":"Kostenverzamelstaat!K$61","v":0},{"$f":"'Specifieke informatie C'!I$70","v":0},0]
[]
[null,null,null,"KOSTEN PER CODENUMMER \n(ONTVANGEN EN GEACCEPTEERDE DECLARATIES \n M.B.T. 2022 EN OUDER)",null,null,null,null,null,"Spec. inform. A\nkostenver-\nzamelstaat","Spec. inform. C\ndetail-\ninformatie","VERSCHIL"]
[]
[null,null,null," 611 Overige zorgproducten (naar instelling)",null,null,null,null,null,{"$f":"Kostenverzamelstaat!O57","v":0},{"$f":"'Specifieke informatie C'!L$26","v":0},{"$f":"J131-K131","v":0}]
[null,null,null," 612.1 Kosten add-ons - Dure geneesmiddelen",null,null,null,null,null,{"$f":"Kostenverzamelstaat!O58","v":0},{"$f":"'Specifieke informatie C'!L$35","v":0},0]
[null,null,null," 612.2  Kosten add-ons - IC",null,null,null,null,null,{"$f":"Kostenverzamelstaat!O59","v":0},{"$f":"'Specifieke informatie C'!L$52","v":0},0]
[null,null,null," 613.1 Integrale kosten DBC-zorgproduct gereguleerd segment",null,null,null,null,null,{"$f":"Kostenverzamelstaat!O60","v":0},{"$f":"'Specifieke informatie C'!L$61","v":0},0]
[null,null,null," 615.1 Integrale kosten DBC-zorgproduct vrije segment",null,null,null,null,null,{"$f":"Kostenverzamelstaat!O61","v":0},{"$f":"'Specifieke informatie C'!L$70","v":0},0]
[]
[null,null,null," KOSTEN PER CODENUMMER \n (KOSTEN INCLUSIEF BALANSPOST) M.B.T. 2022 EN OUDER",null,null,null,null,null,"Spec. inform. A\nkostenver-\nzamelstaat","Spec. inform. C\ndetail-\ninformatie","VERSCHIL"]
[]
[null,null,null," 611 Overige zorgproducten (naar instelling)",null,null,null,null,null,{"$f":"Kostenverzamelstaat!M57","v":0},{"$f":"'Specifieke informatie C'!K$26","v":0},{"$f":"J139-K139","v":0}]
[null,null,null," 612.1 Kosten add-ons - Dure geneesmiddelen",null,null,null,null,null,{"$f":"Kostenverzamelstaat!M58","v":0},{"$f":"'Specifieke informatie C'!K$35","v":0},0]
[null,null,null," 612.2  Kosten add-ons - IC",null,null,null,null,null,{"$f":"Kostenverzamelstaat!M59","v":0},{"$f":"'Specifieke informatie C'!K$52","v":0},0]
[null,null,null," 613.1 Integrale kosten DBC-zorgproduct gereguleerd segment",null,null,null,null,null,{"$f":"Kostenverzamelstaat!M60","v":0},{"$f":"'Specifieke informatie C'!K$61","v":0},0]
[null,null,null," 615.1 Integrale kosten DBC-zorgproduct vrije segment",null,null,null,null,null,{"$f":"Kostenverzamelstaat!M61","v":0},{"$f":"'Specifieke informatie C'!K$70","v":0},0]
[]
[null,null,null," Controle code 505 kostenverzamelstaat",null,null,null,null,null,null,null,{"$f":"Kostenverzamelstaat!J18","v":0}]
[null,null,null," Kosten per verzekerde o.b.v. laatst bekende verzekerdenstand (in hele euro's)",null,null,null,null,null,null,null,{"$f":"IF(L145<>0,(L145/J11),0)","v":0}]
[null,null,null,{"$f":"IF(OR(L146>kwartaal_id*112),\"Attentiebericht: Kosten per verzekerde liggen buiten het verwachte bereik. Controleer de kostenverzamelstaat!\",\"\")","v":""}]
[]
[null,null,null,"VERGELIJKING SPECIFIEKE INFORMATIE A EN C (Contractinformatie)"]
[null,null,null," KOSTEN PER RUBRIEK OF CODENUMMER \n (KOSTEN INCLUSIEF BALANSPOST) 2024",null,null,null,null,null,"Spec. inform. A\nkostenver-\nzamelstaat","Spec. inform. C\ncontract-\ninformatie","VERSCHIL"]
[]
[null,null,null," Huisartsenzorg en Multidisciplinaire Zorg, rubriek 01",null,null,null,null,null,{"$f":"Kostenverzamelstaat!I24","v":0},{"$f":"Contractinformatie!K22","v":0},{"$f":"J152-K152","v":0}]
[null,null,null," Verpleging en Verzorging, rubriek 03",null,null,null,null,null,{"$f":"Kostenverzamelstaat!I30","v":0},{"$f":"Contractinformatie!K30","v":0},0]
[null,null,null," Medisch Specialistische zorg, rubriek 06",null,null,null,null,null,{"$f":"Kostenverzamelstaat!I64","v":0},{"$f":"Contractinformatie!K41","v":0},{"$f":"J154-K154","v":0}]
[null,null,null," Geneeskundige Geestelijke Gezondheidszorg, rubriek 10",null,null,null,null,null,{"$f":"Kostenverzamelstaat!I98","v":0},{"$f":"Contractinformatie!K62","v":0},{"$f":"J155-K155","v":0}]
[null,null,null," Zintuiglijk Gehandicapten, code 702",null,null,null,null,null,{"$f":"Kostenverzamelstaat!I110","v":0},{"$f":"Contractinformatie!K72","v":0},{"$f":"J156-K156","v":0}]
[null,null,null,"Geriatrische Revalidatie, Eerstelijnsverblijf en Geneeskundige zorg specifieke patinetgroepen, rubriek 11",null,null,null,null,null,{"$f":"Kostenverzamelstaat!I103","v":0},{"$f":"Contractinformatie!K91","v":0},{"$f":"J157-K157","v":0}]
[null,null,null,{"$f":"NOW()","v":"2024-12-16T16:05:05.220"},null,null,null,null,null,null,null,{"$f":"CONCATENATE(\"Controleoverzicht \",LOWER(A116))","v":"Controleoverzicht pagina 4"}]

{"sheet":"Blad1","index":11,"n_rows":591,"n_cols":17,"rows_kept":591,"cut":false,"hidden":true,"merged":[]}
[]
[]
[]
[]
[]
[]
[]
[]
[]
[]
[]
[null,null,null,null,"vcd_spec_idvar","vcd_waarde_flt","vcd_waarde_txt","vcd_toelichting_txt","vcd_spec1_idvar","vcd_spec2_idvar","vcd_spec3_idvar","vcd_attrib_idvar","vcd_eenheid_txt","vcd_dsnorder_flt","vcd_datatype_txt","vcd_format_txt","vcd_eenheid_flt"]
[null,null,null,null,"xstaat_kdrwet_id_","*=0","ZVQ2","Excel numeriek om te zetten sleutel kdrwet via waarden","xstaat","kdrwet","id","","",null,"C",""]
[null,null,null,null,"xstaat_kdrwet_idjmd_","*=0",20250630,"Excel numeriek om te zetten sleutel kdrwet periode","xstaat","kdrwet","idjmd","","",null,"C",""]
[null,null,null,null,"xstaat_uzovi_filename_","*=0","*=@CEL(\"bestandsnaam\")","Excel numeriek filenaam bevat ook sleutels","xstaat","uzovi","filename","","",null,"C",""]
[null,null,null,null,"xstaat_uzovi_id_","*=0","*=NUMERIEKE.WAARDE(NAW_gegevens!$C$6)","Excel numeriek om te zetten sleutel uzovi","xstaat","uzovi","id","","",null,"C",""]
[null,null,null,null,"xstaat_uzovi_idvrs_","*=0","01","Excel numeriek om te zetten sleutel uzovi versie levering","xstaat","uzovi","idvrs","","",null,"C",""]
[null,null,null,null,"zvkx01_c503__TY0V01","*=Kostenverzamelstaat!$I$16","","Huisartsen- bijz betalingen- incl balans","zvkx01","c503","","TY0V01","Euro's",null,"N","",1]
[null,null,null,null,"zvkx01_a503__TY0V01","*=Kostenverzamelstaat!$J$16","","Huisartsen- bijz betalingen- geaccepteerd","zvkx01","a503","","TY0V01","Euro's",null,"N","",1]
[null,null,null,null,"zvkx01_c503__TY1V01","*=Kostenverzamelstaat!$K$16","","Huisartsen- bijz betalingen- incl balans","zvkx01","c503","","TY1V01","Euro's",null,"N","",1]
[null,null,null,null,"zvkx01_a503__TY1V01","*=Kostenverzamelstaat!$L$16","","Huisartsen- bijz betalingen- geaccepteerd","zvkx01","a503","","TY1V01","Euro's",null,"N","",1]
[null,null,null,null,"zvkx01_c503__TY2V01","*=Kostenverzamelstaat!$M$16","","Huisartsen- bijz betalingen- incl balans","zvkx01","c503","","TY2V01","Euro's",null,"N","",1]
[null,null,null,null,"zvkx01_a503__TY2V01","*=Kostenverzamelstaat!$N$16","","Huisartsen- bijz betalingen- geaccepteerd","zvkx01","a503","","TY2V01","Euro's",null,"N","",1]
[null,null,null,null,"zvkx01_a503__TY3V01","*=Kostenverzamelstaat!$O$16","","Huisartsen- bijz betalingen- geaccepteerd","zvkx01","a503","","TY3V01","Euro's",null,"N","",1]
[null,null,null,null,"zvkx01_c504__TY0V01","*=Kostenverzamelstaat!$I$17","","Huisartsen- bijz diensttijden- incl balans","zvkx01","c504","","TY0V01","Euro's",null,"N","",1]
[null,null,null,null,"zvkx01_a504__TY0V01","*=Kostenverzamelstaat!$J$17","","Huisartsen- bijz diensttijden- geaccepteerd","zvkx01","a504","","TY0V01","Euro's",null,"N","",1]
[null,null,null,null,"zvkx01_c504__TY1V01","*=Kostenverzamelstaat!$K$17","","Huisartsen- bijz diensttijden- incl balans","zvkx01","c504","","TY1V01","Euro's",null,"N","",1]
[null,null,null,null,"zvkx01_a504__TY1V01","*=Kostenverzamelstaat!$L$17","","Huisartsen- bijz diensttijden- geaccepteerd","zvkx01","a504","","TY1V01","Euro's",null,"N","",1]
[null,null,null,null,"zvkx01_c504__TY2V01","*=Kostenverzamelstaat!$M$17","","Huisartsen- bijz diensttijden- incl balans","zvkx01","c504","","TY2V01","Euro's",null,"N","",1]
[null,null,null,null,"zvkx01_a504__TY2V01","*=Kostenverzamelstaat!$N$17","","Huisartsen- bijz diensttijden- geaccepteerd","zvkx01","a504","","TY2V01","Euro's",null,"N","",1]
[null,null,null,null,"zvkx01_a504__TY3V01","*=Kostenverzamelstaat!$O$17","","Huisartsen- bijz diensttijden- geaccepteerd","zvkx01","a504","","TY3V01","Euro's",null,"N","",1]
[null,null,null,null,"zvkx01_c505__TY0V01","*=Kostenverzamelstaat!$I$18","","Huisartsen- Inschrijvingen- incl balans","zvkx01","c505","","TY0V01","Euro's",null,"N","",1]
[null,null,null,null,"zvkx01_a505__TY0V01","*=Kostenverzamelstaat!$J$18","","Huisartsen- Inschrijvingen- geaccepteerd","zvkx01","a505","","TY0V01","Euro's",null,"N","",1]
[null,null,null,null,"zvkx01_c505__TY1V01","*=Kostenverzamelstaat!$K$18","","Huisartsen- Inschrijvingen- incl balans","zvkx01","c505","","TY1V01","Euro's",null,"N","",1]
[null,null,null,null,"zvkx01_a505__TY1V01","*=Kostenverzamelstaat!$L$18","","Huisartsen- Inschrijvingen- geaccepteerd","zvkx01","a505","","TY1V01","Euro's",null,"N","",1]
[null,null,null,null,"zvkx01_c505__TY2V01","*=Kostenverzamelstaat!$M$18","","Huisartsen- Inschrijvingen- incl balans","zvkx01","c505","","TY2V01","Euro's",null,"N","",1]
[null,null,null,null,"zvkx01_a505__TY2V01","*=Kostenverzamelstaat!$N$18","","Huisartsen- Inschrijvingen- geaccepteerd","zvkx01","a505","","TY2V01","Euro's",null,"N","",1]
[null,null,null,null,"zvkx01_a505__TY3V01","*=Kostenverzamelstaat!$O$18","","Huisartsen- Inschrijvingen- geaccepteerd","zvkx01","a505","","TY3V01","Euro's",null,"N","",1]
[null,null,null,null,"zvkx01_c506__TY0V01","*=Kostenverzamelstaat!$I$19","","Huisartsen- Consult- incl balans","zvkx01","c506","","TY0V01","Euro's",null,"N","",1]
[null,null,null,null,"zvkx01_a506__TY0V01","*=Kostenverzamelstaat!$J$19","","Huisartsen- Consult- geaccepteerd","zvkx01","a506","","TY0V01","Euro's",null,"N","",1]
[null,null,null,null,"zvkx01_c506__TY1V01","*=Kostenverzamelstaat!$K$19","","Huisartsen- Consult- incl balans","zvkx01","c506","","TY1V01","Euro's",null,"N","",1]
[null,null,null,null,"zvkx01_a506__TY1V01","*=Kostenverzamelstaat!$L$19","","Huisartsen- Consult- geaccepteerd","zvkx01","a506","","TY1V01","Euro's",null,"N","",1]
[null,null,null,null,"zvkx01_c506__TY2V01","*=Kostenverzamelstaat!$M$19","","Huisartsen- Consult- incl balans","zvkx01","c506","","TY2V01","Euro's",null,"N","",1]
[null,null,null,null,"zvkx01_a506__TY2V01","*=Kostenverzamelstaat!$N$19","","Huisartsen- Consult- geaccepteerd","zvkx01","a506","","TY2V01","Euro's",null,"N","",1]
[null,null,null,null,"zvkx01_a506__TY3V01","*=Kostenverzamelstaat!$O$19","","Huisartsen- Consult- geaccepteerd","zvkx01","a506","","TY3V01","Euro's",null,"N","",1]
[null,null,null,null,"zvkx01_c507__TY0V01","*=Kostenverzamelstaat!$I$20","","Huisartsen- Overige- incl balans","zvkx01","c507","","TY0V01","Euro's",null,"N","",1]
[null,null,null,null,"zvkx01_a507__TY0V01","*=Kostenverzamelstaat!$J$20","","Huisartsen- Overige- geaccepteerd","zvkx01","a507","","TY0V01","Euro's",null,"N","",1]
[null,null,null,null,"zvkx01_c507__TY1V01","*=Kostenverzamelstaat!$K$20","","Huisartsen- Overige- incl balans","zvkx01","c507","","TY1V01","Euro's",null,"N","",1]
[null,null,null,null,"zvkx01_a507__TY1V01","*=Kostenverzamelstaat!$L$20","","Huisartsen- Overige- geaccepteerd","zvkx01","a507","","TY1V01","Euro's",null,"N","",1]
[null,null,null,null,"zvkx01_c507__TY2V01","*=Kostenverzamelstaat!$M$20","","Huisartsen- Overige- incl balans","zvkx01","c507","","TY2V01","Euro's",null,"N","",1]
[null,null,null,null,"zvkx01_a507__TY2V01","*=Kostenverzamelstaat!$N$20","","Huisartsen- Overige- geaccepteerd","zvkx01","a507","","TY2V01","Euro's",null,"N","",1]
[null,null,null,null,"zvkx01_a507__TY3V01","*=Kostenverzamelstaat!$O$20","","Huisartsen- Overige- geaccepteerd","zvkx01","a507","","TY3V01","Euro's",null,"N","",1]
[null,null,null,null,"zvkx01_c510__TY0V01","*=Kostenverzamelstaat!$I$21","","Huisartsen- MDZ- incl balans","zvkx01","c510","","TY0V01","Euro's",null,"N","",1]
[null,null,null,null,"zvkx01_a510__TY0V01","*=Kostenverzamelstaat!$J$21","","Huisartsen- MDZ- geaccepteerd","zvkx01","a510","","TY0V01","Euro's",null,"N","",1]
[null,null,null,null,"zvkx01_c510__TY1V01","*=Kostenverzamelstaat!$K$21","","Huisartsen- MDZ- incl balans","zvkx01","c510","","TY1V01","Euro's",null,"N","",1]
[null,null,null,null,"zvkx01_a510__TY1V01","*=Kostenverzamelstaat!$L$21","","Huisartsen- MDZ- geaccepteerd","zvkx01","a510","","TY1V01","Euro's",null,"N","",1]
[null,null,null,null,"zvkx01_c510__TY2V01","*=Kostenverzamelstaat!$M$21","","Huisartsen- MDZ- incl balans","zvkx01","c510","","TY2V01","Euro's",null,"N","",1]
[null,null,null,null,"zvkx01_a510__TY2V01","*=Kostenverzamelstaat!$N$21","","Huisartsen- MDZ- geaccepteerd","zvkx01","a510","","TY2V01","Euro's",null,"N","",1]
[null,null,null,null,"zvkx01_a510__TY3V01","*=Kostenverzamelstaat!$O$21","","Huisartsen- MDZ- geaccepteerd","zvkx01","a510","","TY3V01","Euro's",null,"N","",1]
[null,null,null,null,"zvkx01_c515__TY0V01","*=Kostenverzamelstaat!$I$22","","Huisartsen- Resultaatbel. huisartsen- incl balans","zvkx01","c515","","TY0V01","Euro's",null,"N","",1]
[null,null,null,null,"zvkx01_a515__TY0V01","*=Kostenverzamelstaat!$J$22","","Huisartsen- Resultaatbel. huisartsen- geaccepteerd","zvkx01","a515","","TY0V01","Euro's",null,"N","",1]
[null,null,null,null,"zvkx01_c515__TY1V01","*=Kostenverzamelstaat!$K$22","","Huisartsen- Resultaatbel. huisartsen- incl balans","zvkx01","c515","","TY1V01","Euro's",null,"N","",1]
[null,null,null,null,"zvkx01_a515__TY1V01","*=Kostenverzamelstaat!$L$22","","Huisartsen- Resultaatbel. huisartsen- geaccepteerd","zvkx01","a515","","TY1V01","Euro's",null,"N","",1]
[null,null,null,null,"zvkx01_c515__TY2V01","*=Kostenverzamelstaat!$M$22","","Huisartsen- Resultaatbel. huisartsen- incl balans","zvkx01","c515","","TY2V01","Euro's",null,"N","",1]
[null,null,null,null,"zvkx01_a515__TY2V01","*=Kostenverzamelstaat!$N$22","","Huisartsen- Resultaatbel. huisartsen- geaccepteerd","zvkx01","a515","","TY2V01","Euro's",null,"N","",1]
[null,null,null,null,"zvkx01_a515__TY3V01","*=Kostenverzamelstaat!$O$22","","Huisartsen- Resultaatbel. huisartsen- geaccepteerd","zvkx01","a515","","TY3V01","Euro's",null,"N","",1]
[null,null,null,null,"zvkx01_c516__TY0V01","*=Kostenverzamelstaat!$I$23","","Huisartsen- Resultaatbel. MDZ- incl balans","zvkx01","c516","","TY0V01","Euro's",null,"N","",1]
[null,null,null,null,"zvkx01_a516__TY0V01","*=Kostenverzamelstaat!$J$23","","Huisartsen- Resultaatbel. MDZ- geaccepteerd","zvkx01","a516","","TY0V01","Euro's",null,"N","",1]
[null,null,null,null,"zvkx01_c516__TY1V01","*=Kostenverzamelstaat!$K$23","","Huisartsen- Resultaatbel. MDZ- incl balans","zvkx01","c516","","TY1V01","Euro's",null,"N","",1]
[null,null,null,null,"zvkx01_a516__TY1V01","*=Kostenverzamelstaat!$L$23","","Huisartsen- Resultaatbel. MDZ- geaccepteerd","zvkx01","a516","","TY1V01","Euro's",null,"N","",1]
[null,null,null,null,"zvkx01_c516__TY2V01","*=Kostenverzamelstaat!$M$23","","Huisartsen- Resultaatbel. MDZ- incl balans","zvkx01","c516","","TY2V01","Euro's",null,"N","",1]
[null,null,null,null,"zvkx01_a516__TY2V01","*=Kostenverzamelstaat!$N$23","","Huisartsen- Resultaatbel. MDZ- geaccepteerd","zvkx01","a516","","TY2V01","Euro's",null,"N","",1]
[null,null,null,null,"zvkx01_a516__TY3V01","*=Kostenverzamelstaat!$O$23","","Huisartsen- Resultaatbel. MDZ- geaccepteerd","zvkx01","a516","","TY3V01","Euro's",null,"N","",1]
[null,null,null,null,"zvkx01_c__TY0V01","*=Kostenverzamelstaat!$I$24"]
[null,null,null,null,"zvkx01_a__TY0V01","*=Kostenverzamelstaat!$J$24"]
[null,null,null,null,"zvkx01_c__TY1V01","*=Kostenverzamelstaat!$K$24"]
[null,null,null,null,"zvkx01_a__TY1V01","*=Kostenverzamelstaat!$L$24"]
[null,null,null,null,"zvkx01_c__TY2V01","*=Kostenverzamelstaat!$M$24"]
[null,null,null,null,"zvkx01_a__TY2V01","*=Kostenverzamelstaat!$N$24"]
[null,null,null,null,"zvkx01_a__TY3V01","*=Kostenverzamelstaat!$O$24"]
[null,null,null,null,"zvkx02_c520__TY0V01","*=Kostenverzamelstaat!$I$26","","Farmaceutische hulp- incl balans","zvkx02","c520","","TY0V01","Euro's",null,"N","",1]
[null,null,null,null,"zvkx02_a520__TY0V01","*=Kostenverzamelstaat!$J$26","","Farmaceutische hulp- geaccepteerd","zvkx02","a520","","TY0V01","Euro's",null,"N","",1]
[null,null,null,null,"zvkx02_c520__TY1V01","*=Kostenverzamelstaat!$K$26","","Farmaceutische hulp- incl balans","zvkx02","c520","","TY1V01","Euro's",null,"N","",1]
[null,null,null,null,"zvkx02_a520__TY1V01","*=Kostenverzamelstaat!$L$26","","Farmaceutische hulp- geaccepteerd","zvkx02","a520","","TY1V01","Euro's",null,"N","",1]
[null,null,null,null,"zvkx02_c520__TY2V01","*=Kostenverzamelstaat!$M$26","","Farmaceutische hulp- incl balans","zvkx02","c520","","TY2V01","Euro's",null,"N","",1]
[null,null,null,null,"zvkx02_a520__TY2V01","*=Kostenverzamelstaat!$N$26","","Farmaceutische hulp- geaccepteerd","zvkx02","a520","","TY2V01","Euro's",null,"N","",1]
[null,null,null,null,"zvkx02_a520__TY3V01","*=Kostenverzamelstaat!$O$26","","Farmaceutische hulp- geaccepteerd","zvkx02","a520","","TY3V01","Euro's",null,"N","",1]
[null,null,null,null,"zvkx02_c__TY0V01","*=Kostenverzamelstaat!$I$27"]
[null,null,null,null,"zvkx02_a__TY0V01","*=Kostenverzamelstaat!$J$27"]
[null,null,null,null,"zvkx02_c__TY1V01","*=Kostenverzamelstaat!$K$27"]
[null,null,null,null,"zvkx02_a__TY1V01","*=Kostenverzamelstaat!$L$27"]
[null,null,null,null,"zvkx02_c__TY2V01","*=Kostenverzamelstaat!$M$27"]
[null,null,null,null,"zvkx02_a__TY2V01","*=Kostenverzamelstaat!$O$27"]
[null,null,null,null,"zvkx02_a__TY3V01","*=Kostenverzamelstaat!$O$27"]
[null,null,null,null,"zvkx03_c530__TY0V01","*=Kostenverzamelstaat!$I$29","","Verpleging en verzorging- incl balans","zvkx03","c530","","TY0V01","Euro's",null,"N","",1]
[null,null,null,null,"zvkx03_a530__TY0V01","*=Kostenverzamelstaat!$J$29","","Verpleging en verzorging- geaccepteerd","zvkx03","a530","","TY0V01","Euro's",null,"N","",1]
[null,null,null,null,"zvkx03_c530__TY1V01","*=Kostenverzamelstaat!$K$29","","Verpleging en verzorging- incl balans","zvkx03","c530","","TY1V01","Euro's",null,"N","",1]
[null,null,null,null,"zvkx03_a530__TY1V01","*=Kostenverzamelstaat!$L$29","","Verpleging en verzorging- geaccepteerd","zvkx03","a530","","TY1V01","Euro's",null,"N","",1]
[null,null,null,null,"zvkx03_c530__TY2V01","*=Kostenverzamelstaat!$M$29","","Verpleging en verzorging- incl balans","zvkx03","c530","","TY2V01","Euro's",null,"N","",1]
[null,null,null,null,"zvkx03_a530__TY2V01","*=Kostenverzamelstaat!$N$29","","Verpleging en verzorging- geaccepteerd","zvkx03","a530","","TY2V01","Euro's",null,"N","",1]
[null,null,null,null,"zvkx03_a530__TY3V01","*=Kostenverzamelstaat!$O$29","","Verpleging en verzorging- geaccepteerd","zvkx03","a530","","TY3V01","Euro's",null,"N","",1]
[null,null,null,null,"zvkx03_c__TY0V01","*=Kostenverzamelstaat!$I$30"]
[null,null,null,null,"zvkx03_a__TY0V01","*=Kostenverzamelstaat!$J$30"]
[null,null,null,null,"zvkx03_c__TY1V01","*=Kostenverzamelstaat!$K$30"]
[null,null,null,null,"zvkx03_a__TY1V01","*=Kostenverzamelstaat!$L$30"]
[null,null,null,null,"zvkx03_c__TY2V01","*=Kostenverzamelstaat!$M$30"]
[null,null,null,null,"zvkx03_a__TY2V01","*=Kostenverzamelstaat!$N$30"]
[null,null,null,null,"zvkx03_a__TY3V01","*=Kostenverzamelstaat!$O$30"]
[null,null,null,null,"zvkx04_c5601__TY0V01","*=Kostenverzamelstaat!$I$32","","Mondzorg- volwassen verzekerden- incl balans","zvkx04","c5601","","TY0V01","Euro's",null,"N","",1]
[null,null,null,null,"zvkx04_a5601__TY0V01","*=Kostenverzamelstaat!$J$32","","Mondzorg- volwassen verzekerden- geaccepteerd","zvkx04","a5601","","TY0V01","Euro's",null,"N","",1]
[null,null,null,null,"zvkx04_c5601__TY1V01","*=Kostenverzamelstaat!$K$32","","Mondzorg- volwassen verzekerden- incl balans","zvkx04","c5601","","TY1V01","Euro's",null,"N","",1]
[null,null,null,null,"zvkx04_a5601__TY1V01","*=Kostenverzamelstaat!$L$32","","Mondzorg- volwassen verzekerden- geaccepteerd","zvkx04","a5601","","TY1V01","Euro's",null,"N","",1]
[null,null,null,null,"zvkx04_c5601__TY2V01","*=Kostenverzamelstaat!$M$32","","Mondzorg- volwassen verzekerden- incl balans","zvkx04","c5601","","TY2V01","Euro's",null,"N","",1]
[null,null,null,null,"zvkx04_a5601__TY2V01","*=Kostenverzamelstaat!$N$32","","Mondzorg- volwassen verzekerden- geaccepteerd","zvkx04","a5601","","TY2V01","Euro's",null,"N","",1]
[null,null,null,null,"zvkx04_a5601__TY3V01","*=Kostenverzamelstaat!$O$32","","Mondzorg- volwassen verzekerden- geaccepteerd","zvkx04","a5601","","TY3V01","Euro's",null,"N","",1]
[null,null,null,null,"zvkx04_c5602__TY0V01","*=Kostenverzamelstaat!$I$33","","Mondzorg- jeugdige verzekerden- incl balans","zvkx04","c5602","","TY0V01","Euro's",null,"N","",1]
[null,null,null,null,"zvkx04_a5602__TY0V01","*=Kostenverzamelstaat!$J$33","","Mondzorg- jeugdige verzekerden- geaccepteerd","zvkx04","a5602","","TY0V01","Euro's",null,"N","",1]
[null,null,null,null,"zvkx04_c5602__TY1V01","*=Kostenverzamelstaat!$K$33","","Mondzorg- jeugdige verzekerden- incl balans","zvkx04","c5602","","TY1V01","Euro's",null,"N","",1]
[null,null,null,null,"zvkx04_a5602__TY1V01","*=Kostenverzamelstaat!$L$33","","Mondzorg- jeugdige verzekerden- geaccepteerd","zvkx04","a5602","","TY1V01","Euro's",null,"N","",1]
[null,null,null,null,"zvkx04_c5602__TY2V01","*=Kostenverzamelstaat!$M$33","","Mondzorg- jeugdige verzekerden- incl balans","zvkx04","c5602","","TY2V01","Euro's",null,"N","",1]
[null,null,null,null,"zvkx04_a5602__TY2V01","*=Kostenverzamelstaat!$N$33","","Mondzorg- jeugdige verzekerden- geaccepteerd","zvkx04","a5602","","TY2V01","Euro's",null,"N","",1]
[null,null,null,null,"zvkx04_a5602__TY3V01","*=Kostenverzamelstaat!$O$33","","Mondzorg- jeugdige verzekerden- geaccepteerd","zvkx04","a5602","","TY3V01","Euro's",null,"N","",1]
[null,null,null,null,"zvkx04_c561__TY0V01","*=Kostenverzamelstaat!$I$34","","Mondzorg- gebitsprothesen- incl balans","zvkx04","c561","","TY0V01","Euro's",null,"N","",1]
[null,null,null,null,"zvkx04_a561__TY0V01","*=Kostenverzamelstaat!$J$34","","Mondzorg- gebitsprothesen- geaccepteerd","zvkx04","a561","","TY0V01","Euro's",null,"N","",1]
[null,null,null,null,"zvkx04_c561__TY1V01","*=Kostenverzamelstaat!$K$34","","Mondzorg- gebitsprothesen- incl balans","zvkx04","c561","","TY1V01","Euro's",null,"N","",1]
[null,null,null,null,"zvkx04_a561__TY1V01","*=Kostenverzamelstaat!$L$34","","Mondzorg- gebitsprothesen- geaccepteerd","zvkx04","a561","","TY1V01","Euro's",null,"N","",1]
[null,null,null,null,"zvkx04_c561__TY2V01","*=Kostenverzamelstaat!$M$34","","Mondzorg- gebitsprothesen- incl balans","zvkx04","c561","","TY2V01","Euro's",null,"N","",1]
[null,null,null,null,"zvkx04_a561__TY2V01","*=Kostenverzamelstaat!$N$34","","Mondzorg- gebitsprothesen- geaccepteerd","zvkx04","a561","","TY2V01","Euro's",null,"N","",1]
[null,null,null,null,"zvkx04_a561__TY3V01","*=Kostenverzamelstaat!$O$34","","Mondzorg- gebitsprothesen- geaccepteerd","zvkx04","a561","","TY301","Euro's",null,"N","",1]
[null,null,null,null,"zvkx04_c__TY0V01","*=Kostenverzamelstaat!$I$35"]
[null,null,null,null,"zvkx04_a__TY0V01","*=Kostenverzamelstaat!$J$35"]
[null,null,null,null,"zvkx04_c__TY1V01","*=Kostenverzamelstaat!$K$35"]
[null,null,null,null,"zvkx04_a__TY1V01","*=Kostenverzamelstaat!$L$35"]
[null,null,null,null,"zvkx04_c__TY2V01","*=Kostenverzamelstaat!$M$35"]
[null,null,null,null,"zvkx04_a__TY2V01","*=Kostenverzamelstaat!$N$35"]
[null,null,null,null,"zvkx04_a__TY3V01","*=Kostenverzamelstaat!$O$35"]
[null,null,null,null,"zvkx05_c580__TY0V01","*=Kostenverzamelstaat!$I$37","","Verloskundige hulp- door verloskundigen- incl balans","zvkx05","c580","","TY0V01","Euro's",null,"N","",1]
[null,null,null,null,"zvkx05_a580__TY0V01","*=Kostenverzamelstaat!$J$37","","Verloskundige hulp- door verloskundigen- geaccepteerd","zvkx05","a580","","TY0V01","Euro's",null,"N","",1]
[null,null,null,null,"zvkx05_c580__TY1V01","*=Kostenverzamelstaat!$K$37","","Verloskundige hulp- door verloskundigen- incl balans","zvkx05","c580","","TY1V01","Euro's",null,"N","",1]
[null,null,null,null,"zvkx05_a580__TY1V01","*=Kostenverzamelstaat!$L$37","","Verloskundige hulp- door verloskundigen- geaccepteerd","zvkx05","a580","","TY1V01","Euro's",null,"N","",1]
[null,null,null,null,"zvkx05_c580__TY2V01","*=Kostenverzamelstaat!$M$37","","Verloskundige hulp- door verloskundigen- incl balans","zvkx05","c580","","TY2V01","Euro's",null,"N","",1]
[null,null,null,null,"zvkx05_a580__TY2V01","*=Kostenverzamelstaat!$N$37","","Verloskundige hulp- door verloskundigen- geaccepteerd","zvkx05","a580","","TY2V01","Euro's",null,"N","",1]
[null,null,null,null,"zvkx05_a580__TY3V01","*=Kostenverzamelstaat!$O$37","","Verloskundige hulp- door verloskundigen- geaccepteerd","zvkx05","a580","","TY3V01","Euro's",null,"N","",1]
[null,null,null,null,"zvkx05_c582__TY0V01","*=Kostenverzamelstaat!$I$38","","Verloskundige hulp- Integrale geboortezorg-  incl balans","zvkx05","c582","","TY0V01","Euro's",null,"N","",1]
[null,null,null,null,"zvkx05_a582__TY0V01","*=Kostenverzamelstaat!$J$38","","Verloskundige hulp- Integrale geboortezorg- geaccepteerd","zvkx05","a582","","TY0V01","Euro's",null,"N","",1]
[null,null,null,null,"zvkx05_c582__TY1V01","*=Kostenverzamelstaat!$K$38","","Verloskundige hulp- Integrale geboortezorg-  incl balans","zvkx05","c582","","TY1V01","Euro's",null,"N","",1]
[null,null,null,null,"zvkx05_a582__TY1V01","*=Kostenverzamelstaat!$L$38","","Verloskundige hulp- Integrale geboortezorg- geaccepteerd","zvkx05","a582","","TY1V01","Euro's",null,"N","",1]
[null,null,null,null,"zvkx05_c582__TY2V01","*=Kostenverzamelstaat!$M$38","","Verloskundige hulp- Integrale geboortezorg-  incl balans","zvkx05","c582","","TY2V01","Euro's",null,"N","",1]
[null,null,null,null,"zvkx05_a582__TY2V01","*=Kostenverzamelstaat!$N$38","","Verloskundige hulp- Integrale geboortezorg- geaccepteerd","zvkx05","a582","","TY2V01","Euro's",null,"N","",1]
[null,null,null,null,"zvkx05_a582__TY3V01","*=Kostenverzamelstaat!$O$38","","Verloskundige hulp- Integrale geboortezorg- geaccepteerd","zvkx05","a582","","TY3V01","Euro's",null,"N","",1]
[null,null,null,null,"zvkx05_c__TY0V01","*=Kostenverzamelstaat!$I$39"]
[null,null,null,null,"zvkx05_a__TY0V01","*=Kostenverzamelstaat!$J$39"]
[null,null,null,null,"zvkx05_c__TY1V01","*=Kostenverzamelstaat!$K$39"]
[null,null,null,null,"zvkx05_a__TY1V01","*=Kostenverzamelstaat!$L$39"]
[null,null,null,null,"zvkx05_c__TY2V01","*=Kostenverzamelstaat!$M$39"]
[null,null,null,null,"zvkx05_a__TY2V01","*=Kostenverzamelstaat!$N$39"]
[null,null,null,null,"zvkx05_a__TY3V01","*=Kostenverzamelstaat!$O$39"]
[null,null,null,null,"zvkx06_c545__TY0V01","*=Kostenverzamelstaat!$I$54","","Medisch specialistische hulp- mondziekten en kaakchirurgie- incl balans","zvkx06","c545","","TY0V01","Euro's",null,"N","",1]
[null,null,null,null,"zvkx06_a545__TY0V01","*=Kostenverzamelstaat!$J$54","","Medisch specialistische hulp- mondziekten en kaakchirurgie- geaccepteerd","zvkx06","a545","","TY0V01","Euro's",null,"N","",1]
[null,null,null,null,"zvkx06_c545__TY1V01","*=Kostenverzamelstaat!$K$54","","Medisch specialistische hulp- mondziekten en kaakchirurgie- incl balans","zvkx06","c545","","TY1V01","Euro's",null,"N","",1]
[null,null,null,null,"zvkx06_a545__TY1V01","*=Kostenverzamelstaat!$L$54","","Medisch specialistische hulp- mondziekten en kaakchirurgie- geaccepteerd","zvkx06","a545","","TY1V01","Euro's",null,"N","",1]
[null,null,null,null,"zvkx06_c545__TY2V01","*=Kostenverzamelstaat!$M$54","","Medisch specialistische hulp- mondziekten en kaakchirurgie- incl balans","zvkx06","c545","","TY2V01","Euro's",null,"N","",1]
[null,null,null,null,"zvkx06_a545__TY2V01","*=Kostenverzamelstaat!$N$54","","Medisch specialistische hulp- mondziekten en kaakchirurgie- geaccepteerd","zvkx06","a545","","TY2V01","Euro's",null,"N","",1]
[null,null,null,null,"zvkx06_a545__TY3V01","*=Kostenverzamelstaat!$O$54","","Medisch specialistische hulp- mondziekten en kaakchirurgie- geaccepteerd","zvkx06","a545","","TY3V01","Euro's",null,"N","",1]
[null,null,null,null,"zvkx06_c6101__TY0V01","*=Kostenverzamelstaat!$I$55","","Medisch specialistische hulp- Overige zorg- incl balans","zvkx06","c6101","","TY0V01","Euro's",null,"N","",1]
[null,null,null,null,"zvkx06_a6101__TY0V01","*=Kostenverzamelstaat!$J$55","","Medisch specialistische hulp- Overige zorg- geaccepteerd","zvkx06","a6101","","TY0V01","Euro's",null,"N","",1]
[null,null,null,null,"zvkx06_c6101__TY1V01","*=Kostenverzamelstaat!$K$55","","Medisch specialistische hulp- Overige zorg- incl balans","zvkx06","c6101","","TY1V01","Euro's",null,"N","",1]
[null,null,null,null,"zvkx06_a6101__TY1V01","*=Kostenverzamelstaat!$L$55","","Medisch specialistische hulp- Overige zorg- geaccepteerd","zvkx06","a6101","","TY1V01","Euro's",null,"N","",1]
[null,null,null,null,"zvkx06_c6101__TY2V01","*=Kostenverzamelstaat!$M$55","","Medisch specialistische hulp- Overige zorg- incl balans","zvkx06","c6101","","TY2V01","Euro's",null,"N","",1]
[null,null,null,null,"zvkx06_a6101__TY2V01","*=Kostenverzamelstaat!$N$55","","Medisch specialistische hulp- Overige zorg- geaccepteerd","zvkx06","a6101","","TY2V01","Euro's",null,"N","",1]
[null,null,null,null,"zvkx06_a6101__TY3V01","*=Kostenverzamelstaat!$O$55","","Medisch specialistische hulp- Overige zorg- geaccepteerd","zvkx06","a6101","","TY3V01","Euro's",null,"N","",1]
[null,null,null,null,"zvkx06_c6102__TY0V01","*=Kostenverzamelstaat!$I$56","","Medisch specialistische hulp- add-on's Dure geneesmiddelen- incl balans","zvkx06","c6102","","TY0V01","Euro's",null,"N","",1]
[null,null,null,null,"zvkx06_a6102__TY0V01","*=Kostenverzamelstaat!$J$56","","Medisch specialistische hulp- add-on's Dure geneesmiddelen- geaccepteerd","zvkx06","a6102","","TY0V01","Euro's",null,"N","",1]
[null,null,null,null,"zvkx06_c6102__TY1V01","*=Kostenverzamelstaat!$K$56","","Medisch specialistische hulp- add-on's Dure geneesmiddelen- incl balans","zvkx06","c6102","","TY1V01","Euro's",null,"N","",1]
[null,null,null,null,"zvkx06_a6102__TY1V01","*=Kostenverzamelstaat!$L$56","","Medisch specialistische hulp- add-on's Dure geneesmiddelen- geaccepteerd","zvkx06","a6102","","TY1V01","Euro's",null,"N","",1]
[null,null,null,null,"zvkx06_c6102__TY2V01","*=Kostenverzamelstaat!$M$56","","Medisch specialistische hulp- add-on's Dure geneesmiddelen- incl balans","zvkx06","c6102","","TY2V01","Euro's",null,"N","",1]
[null,null,null,null,"zvkx06_a6102__TY2V01","*=Kostenverzamelstaat!$N$56","","Medisch specialistische hulp- add-on's Dure geneesmiddelen- geaccepteerd","zvkx06","a6102","","TY2V01","Euro's",null,"N","",1]
[null,null,null,null,"zvkx06_a6102__TY3V01","*=Kostenverzamelstaat!$O$56","","Medisch specialistische hulp- add-on's Dure geneesmiddelen- geaccepteerd","zvkx06","a6102","","TY3V01","Euro's",null,"N","",1]
[null,null,null,null,"zvkx06_c611__TY0V01","*=Kostenverzamelstaat!$I$57","","Medisch specialistische hulp- Overige zorg- incl balans","zvkx06","c611","","TY0V01","Euro's",null,"N","",1]
[null,null,null,null,"zvkx06_a611__TY0V01","*=Kostenverzamelstaat!$J$57","","Medisch specialistische hulp- Overige zorg- geaccepteerd","zvkx06","a611","","TY0V01","Euro's",null,"N","",1]
[null,null,null,null,"zvkx06_c611__TY1V01","*=Kostenverzamelstaat!$K$57","","Medisch specialistische hulp- Overige zorg- incl balans","zvkx06","c611","","TY1V01","Euro's",null,"N","",1]
[null,null,null,null,"zvkx06_a611__TY1V01","*=Kostenverzamelstaat!$L$57","","Medisch specialistische hulp- Overige zorg- geaccepteerd","zvkx06","a611","","TY1V01","Euro's",null,"N","",1]
[null,null,null,null,"zvkx06_c611__TY2V01","*=Kostenverzamelstaat!$M$57","","Medisch specialistische hulp- Overige zorg- incl balans","zvkx06","c611","","TY2V01","Euro's",null,"N","",1]
[null,null,null,null,"zvkx06_a611__TY2V01","*=Kostenverzamelstaat!$N$57","","Medisch specialistische hulp- Overige zorg- geaccepteerd","zvkx06","a611","","TY2V01","Euro's",null,"N","",1]
[null,null,null,null,"zvkx06_a611__TY3V01","*=Kostenverzamelstaat!$O$57","","Medisch specialistische hulp- Overige zorg- geaccepteerd","zvkx06","a611","","TY3V01","Euro's",null,"N","",1]
[null,null,null,null,"zvkx06_c6121__TY0V01","*=Kostenverzamelstaat!$I$58","","Medisch specialistische hulp- add-on's Dure geneesmiddelen- incl balans","zvkx06","c6121","","TY0V01","Euro's",null,"N","",1]
[null,null,null,null,"zvkx06_a6121__TY0V01","*=Kostenverzamelstaat!$J58","","Medisch specialistische hulp- add-on's Dure geneesmiddelen- geaccepteerd","zvkx06","a6121","","TY0V01","Euro's",null,"N","",1]
[null,null,null,null,"zvkx06_c6121__TY1V01","*=Kostenverzamelstaat!$K$58","","Medisch specialistische hulp- add-on's Dure geneesmiddelen- incl balans","zvkx06","c6121","","TY1V01","Euro's",null,"N","",1]
[null,null,null,null,"zvkx06_a6121__TY1V01","*=Kostenverzamelstaat!$L58","","Medisch specialistische hulp- add-on's Dure geneesmiddelen- geaccepteerd","zvkx06","a6121","","TY1V01","Euro's",null,"N","",1]
[null,null,null,null,"zvkx06_c6121__TY2V01","*=Kostenverzamelstaat!$M$58","","Medisch specialistische hulp- add-on's Dure geneesmiddelen- incl balans","zvkx06","c6121","","TY2V01","Euro's",null,"N","",1]
[null,null,null,null,"zvkx06_a6121__TY2V01","*=Kostenverzamelstaat!$N$58","","Medisch specialistische hulp- add-on's Dure geneesmiddelen- geaccepteerd","zvkx06","a6121","","TY2V01","Euro's",null,"N","",1]
[null,null,null,null,"zvkx06_a6121__TY3V01","*=Kostenverzamelstaat!$O$58","","Medisch specialistische hulp- add-on's Dure geneesmiddelen- geaccepteerd","zvkx06","a6121","","TY3V01","Euro's",null,"N","",1]
[null,null,null,null,"zvkx06_c6122__TY0V01","*=Kostenverzamelstaat!$I$59","","Medisch specialistische hulp- IC- incl balans","zvkx06","c6122","","TY0V01","Euro's",null,"N","",1]
[null,null,null,null,"zvkx06_a6122__TY0V01","*=Kostenverzamelstaat!$J$59","","Medisch specialistische hulp- IC- geaccepteerd","zvkx06","a6122","","TY0V01","Euro's",null,"N","",1]
[null,null,null,null,"zvkx06_c6122__TY1V01","*=Kostenverzamelstaat!$K$59","","Medisch specialistische hulp- IC- incl balans","zvkx06","c6122","","TY1V01","Euro's",null,"N","",1]
[null,null,null,null,"zvkx06_a6122__TY1V01","*=Kostenverzamelstaat!$L$59","","Medisch specialistische hulp- IC- geaccepteerd","zvkx06","a6122","","TY1V01","Euro's",null,"N","",1]
[null,null,null,null,"zvkx06_c6122__TY2V01","*=Kostenverzamelstaat!$M$59","","Medisch specialistische hulp- IC- incl balans","zvkx06","c6122","","TY2V01","Euro's",null,"N","",1]
[null,null,null,null,"zvkx06_a6122__TY2V01","*=Kostenverzamelstaat!$N$59","","Medisch specialistische hulp- IC- geaccepteerd","zvkx06","a6122","","TY2V01","Euro's",null,"N","",1]
[null,null,null,null,"zvkx06_a6122__TY3V01","*=Kostenverzamelstaat!$O$59","","Medisch specialistische hulp- IC- geaccepteerd","zvkx06","a6122","","TY3V01","Euro's",null,"N","",1]
[null,null,null,null,"zvkx06_c6131__TY0V01","*=Kostenverzamelstaat!$I$60","","Medisch specialistische hulp- Integraal DBC-zorgproduct gereguleerd- incl balans","zvkx06","c6131","","TY0V01","Euro's",null,"N","",1]
[null,null,null,null,"zvkx06_a6131__TY0V01","*=Kostenverzamelstaat!$J$60","","Medisch specialistische hulp- Integraal DBC-zorgproduct gereguleerd- geaccepteerd","zvkx06","a6131","","TY0V01","Euro's",null,"N","",1]
[null,null,null,null,"zvkx06_c6131__TY1V01","*=Kostenverzamelstaat!$K$60","","Medisch specialistische hulp- Integraal DBC-zorgproduct gereguleerd- incl balans","zvkx06","c6131","","TY1V01","Euro's",null,"N","",1]
[null,null,null,null,"zvkx06_a6131__TY1V01","*=Kostenverzamelstaat!$L$60","","Medisch specialistische hulp- Integraal DBC-zorgproduct gereguleerd- geaccepteerd","zvkx06","a6131","","TY1V01","Euro's",null,"N","",1]
[null,null,null,null,"zvkx06_c6131__TY2V01","*=Kostenverzamelstaat!$M$60","","Medisch specialistische hulp- Integraal DBC-zorgproduct gereguleerd- incl balans","zvkx06","c6131","","TY2V01","Euro's",null,"N","",1]
[null,null,null,null,"zvkx06_a6131__TY2V01","*=Kostenverzamelstaat!$N$60","","Medisch specialistische hulp- Integraal DBC-zorgproduct gereguleerd- geaccepteerd","zvkx06","a6131","","TY2V01","Euro's",null,"N","",1]
[null,null,null,null,"zvkx06_a6131__TY3V01","*=Kostenverzamelstaat!$O$60","","Medisch specialistische hulp- Integraal DBC-zorgproduct gereguleerd- geaccepteerd","zvkx06","a6131","","TY3V01","Euro's",null,"N","",1]
[null,null,null,null,"zvkx06_c6151__TY0V01","*=Kostenverzamelstaat!$I$61","","Medisch specialistische hulp- Integraal DBC-zorgproduct vrije segment- incl balans","zvkx06","c6151","","TY0V01","Euro's",null,"N","",1]
[null,null,null,null,"zvkx06_a6151__TY0V01","*=Kostenverzamelstaat!$J$61","","Medisch specialistische hulp- Integraal DBC-zorgproduct vrije segment- geaccepteerd","zvkx06","a6151","","TY0V01","Euro's",null,"N","",1]
[null,null,null,null,"zvkx06_c6151__TY1V01","*=Kostenverzamelstaat!$K$61","","Medisch specialistische hulp- Integraal DBC-zorgproduct vrije segment- incl balans","zvkx06","c6151","","TY1V01","Euro's",null,"N","",1]
[null,null,null,null,"zvkx06_a6151__TY1V01","*=Kostenverzamelstaat!$L$61","","Medisch specialistische hulp- Integraal DBC-zorgproduct vrije segment- geaccepteerd","zvkx06","a6151","","TY1V01","Euro's",null,"N","",1]
[null,null,null,null,"zvkx06_c6151__TY2V01","*=Kostenverzamelstaat!$M$61","","Medisch specialistische hulp- Integraal DBC-zorgproduct vrije segment- incl balans","zvkx06","c6151","","TY2V01","Euro's",null,"N","",1]
[null,null,null,null,"zvkx06_a6151__TY2V01","*=Kostenverzamelstaat!$N$61","","Medisch specialistische hulp- Integraal DBC-zorgproduct vrije segment- geaccepteerd","zvkx06","a6151","","TY2V01","Euro's",null,"N","",1]
[null,null,null,null,"zvkx06_a6151__TY3V01","*=Kostenverzamelstaat!$O$61","","Medisch specialistische hulp- Integraal DBC-zorgproduct vrije segment- geaccepteerd","zvkx06","a6151","","TY3V01","Euro's",null,"N","",1]
[null,null,null,null,"zvkx06_c619__TY1V01","*=Kostenverzamelstaat!$K$62","","Medisch specialistische hulp- honoraria extramuraal- incl balans","zvkx06","c619","","TY1V01","Euro's",null,"N","",1]
[null,null,null,null,"zvkx06_a619__TY1V01","*=Kostenverzamelstaat!$L$62","","Medisch specialistische hulp- honoraria extramuraal- geaccepteerd","zvkx06","a619","","TY1V01","Euro's",null,"N","",1]
[null,null,null,null,"zvkx06_c619__TY2V01","*=Kostenverzamelstaat!$M$62","","Medisch specialistische hulp- honoraria extramuraal- incl balans","zvkx06","c619","","TY2V01","Euro's",null,"N","",1]
[null,null,null,null,"zvkx06_a619__TY2V01","*=Kostenverzamelstaat!$N$62","","Medisch specialistische hulp- honoraria extramuraal- geaccepteerd","zvkx06","a619","","TY2V01","Euro's",null,"N","",1]
[null,null,null,null,"zvkx06_a619__TY3V01","*=Kostenverzamelstaat!$O$62","","Medisch specialistische hulp- honoraria extramuraal- geaccepteerd","zvkx06","a619","","TY3V01","Euro's",null,"N","",1]
[null,null,null,null,"zvkx06_c8062__TY2V01","*=Kostenverzamelstaat!$M$63",null,"Medisch specialistische hulp- Meerkosten Corona indirect en toeslagen- incl balans","zvkx06","c8062",null,"TY2V01","Euro's",null,"N","",1]
[null,null,null,null,"zvkx06_a8062__TY2V01","*=Kostenverzamelstaat!$N$63",null,"Medisch specialistische hulp- Meerkosten Corona indirect en toeslagen- geaccepteerd","zvkx06","a8062",null,"TY2V01","Euro's",null,"N","",1]
[null,null,null,null,"zvkx06_a8062__TY3V01","*=Kostenverzamelstaat!$O$63",null,"Medisch specialistische hulp- Meerkosten Corona indirect en toeslagen- geaccepteerd","zvkx06","a8062",null,"TY3V01","Euro's",null,"N","",1]
[null,null,null,null,"zvkx06_c__TY0V01","*=Kostenverzamelstaat!$I$64"]
[null,null,null,null,"zvkx06_a__TY0V01","*=Kostenverzamelstaat!$J$64"]
[null,null,null,null,"zvkx06_c__TY1V01","*=Kostenverzamelstaat!$K$64"]
[null,null,null,null,"zvkx06_a__TY1V01","*=Kostenverzamelstaat!$L$64"]
[null,null,null,null,"zvkx06_c__TY2V01","*=Kostenverzamelstaat!$M$64"]
[null,null,null,null,"zvkx06_a__TY2V01","*=Kostenverzamelstaat!$N$64"]
[null,null,null,null,"zvkx06_a__TY3V01","*=Kostenverzamelstaat!$O$64"]
[null,null,null,null,"zvkx07_c620__TY0V01","*=Kostenverzamelstaat!$I$66","","paramedische hulp- fysiotherapie- incl balans","zvkx07","c620","","TY0V01","Euro's",null,"N","",1]
[null,null,null,null,"zvkx07_a620__TY0V01","*=Kostenverzamelstaat!$J$66","","paramedische hulp- fysiotherapie- geaccepteerd","zvkx07","a620","","TY0V01","Euro's",null,"N","",1]
[null,null,null,null,"zvkx07_c620__TY1V01","*=Kostenverzamelstaat!$K$66","","paramedische hulp- fysiotherapie- incl balans","zvkx07","c620","","TY1V01","Euro's",null,"N","",1]
[null,null,null,null,"zvkx07_a620__TY1V01","*=Kostenverzamelstaat!$L$66","","paramedische hulp- fysiotherapie- geaccepteerd","zvkx07","a620","","TY1V01","Euro's",null,"N","",1]
[null,null,null,null,"zvkx07_c620__TY2V01","*=Kostenverzamelstaat!$M$66","","paramedische hulp- fysiotherapie- incl balans","zvkx07","c620","","TY2V01","Euro's",null,"N","",1]
[null,null,null,null,"zvkx07_a620__TY2V01","*=Kostenverzamelstaat!$N$66","","paramedische hulp- fysiotherapie- geaccepteerd","zvkx07","a620","","TY2V01","Euro's",null,"N","",1]
[null,null,null,null,"zvkx07_a620__TY3V01","*=Kostenverzamelstaat!$O$66","","paramedische hulp- fysiotherapie- geaccepteerd","zvkx07","a620","","TY3V01","Euro's",null,"N","",1]
[null,null,null,null,"zvkx07_c621__TY0V01","*=Kostenverzamelstaat!$I$67","","paramedische hulp- Mensendieck/Cesar- incl balans","zvkx07","c621","","TY0V01","Euro's",null,"N","",1]
[null,null,null,null,"zvkx07_a621__TY0V01","*=Kostenverzamelstaat!$J$67","","paramedische hulp- Mensendieck/Cesar- geaccepteerd","zvkx07","a621","","TY0V01","Euro's",null,"N","",1]
[null,null,null,null,"zvkx07_c621__TY1V01","*=Kostenverzamelstaat!$K$67","","paramedische hulp- Mensendieck/Cesar- incl balans","zvkx07","c621","","TY1V01","Euro's",null,"N","",1]
[null,null,null,null,"zvkx07_a621__TY1V01","*=Kostenverzamelstaat!$L$67","","paramedische hulp- Mensendieck/Cesar- geaccepteerd","zvkx07","a621","","TY1V01","Euro's",null,"N","",1]
[null,null,null,null,"zvkx07_c621__TY2V01","*=Kostenverzamelstaat!$M$67","","paramedische hulp- Mensendieck/Cesar- incl balans","zvkx07","c621","","TY2V01","Euro's",null,"N","",1]
[null,null,null,null,"zvkx07_a621__TY2V01","*=Kostenverzamelstaat!$N$67","","paramedische hulp- Mensendieck/Cesar- geaccepteerd","zvkx07","a621","","TY2V01","Euro's",null,"N","",1]
[null,null,null,null,"zvkx07_a621__TY3V01","*=Kostenverzamelstaat!$O$67","","paramedische hulp- Mensendieck/Cesar- geaccepteerd","zvkx07","a621","","TY3V01","Euro's",null,"N","",1]
[null,null,null,null,"zvkx07_c623__TY0V01","*=Kostenverzamelstaat!$I$68","","paramedische hulp- logopedie- incl balans","zvkx07","c623","","TY0V01","Euro's",null,"N","",1]
[null,null,null,null,"zvkx07_a623__TY0V01","*=Kostenverzamelstaat!$J$68","","paramedische hulp- logopedie- geaccepteerd","zvkx07","a623","","TY0V01","Euro's",null,"N","",1]
[null,null,null,null,"zvkx07_c623__TY1V01","*=Kostenverzamelstaat!$K$68","","paramedische hulp- logopedie- incl balans","zvkx07","c623","","TY1V01","Euro's",null,"N","",1]
[null,null,null,null,"zvkx07_a623__TY1V01","*=Kostenverzamelstaat!$L$68","","paramedische hulp- logopedie- geaccepteerd","zvkx07","a623","","TY1V01","Euro's",null,"N","",1]
[null,null,null,null,"zvkx07_c623__TY2V01","*=Kostenverzamelstaat!$M$68","","paramedische hulp- logopedie- incl balans","zvkx07","c623","","TY2V01","Euro's",null,"N","",1]
[null,null,null,null,"zvkx07_a623__TY2V01","*=Kostenverzamelstaat!$N$68","","paramedische hulp- logopedie- geaccepteerd","zvkx07","a623","","TY2V01","Euro's",null,"N","",1]
[null,null,null,null,"zvkx07_a623__TY3V01","*=Kostenverzamelstaat!$O$68","","paramedische hulp- logopedie- geaccepteerd","zvkx07","a623","","TY3V01","Euro's",null,"N","",1]
[null,null,null,null,"zvkx07_c624__TY0V01","*=Kostenverzamelstaat!$I$69","","paramedische hulp- ergotherapie- incl balans","zvkx07","c624","","TY0V01","Euro's",null,"N","",1]
[null,null,null,null,"zvkx07_a624__TY0V01","*=Kostenverzamelstaat!$J$69","","paramedische hulp- ergotherapie- geaccepteerd","zvkx07","a624","","TY0V01","Euro's",null,"N","",1]
[null,null,null,null,"zvkx07_c624__TY1V01","*=Kostenverzamelstaat!$K$69","","paramedische hulp- ergotherapie- incl balans","zvkx07","c624","","TY1V01","Euro's",null,"N","",1]
[null,null,null,null,"zvkx07_a624__TY1V01","*=Kostenverzamelstaat!$L$69","","paramedische hulp- ergotherapie- geaccepteerd","zvkx07","a624","","TY1V01","Euro's",null,"N","",1]
[null,null,null,null,"zvkx07_c624__TY2V01","*=Kostenverzamelstaat!$M$69","","paramedische hulp- ergotherapie- incl balans","zvkx07","c624","","TY2V01","Euro's",null,"N","",1]
[null,null,null,null,"zvkx07_a624__TY2V01","*=Kostenverzamelstaat!$N$69","","paramedische hulp- ergotherapie- geaccepteerd","zvkx07","a624","","TY2V01","Euro's",null,"N","",1]
[null,null,null,null,"zvkx07_a624__TY3V01","*=Kostenverzamelstaat!$O$69","","paramedische hulp- ergotherapie- geaccepteerd","zvkx07","a624","","TY3V01","Euro's",null,"N","",1]
[null,null,null,null,"zvkx07_c625__TY0V01","*=Kostenverzamelstaat!$I$70","","paramedische hulp- dieetadvisering- incl balans","zvkx07","c625","","TY0V01","Euro's",null,"N","",1]
[null,null,null,null,"zvkx07_a625__TY0V01","*=Kostenverzamelstaat!$J$70","","paramedische hulp- dieetadvisering- geaccepteerd","zvkx07","a625","","TY0V01","Euro's",null,"N","",1]
[null,null,null,null,"zvkx07_c625__TY1V01","*=Kostenverzamelstaat!$K$70","","paramedische hulp- dieetadvisering- incl balans","zvkx07","c625","","TY1V01","Euro's",null,"N","",1]
[null,null,null,null,"zvkx07_a625__TY1V01","*=Kostenverzamelstaat!$L$70","","paramedische hulp- dieetadvisering- geaccepteerd","zvkx07","a625","","TY1V01","Euro's",null,"N","",1]
[null,null,null,null,"zvkx07_c625__TY2V01","*=Kostenverzamelstaat!$M$70","","paramedische hulp- dieetadvisering- incl balans","zvkx07","c625","","TY2V01","Euro's",null,"N","",1]
[null,null,null,null,"zvkx07_a625__TY2V01","*=Kostenverzamelstaat!$N$70","","paramedische hulp- dieetadvisering- geaccepteerd","zvkx07","a625","","TY2V01","Euro's",null,"N","",1]
[null,null,null,null,"zvkx07_a625__TY3V01","*=Kostenverzamelstaat!$O$70","","paramedische hulp- dieetadvisering- geaccepteerd","zvkx07","a625","","TY3V01","Euro's",null,"N","",1]
[null,null,null,null,"zvkx07_c626__TY0V01","*=Kostenverzamelstaat!$I$71","","paramedische hulp- GLI-  incl balans","zvkx07","c626","","TY0V01","Euro's",null,"N","",1]
[null,null,null,null,"zvkx07_a626__TY0V01","*=Kostenverzamelstaat!$J$71","","paramedische hulp- GLI- geaccepteerd","zvkx07","a626","","TY0V01","Euro's",null,"N","",1]
[null,null,null,null,"zvkx07_c626__TY1V01","*=Kostenverzamelstaat!$K$71","","paramedische hulp- GLI-  incl balans","zvkx07","c626","","TY1V01","Euro's",null,"N","",1]
[null,null,null,null,"zvkx07_a626__TY1V01","*=Kostenverzamelstaat!$L$71","","paramedische hulp- GLI- geaccepteerd","zvkx07","a626","","TY1V01","Euro's",null,"N","",1]
[null,null,null,null,"zvkx07_c626__TY2V01","*=Kostenverzamelstaat!$M$71","","paramedische hulp- GLI-  incl balans","zvkx07","c626","","TY2V01","Euro's",null,"N","",1]
[null,null,null,null,"zvkx07_a626__TY2V01","*=Kostenverzamelstaat!$N$71","","paramedische hulp- GLI- geaccepteerd","zvkx07","a626","","TY2V01","Euro's",null,"N","",1]
[null,null,null,null,"zvkx07_a626__TY3V01","*=Kostenverzamelstaat!$O$71","","paramedische hulp- GLI- geaccepteerd","zvkx07","a626","","TY3V01","Euro's",null,"N","",1]
[null,null,null,null,"zvkx07_c__TY0V01","*=Kostenverzamelstaat!$I$72"]
[null,null,null,null,"zvkx07_a__TY0V01","*=Kostenverzamelstaat!$J$72"]
[null,null,null,null,"zvkx07_c__TY1V01","*=Kostenverzamelstaat!$K$72"]
[null,null,null,null,"zvkx07_a__TY1V01","*=Kostenverzamelstaat!$L$72"]
[null,null,null,null,"zvkx07_c__TY2V01","*=Kostenverzamelstaat!$M$72"]
[null,null,null,null,"zvkx07_c__TY2V01","*=Kostenverzamelstaat!$N$72"]
[null,null,null,null,"zvkx07_a__TY3V01","*=Kostenverzamelstaat!$O$72"]
[null,null,null,null,"zvkx08_c640__TY0V01","*=Kostenverzamelstaat!$I$74","","Hulpmiddelen-- incl balans","zvkx08","c640","","TY0V01","Euro's",null,"N","",1]
[null,null,null,null,"zvkx08_a640__TY0V01","*=Kostenverzamelstaat!$J$74","","Hulpmiddelen-- geaccepteerd","zvkx08","a640","","TY0V01","Euro's",null,"N","",1]
[null,null,null,null,"zvkx08_c640__TY1V01","*=Kostenverzamelstaat!$K$74","","Hulpmiddelen-- incl balans","zvkx08","c640","","TY1V01","Euro's",null,"N","",1]
[null,null,null,null,"zvkx08_a640__TY1V01","*=Kostenverzamelstaat!$L$74","","Hulpmiddelen-- geaccepteerd","zvkx08","a640","","TY1V01","Euro's",null,"N","",1]
[null,null,null,null,"zvkx08_c640__TY2V01","*=Kostenverzamelstaat!$M$74","","Hulpmiddelen-- incl balans","zvkx08","c640","","TY2V01","Euro's",null,"N","",1]
[null,null,null,null,"zvkx08_a640__TY2V01","*=Kostenverzamelstaat!$N$74","","Hulpmiddelen-- geaccepteerd","zvkx08","a640","","TY2V01","Euro's",null,"N","",1]
[null,null,null,null,"zvkx08_a640__TY3V01","*=Kostenverzamelstaat!$O$74","","Hulpmiddelen-- geaccepteerd","zvkx08","a640","","TY3V01","Euro's",null,"N","",1]
[null,null,null,null,"zvkx08_c__TY0V01","*=Kostenverzamelstaat!$I$75"]
[null,null,null,null,"zvkx08_a__TY0V01","*=Kostenverzamelstaat!$J$75"]
[null,null,null,null,"zvkx08_c__TY1V01","*=Kostenverzamelstaat!$K$75"]
[null,null,null,null,"zvkx08_a__TY1V01","*=Kostenverzamelstaat!$L$75"]
[null,null,null,null,"zvkx08_c__TY2V01","*=Kostenverzamelstaat!$M$75"]
[null,null,null,null,"zvkx08_a__TY2V01","*=Kostenverzamelstaat!$N$75"]
[null,null,null,null,"zvkx08_a__TY3V01","*=Kostenverzamelstaat!$O$75"]
[null,null,null,null,"zvkx09_c650__TY0V01","*=Kostenverzamelstaat!$I$77","","Ziekenvervoer- ambulance/helicopter- incl balans","zvkx09","c650","","TY0V01","Euro's",null,"N","",1]
[null,null,null,null,"zvkx09_a650__TY0V01","*=Kostenverzamelstaat!$J$77","","Ziekenvervoer- ambulance/helicopter- geaccepteerd","zvkx09","a650","","TY0V01","Euro's",null,"N","",1]
[null,null,null,null,"zvkx09_c650__TY1V01","*=Kostenverzamelstaat!$K$77","","Ziekenvervoer- ambulance/helicopter- incl balans","zvkx09","c650","","TY1V01","Euro's",null,"N","",1]
[null,null,null,null,"zvkx09_a650__TY1V01","*=Kostenverzamelstaat!$L$77","","Ziekenvervoer- ambulance/helicopter- geaccepteerd","zvkx09","a650","","TY1V01","Euro's",null,"N","",1]
[null,null,null,null,"zvkx09_c650__TY2V01","*=Kostenverzamelstaat!$M$77","","Ziekenvervoer- ambulance/helicopter- incl balans","zvkx09","c650","","TY2V01","Euro's",null,"N","",1]
[null,null,null,null,"zvkx09_a650__TY2V01","*=Kostenverzamelstaat!$N$77","","Ziekenvervoer- ambulance/helicopter- geaccepteerd","zvkx09","a650","","TY2V01","Euro's",null,"N","",1]
[null,null,null,null,"zvkx09_a650__TY3V01","*=Kostenverzamelstaat!$O$77","","Ziekenvervoer- ambulance/helicopter- geaccepteerd","zvkx09","a650","","TY3V01","Euro's",null,"N","",1]
[null,null,null,null,"zvkx09_c6501__TY0V01","*=Kostenverzamelstaat!$I$78","","Ziekenvervoer- regionale ambulance- incl balans","zvkx09","c6501","","TY0V01","Euro's",null,"N","",1]
[null,null,null,null,"zvkx09_a6501__TY0V01","*=Kostenverzamelstaat!$J$78","","Ziekenvervoer- regionale ambulance- geaccepteerd","zvkx09","a6501","","TY0V01","Euro's",null,"N","",1]
[null,null,null,null,"zvkx09_c6501__TY1V01","*=Kostenverzamelstaat!$K$78","","Ziekenvervoer- regionale ambulance- incl balans","zvkx09","c6501","","TY1V01","Euro's",null,"N","",1]
[null,null,null,null,"zvkx09_a6501__TY1V01","*=Kostenverzamelstaat!$L$78","","Ziekenvervoer- regionale ambulance- geaccepteerd","zvkx09","a6501","","TY1V01","Euro's",null,"N","",1]
[null,null,null,null,"zvkx09_c6501__TY2V01","*=Kostenverzamelstaat!$M$78","","Ziekenvervoer- regionale ambulance- incl balans","zvkx09","c6501","","TY2V01","Euro's",null,"N","",1]
[null,null,null,null,"zvkx09_a6501__TY2V01","*=Kostenverzamelstaat!$N$78","","Ziekenvervoer- regionale ambulance- geaccepteerd","zvkx09","a6501","","TY2V01","Euro's",null,"N","",1]
[null,null,null,null,"zvkx09_a6501__TY3V01","*=Kostenverzamelstaat!$O$78","","Ziekenvervoer- regionale ambulance- geaccepteerd","zvkx09","a6501","","TY3V01","Euro's",null,"N","",1]
[null,null,null,null,"zvkx09_c651__TY0V01","*=Kostenverzamelstaat!$I$79","","Ziekenvervoer- ov, taxi en eigen auto- incl balans","zvkx09","c651","","TY0V01","Euro's",null,"N","",1]
[null,null,null,null,"zvkx09_a651__TY0V01","*=Kostenverzamelstaat!$J$79","","Ziekenvervoer- ov, taxi en eigen auto- geaccepteerd","zvkx09","a651","","TY0V01","Euro's",null,"N","",1]
[null,null,null,null,"zvkx09_c651__TY1V01","*=Kostenverzamelstaat!$K$79","","Ziekenvervoer- ov, taxi en eigen auto- incl balans","zvkx09","c651","","TY1V01","Euro's",null,"N","",1]
[null,null,null,null,"zvkx09_a651__TY1V01","*=Kostenverzamelstaat!$L$79","","Ziekenvervoer- ov, taxi en eigen auto- geaccepteerd","zvkx09","a651","","TY1V01","Euro's",null,"N","",1]
[null,null,null,null,"zvkx09_c651__TY2V01","*=Kostenverzamelstaat!$M$79","","Ziekenvervoer- ov, taxi en eigen auto- incl balans","zvkx09","c651","","TY2V01","Euro's",null,"N","",1]
[null,null,null,null,"zvkx09_a651__TY2V01","*=Kostenverzamelstaat!$N$79","","Ziekenvervoer- ov, taxi en eigen auto- geaccepteerd","zvkx09","a651","","TY2V01","Euro's",null,"N","",1]
[null,null,null,null,"zvkx09_a651__TY3V01","*=Kostenverzamelstaat!$O$79","","Ziekenvervoer- ov, taxi en eigen auto- geaccepteerd","zvkx09","a651","","TY3V01","Euro's",null,"N","",1]
[null,null,null,null,"zvkx09_c__TY0V01","*=Kostenverzamelstaat!$I$80"]
[null,null,null,null,"zvkx09_a__TY0V01","*=Kostenverzamelstaat!$J$80"]
[null,null,null,null,"zvkx09_c__TY1V01","*=Kostenverzamelstaat!$K$80"]
[null,null,null,null,"zvkx09_a__TY1V01","*=Kostenverzamelstaat!$L$80"]
[null,null,null,null,"zvkx09_c__TY2V01","*=Kostenverzamelstaat!$M$80"]
[null,null,null,null,"zvkx09_a__TY2V01","*=Kostenverzamelstaat!$N$80"]
[null,null,null,null,"zvkx09_a__TY3V01","*=Kostenverzamelstaat!$O$80"]
[null,null,null,null,"zvkx10_c666__TY0V01","*=Kostenverzamelstaat!$I$95","","Geneeskundige GGZ- consulten GGZ- incl balans","zvkx10","c666","","TY0V01","Euro's",null,"N","",1]
[null,null,null,null,"zvkx10_a666__TY0V01","*=Kostenverzamelstaat!$J$95","","Geneeskundige GGZ- consulten GGZ- geaccepteerd","zvkx10","a666","","TY0V01","Euro's",null,"N","",1]
[null,null,null,null,"zvkx10_c666__TY1V01","*=Kostenverzamelstaat!$K$95","","Geneeskundige GGZ- consulten GGZ- incl balans","zvkx10","c666","","TY1V01","Euro's",null,"N","",1]
[null,null,null,null,"zvkx10_a666__TY1V01","*=Kostenverzamelstaat!$L$95","","Geneeskundige GGZ- consulten GGZ- geaccepteerd","zvkx10","a666","","TY1V01","Euro's",null,"N","",1]
[null,null,null,null,"zvkx10_c666__TY2V01","*=Kostenverzamelstaat!$M$95","","Geneeskundige GGZ- consulten GGZ- incl balans","zvkx10","c666","","TY2V01","Euro's",null,"N","",1]
[null,null,null,null,"zvkx10_a666__TY2V01","*=Kostenverzamelstaat!$N$95","","Geneeskundige GGZ- consulten GGZ- geaccepteerd","zvkx10","a666","","TY2V01","Euro's",null,"N","",1]
[null,null,null,null,"zvkx10_a666__TY3V01","*=Kostenverzamelstaat!$O$95","","Geneeskundige GGZ- consulten GGZ- geaccepteerd","zvkx10","a666","","TY3V01","Euro's",null,"N","",1]
[null,null,null,null,"zvkx10_c667__TY0V01","*=Kostenverzamelstaat!$I$96","","Geneeskundige GGZ- intramuraal verblijf GGZ- incl balans","zvkx10","c667","","TY0V01","Euro's",null,"N","",1]
[null,null,null,null,"zvkx10_a667__TY0V01","*=Kostenverzamelstaat!$J$96","","Geneeskundige GGZ- intramuraal verblijf GGZ- geaccepteerd","zvkx10","a667","","TY0V01","Euro's",null,"N","",1]
[null,null,null,null,"zvkx10_c667__TY1V01","*=Kostenverzamelstaat!$K$96","","Geneeskundige GGZ- intramuraal verblijf GGZ- incl balans","zvkx10","c667","","TY1V01","Euro's",null,"N","",1]
[null,null,null,null,"zvkx10_a667__TY1V01","*=Kostenverzamelstaat!$L$96","","Geneeskundige GGZ- intramuraal verblijf GGZ- geaccepteerd","zvkx10","a667","","TY1V01","Euro's",null,"N","",1]
[null,null,null,null,"zvkx10_c667__TY2V01","*=Kostenverzamelstaat!$M$96","","Geneeskundige GGZ- intramuraal verblijf GGZ- incl balans","zvkx10","c667","","TY2V01","Euro's",null,"N","",1]
[null,null,null,null,"zvkx10_a667__TY2V01","*=Kostenverzamelstaat!$N$96","","Geneeskundige GGZ- intramuraal verblijf GGZ- geaccepteerd","zvkx10","a667","","TY2V01","Euro's",null,"N","",1]
[null,null,null,null,"zvkx10_a667__TY3V01","*=Kostenverzamelstaat!$O$96","","Geneeskundige GGZ- intramuraal verblijf GGZ- geaccepteerd","zvkx10","a667","","TY3V01","Euro's",null,"N","",1]
[null,null,null,null,"zvkx10_c668__TY0V01","*=Kostenverzamelstaat!$I$97","","Geneeskundige GGZ- overige prestaties GGZ- incl balans","zvkx10","c668","","TY0V01","Euro's",null,"N","",1]
[null,null,null,null,"zvkx10_a668__TY0V01","*=Kostenverzamelstaat!$J$97","","Geneeskundige GGZ- overige prestaties GGZ- geaccepteerd","zvkx10","a668","","TY0V01","Euro's",null,"N","",1]
[null,null,null,null,"zvkx10_c668__TY1V01","*=Kostenverzamelstaat!$K$97","","Geneeskundige GGZ- overige prestaties GGZ- incl balans","zvkx10","c668","","TY1V01","Euro's",null,"N","",1]
[null,null,null,null,"zvkx10_a668__TY1V01","*=Kostenverzamelstaat!$L$97","","Geneeskundige GGZ- overige prestaties GGZ- geaccepteerd","zvkx10","a668","","TY1V01","Euro's",null,"N","",1]
[null,null,null,null,"zvkx10_c668__TY2V01","*=Kostenverzamelstaat!$M$97","","Geneeskundige GGZ- overige prestaties GGZ- incl balans","zvkx10","c668","","TY2V01","Euro's",null,"N","",1]
[null,null,null,null,"zvkx10_a668__TY2V01","*=Kostenverzamelstaat!$N$97","","Geneeskundige GGZ- overige prestaties GGZ- geaccepteerd","zvkx10","a668","","TY2V01","Euro's",null,"N","",1]
[null,null,null,null,"zvkx10_a668__TY3V01","*=Kostenverzamelstaat!$O$97","","Geneeskundige GGZ- overige prestaties GGZ- geaccepteerd","zvkx10","a668","","TY3V01","Euro's",null,"N","",1]
[null,null,null,null,"zvkx10_c__TY0V01","*=Kostenverzamelstaat!$I$98"]
[null,null,null,null,"zvkx10_a__TY0V01","*=Kostenverzamelstaat!$J$98"]
[null,null,null,null,"zvkx10_c__TY1V01","*=Kostenverzamelstaat!$K$98"]
[null,null,null,null,"zvkx10_a__TY1V01","*=Kostenverzamelstaat!$L$98"]
[null,null,null,null,"zvkx10_c__TY2V01","*=Kostenverzamelstaat!$M$98"]
[null,null,null,null,"zvkx10_a__TY2V01","*=Kostenverzamelstaat!$N$98"]
[null,null,null,null,"zvkx10_a__TY3V01","*=Kostenverzamelstaat!$O$98"]
[null,null,null,null,"zvkx11_c670__TY0V01","*=Kostenverzamelstaat!$I$100","","Geriatische revalidatiezorg- GRZ- incl balans","zvkx11","c670","","TY0V01","Euro's",null,"N","",1]
[null,null,null,null,"zvkx11_a670__TY0V01","*=Kostenverzamelstaat!$J$100","","Geriatische revalidatiezorg- GRZ- geaccepteerd","zvkx11","a670","","TY0V01","Euro's",null,"N","",1]
[null,null,null,null,"zvkx11_c670__TY1V01","*=Kostenverzamelstaat!$K$100","","Geriatische revalidatiezorg- GRZ- incl balans","zvkx11","c670","","TY1V01","Euro's",null,"N","",1]
[null,null,null,null,"zvkx11_a670__TY1V01","*=Kostenverzamelstaat!$L$100","","Geriatische revalidatiezorg- GRZ- geaccepteerd","zvkx11","a670","","TY1V01","Euro's",null,"N","",1]
[null,null,null,null,"zvkx11_c670__TY2V01","*=Kostenverzamelstaat!$M$100","","Geriatische revalidatiezorg- GRZ- incl balans","zvkx11","c670","","TY2V01","Euro's",null,"N","",1]
[null,null,null,null,"zvkx11_a670__TY2V01","*=Kostenverzamelstaat!$N$100","","Geriatische revalidatiezorg- GRZ- geaccepteerd","zvkx11","a670","","TY2V01","Euro's",null,"N","",1]
[null,null,null,null,"zvkx11_a670__TY3V01","*=Kostenverzamelstaat!$O$100","","Geriatische revalidatiezorg- GRZ- geaccepteerd","zvkx11","a670","","TY3V01","Euro's",null,"N","",1]
[null,null,null,null,"zvkx11_c671__TY0V01","*=Kostenverzamelstaat!$I$101","","Geriatische revalidatiezorg- Eerstelijnsverblijf- incl balans","zvkx11","c671","","TY0V01","Euro's",null,"N","",1]
[null,null,null,null,"zvkx11_a671__TY0V01","*=Kostenverzamelstaat!$J$101","","Geriatische revalidatiezorg- Eerstelijnsverblijf- geaccepteerd","zvkx11","a671","","TY0V01","Euro's",null,"N","",1]
[null,null,null,null,"zvkx11_c671__TY1V01","*=Kostenverzamelstaat!$K$101","","Geriatische revalidatiezorg- Eerstelijnsverblijf- incl balans","zvkx11","c671","","TY1V01","Euro's",null,"N","",1]
[null,null,null,null,"zvkx11_a671__TY1V01","*=Kostenverzamelstaat!$L$101","","Geriatische revalidatiezorg- Eerstelijnsverblijf- geaccepteerd","zvkx11","a671","","TY1V01","Euro's",null,"N","",1]
[null,null,null,null,"zvkx11_c671__TY2V01","*=Kostenverzamelstaat!$M$101","","Geriatische revalidatiezorg- Eerstelijnsverblijf- incl balans","zvkx11","c671","","TY2V01","Euro's",null,"N","",1]
[null,null,null,null,"zvkx11_a671__TY2V01","*=Kostenverzamelstaat!$N$101","","Geriatische revalidatiezorg- Eerstelijnsverblijf- geaccepteerd","zvkx11","a671","","TY2V01","Euro's",null,"N","",1]
[null,null,null,null,"zvkx11_a671__TY3V01","*=Kostenverzamelstaat!$O$101","","Geriatische revalidatiezorg- Eerstelijnsverblijf- geaccepteerd","zvkx11","a671","","TY3V01","Euro's",null,"N","",1]
[null,null,null,null,"zvkx11_c672__TY0V01","*=Kostenverzamelstaat!$I$102",null,"Geriatische revalidatiezorg- GZSP- incl balans","zvkx11","c672","","TY0V01","Euro's",null,"N","",1]
[null,null,null,null,"zvkx11_a672__TY0V01","*=Kostenverzamelstaat!$J$102",null,"Geriatische revalidatiezorg- GZSP- geaccepteerd","zvkx11","a672","","TY0V01","Euro's",null,"N","",1]
[null,null,null,null,"zvkx11_c672__TY1V01","*=Kostenverzamelstaat!$K$102",null,"Geriatische revalidatiezorg- GZSP- incl balans","zvkx11","c672","","TY1V01","Euro's",null,"N","",1]
[null,null,null,null,"zvkx11_a672__TY1V01","*=Kostenverzamelstaat!$L$102",null,"Geriatische revalidatiezorg- GZSP- geaccepteerd","zvkx11","a672","","TY1V01","Euro's",null,"N","",1]
[null,null,null,null,"zvkx11_c672__TY2V01","*=Kostenverzamelstaat!$M$102",null,"Geriatische revalidatiezorg- GZSP- incl balans","zvkx11","c672","","TY2V01","Euro's",null,"N","",1]
[null,null,null,null,"zvkx11_a672__TY2V01","*=Kostenverzamelstaat!$N$102",null,"Geriatische revalidatiezorg- GZSP- geaccepteerd","zvkx11","a672","","TY2V01","Euro's",null,"N","",1]
[null,null,null,null,"zvkx11_a672__TY3V01","*=Kostenverzamelstaat!$O$102",null,"Geriatische revalidatiezorg- GZSP- geaccepteerd","zvkx11","a672","","TY3V01","Euro's",null,"N","",1]
[null,null,null,null,"zvkx11_c__TY0V01","*=Kostenverzamelstaat!$I$103"]
[null,null,null,null,"zvkx11_a__TY0V01","*=Kostenverzamelstaat!$J$103"]
[null,null,null,null,"zvkx11_c__TY1V01","*=Kostenverzamelstaat!$K$103"]
[null,null,null,null,"zvkx11_a__TY1V01","*=Kostenverzamelstaat!$L$103"]
[null,null,null,null,"zvkx11_c__TY2V01","*=Kostenverzamelstaat!$M$103"]
[null,null,null,null,"zvkx11_a__TY2V01","*=Kostenverzamelstaat!$N$103"]
[null,null,null,null,"zvkx11_a__TY3V01","*=Kostenverzamelstaat!$O$103"]
[null,null,null,null,"zvkx12_c680__TY0V01","*=Kostenverzamelstaat!$I$105","","Kraamzorg-- incl balans","zvkx12","c680","","TY0V01","Euro's",null,"N","",1]
[null,null,null,null,"zvkx12_a680__TY0V01","*=Kostenverzamelstaat!$J$105","","Kraamzorg-- geaccepteerd","zvkx12","a680","","TY0V01","Euro's",null,"N","",1]
[null,null,null,null,"zvkx12_c680__TY1V01","*=Kostenverzamelstaat!$K$105","","Kraamzorg-- incl balans","zvkx12","c680","","TY1V01","Euro's",null,"N","",1]
[null,null,null,null,"zvkx12_a680__TY1V01","*=Kostenverzamelstaat!$L$105","","Kraamzorg-- geaccepteerd","zvkx12","a680","","TY1V01","Euro's",null,"N","",1]
[null,null,null,null,"zvkx12_c680__TY2V01","*=Kostenverzamelstaat!$M$105","","Kraamzorg-- incl balans","zvkx12","c680","","TY2V01","Euro's",null,"N","",1]
[null,null,null,null,"zvkx12_a680__TY2V01","*=Kostenverzamelstaat!$N$105","","Kraamzorg-- geaccepteerd","zvkx12","a680","","TY2V01","Euro's",null,"N","",1]
[null,null,null,null,"zvkx12_a680__TY3V01","*=Kostenverzamelstaat!$O$105","","Kraamzorg-- geaccepteerd","zvkx12","a680","","TY3V01","Euro's",null,"N","",1]
[null,null,null,null,"zvkx12_c__TY0V01","*=Kostenverzamelstaat!$I$106"]
[null,null,null,null,"zvkx12_a__TY0V01","*=Kostenverzamelstaat!$J$106"]
[null,null,null,null,"zvkx12_c__TY1V01","*=Kostenverzamelstaat!$K$106"]
[null,null,null,null,"zvkx12_a__TY1V01","*=Kostenverzamelstaat!$L$106"]
[null,null,null,null,"zvkx12_c__TY2V01","*=Kostenverzamelstaat!$M$106"]
[null,null,null,null,"zvkx12_a__TY2V01","*=Kostenverzamelstaat!$N$106"]
[null,null,null,null,"zvkx12_a__TY3V01","*=Kostenverzamelstaat!$O$106"]
[null,null,null,null,"zvkx13_c700__TY0V01","*=Kostenverzamelstaat!$I$108","","Overige kosten-- incl balans","zvkx13","c700","","TY0V01","Euro's",null,"N","",1]
[null,null,null,null,"zvkx13_a700__TY0V01","*=Kostenverzamelstaat!$J$108","","Overige kosten- geaccepteerd","zvkx13","a700","","TY0V01","Euro's",null,"N","",1]
[null,null,null,null,"zvkx13_c700__TY1V01","*=Kostenverzamelstaat!$K$108","","Overige kosten-- incl balans","zvkx13","c700","","TY1V01","Euro's",null,"N","",1]
[null,null,null,null,"zvkx13_a700__TY1V01","*=Kostenverzamelstaat!$L$108","","Overige kosten-- geaccepteerd","zvkx13","a700","","TY1V01","Euro's",null,"N","",1]
[null,null,null,null,"zvkx13_c700__TY2V01","*=Kostenverzamelstaat!$M$108","","Overige kosten-- incl balans","zvkx13","c700","","TY2V01","Euro's",null,"N","",1]
[null,null,null,null,"zvkx13_a700__TY2V01","*=Kostenverzamelstaat!$N$108","","Overige kosten-- geaccepteerd","zvkx13","a700","","TY2V01","Euro's",null,"N","",1]
[null,null,null,null,"zvkx13_a700__TY3V01","*=Kostenverzamelstaat!$O$108","","Overige kosten-- geaccepteerd","zvkx13","a700","","TY3V01","Euro's",null,"N","",1]
[null,null,null,null,"zvkx13_c701__TY0V01","*=Kostenverzamelstaat!$I$109","","Overige kosten- geneeskundige zorg- incl balans","zvkx13","c701","","TY0V01","Euro's",null,"N","",1]
[null,null,null,null,"zvkx13_a701__TY0V01","*=Kostenverzamelstaat!$J109","","Overige kosten- geneeskundige zorg- geaccepteerd","zvkx13","a701","","TY0V01","Euro's",null,"N","",1]
[null,null,null,null,"zvkx13_c701__TY1V01","*=Kostenverzamelstaat!$K$109","","Overige kosten- geneeskundige zorg- incl balans","zvkx13","c701","","TY1V01","Euro's",null,"N","",1]
[null,null,null,null,"zvkx13_a701__TY1V01","*=Kostenverzamelstaat!$L$109","","Overige kosten- geneeskundige zorg- geaccepteerd","zvkx13","a701","","TY1V01","Euro's",null,"N","",1]
[null,null,null,null,"zvkx13_c701__TY2V01","*=Kostenverzamelstaat!$M$109","","Overige kosten- geneeskundige zorg- incl balans","zvkx13","c701","","TY2V01","Euro's",null,"N","",1]
[null,null,null,null,"zvkx13_a701__TY2V01","*=Kostenverzamelstaat!$N$109","","Overige kosten- geneeskundige zorg- geaccepteerd","zvkx13","a701","","TY2V01","Euro's",null,"N","",1]
[null,null,null,null,"zvkx13_a701__TY3V01","*=Kostenverzamelstaat!$O$109","","Overige kosten- geneeskundige zorg- geaccepteerd","zvkx13","a701","","TY3V01","Euro's",null,"N","",1]
[null,null,null,null,"zvkx13_c702__TY1V01","*=Kostenverzamelstaat!$K$110","","Overige kosten- zintuiglijk gehandicapten- incl balans","zvkx13","c702","","TY1V01","Euro's",null,"N","",1]
[null,null,null,null,"zvkx13_a702__TY1V01","*=Kostenverzamelstaat!$L$110","","Overige kosten- zintuiglijk gehandicapten- geaccepteerd","zvkx13","a702","","TY1V01","Euro's",null,"N","",1]
[null,null,null,null,"zvkx13_c702__TY1V01","*=Kostenverzamelstaat!$K$110","","Overige kosten- zintuiglijk gehandicapten- incl balans","zvkx13","c702","","TY1V01","Euro's",null,"N","",1]
[null,null,null,null,"zvkx13_a702__TY1V01","*=Kostenverzamelstaat!$L$110","","Overige kosten- zintuiglijk gehandicapten- geaccepteerd","zvkx13","a702","","TY1V01","Euro's",null,"N","",1]
[null,null,null,null,"zvkx13_c702__TY2V01","*=Kostenverzamelstaat!$M$110","","Overige kosten- zintuiglijk gehandicapten- incl balans","zvkx13","c702","","TY2V01","Euro's",null,"N","",1]
[null,null,null,null,"zvkx13_a702__TY2V01","*=Kostenverzamelstaat!$O$110","","Overige kosten- zintuiglijk gehandicapten- geaccepteerd","zvkx13","a702","","TY2V01","Euro's",null,"N","",1]
[null,null,null,null,"zvkx13_a702__TY3V01","*=Kostenverzamelstaat!$O$110","","Overige kosten- zintuiglijk gehandicapten- geaccepteerd","zvkx13","a702","","TY3V01","Euro's",null,"N","",1]
[null,null,null,null,"zvkx13_c703__TY0V01","*=Kostenverzamelstaat!$I$111","","Overige kosten- Transformatiemiddelen IZA- incl balans","zvkx13","c703","","TY0V01","Euro's",null,"N","",1]
[null,null,null,null,"zvkx13_a703__TY0V01","*=Kostenverzamelstaat!$J$111","","Overige kosten- Transformatiemiddelen IZA- geaccepteerd","zvkx13","a703","","TY0V01","Euro's",null,"N","",1]
[null,null,null,null,"zvkx13_c703__TY1V01","*=Kostenverzamelstaat!$K$111","","Overige kosten- Transformatiemiddelen IZA- incl balans","zvkx13","c703","","TY1V01","Euro's",null,"N","",1]
[null,null,null,null,"zvkx13_a703__TY1V01","*=Kostenverzamelstaat!$L$111","","Overige kosten- Transformatiemiddelen IZA- geaccepteerd","zvkx13","a703","","TY1V01","Euro's",null,"N","",1]
[null,null,null,null,"zvkx13_c703__TY2V01","*=Kostenverzamelstaat!$M$111","","Overige kosten- Transformatiemiddelen IZA- incl balans","zvkx13","c703","","TY2V01","Euro's",null,"N","",1]
[null,null,null,null,"zvkx13_a703__TY2V01","*=Kostenverzamelstaat!$N$111","","Overige kosten- Transformatiemiddelen IZA- geaccepteerd","zvkx13","a703","","TY2V01","Euro's",null,"N","",1]
[null,null,null,null,"zvkx13_c__TY0V01","*=Kostenverzamelstaat!$I$112"]
[null,null,null,null,"zvkx13_a__TY0V01","*=Kostenverzamelstaat!$J$112"]
[null,null,null,null,"zvkx13_c__TY1V01","*=Kostenverzamelstaat!$K$112"]
[null,null,null,null,"zvkx13_a__TY1V01","*=Kostenverzamelstaat!$L$112"]
[null,null,null,null,"zvkx13_c__TY2V01","*=Kostenverzamelstaat!$M$112"]
[null,null,null,null,"zvkx13_a__TY2V01","*=Kostenverzamelstaat!$N$112"]
[null,null,null,null,"zvkx13_a__TY3V01","*=Kostenverzamelstaat!$O$112"]
[null,null,null,null,"zvkx15_c720__TY0V01","*=Kostenverzamelstaat!$I$114","","Grensoverschrijdende zorg- via verzekeraar- incl balans","zvkx15","c720","","TY0V01","Euro's",null,"N","",1]
[null,null,null,null,"zvkx15_a720__TY0V01","*=Kostenverzamelstaat!$J$114","","Grensoverschrijdende zorg- via verzekeraar- geaccepteerd","zvkx15","a720","","TY0V01","Euro's",null,"N","",1]
[null,null,null,null,"zvkx15_c720__TY1V01","*=Kostenverzamelstaat!$K$114","","Grensoverschrijdende zorg- via verzekeraar- incl balans","zvkx15","c720","","TY1V01","Euro's",null,"N","",1]
[null,null,null,null,"zvkx15_a720__TY1V01","*=Kostenverzamelstaat!$L$114","","Grensoverschrijdende zorg- via verzekeraar- geaccepteerd","zvkx15","a720","","TY1V01","Euro's",null,"N","",1]
[null,null,null,null,"zvkx15_c720__TY2V01","*=Kostenverzamelstaat!$M$114","","Grensoverschrijdende zorg- via verzekeraar- incl balans","zvkx15","c720","","TY2V01","Euro's",null,"N","",1]
[null,null,null,null,"zvkx15_a720__TY2V01","*=Kostenverzamelstaat!$N$114","","Grensoverschrijdende zorg- via verzekeraar- geaccepteerd","zvkx15","a720","","TY2V01","Euro's",null,"N","",1]
[null,null,null,null,"zvkx15_a720__TY3V01","*=Kostenverzamelstaat!$O$114","","Grensoverschrijdende zorg- via verzekeraar- geaccepteerd","zvkx15","a720","","TY3V01","Euro's",null,"N","",1]
[null,null,null,null,"zvkx15_c721__TY0V01","*=Kostenverzamelstaat!$I$115","","Grensoverschrijdende zorg- via verbindingsorgaan- incl balans","zvkx15","c721","","TY0V01","Euro's",null,"N","",1]
[null,null,null,null,"zvkx15_a721__TY0V01","*=Kostenverzamelstaat!$J$115","","Grensoverschrijdende zorg- via verbindingsorgaan- geaccepteerd","zvkx15","a721","","TY0V01","Euro's",null,"N","",1]
[null,null,null,null,"zvkx15_c721__TY1V01","*=Kostenverzamelstaat!$K$115","","Grensoverschrijdende zorg- via verbindingsorgaan- incl balans","zvkx15","c721","","TY1V01","Euro's",null,"N","",1]
[null,null,null,null,"zvkx15_a721__TY1V01","*=Kostenverzamelstaat!$L$115","","Grensoverschrijdende zorg- via verbindingsorgaan- geaccepteerd","zvkx15","a721","","TY1V01","Euro's",null,"N","",1]
[null,null,null,null,"zvkx15_c721__TY2V01","*=Kostenverzamelstaat!$M$115","","Grensoverschrijdende zorg- via verbindingsorgaan- incl balans","zvkx15","c721","","TY2V01","Euro's",null,"N","",1]
[null,null,null,null,"zvkx15_a721__TY2V01","*=Kostenverzamelstaat!$N$115","","Grensoverschrijdende zorg- via verbindingsorgaan- geaccepteerd","zvkx15","a721","","TY2V01","Euro's",null,"N","",1]
[null,null,null,null,"zvkx15_a721__TY3V01","*=Kostenverzamelstaat!$O$115","","Grensoverschrijdende zorg- via verbindingsorgaan- geaccepteerd","zvkx15","a721","","TY3V01","Euro's",null,"N","",1]
[null,null,null,null,"zvkx15_c__TY0V01","*=Kostenverzamelstaat!$I$116"]
[null,null,null,null,"zvkx15_a__TY0V01","*=Kostenverzamelstaat!$J$116"]
[null,null,null,null,"zvkx15_c__TY1V01","*=Kostenverzamelstaat!$K$116"]
[null,null,null,null,"zvkx15_a__TY1V01","*=Kostenverzamelstaat!$L$116"]
[null,null,null,null,"zvkx15_c__TY2V01","*=Kostenverzamelstaat!$M$116"]
[null,null,null,null,"zvkx15_a__TY2V01","*=Kostenverzamelstaat!$N$116"]
[null,null,null,null,"zvkx15_a__TY3V01","*=Kostenverzamelstaat!$O$116"]
[null,null,null,null,"zvkx16_c730__TY0V01","*=Kostenverzamelstaat!$I$118","","Kwaliteitsgelden-- incl balans","zvkx16","c730","","TY0V01","Euro's",null,"N","",1]
[null,null,null,null,"zvkx16_a730__TY0V01","*=Kostenverzamelstaat!$J$118","","Kwaliteitsgelden-- geaccepteerd","zvkx16","a730","","TY0V01","Euro's",null,"N","",1]
[null,null,null,null,"zvkx16_c730__TY1V01","*=Kostenverzamelstaat!$K$118","","Kwaliteitsgelden-- incl balans","zvkx16","c730","","TY1V01","Euro's",null,"N","",1]
[null,null,null,null,"zvkx16_a730__TY1V01","*=Kostenverzamelstaat!$L$118","","Kwaliteitsgelden-- geaccepteerd","zvkx16","a730","","TY1V01","Euro's",null,"N","",1]
[null,null,null,null,"zvkx16_c730__TY2V01","*=Kostenverzamelstaat!$M$118","","Kwaliteitsgelden-- incl balans","zvkx16","c730","","TY2V01","Euro's",null,"N","",1]
[null,null,null,null,"zvkx16_a730__TY2V01","*=Kostenverzamelstaat!$N$118","","Kwaliteitsgelden-- geaccepteerd","zvkx16","a730","","TY2V01","Euro's",null,"N","",1]
[null,null,null,null,"zvkx16_a730__TY3V01","*=Kostenverzamelstaat!$O$118","","Kwaliteitsgelden-- geaccepteerd","zvkx16","a730","","TY3V01","Euro's",null,"N","",1]
[null,null,null,null,"zvkx16_c__TY0V01","*=Kostenverzamelstaat!$I$119"]
[null,null,null,null,"zvkx16_a__TY0V01","*=Kostenverzamelstaat!$J$119"]
[null,null,null,null,"zvkx16_c__TY1V01","*=Kostenverzamelstaat!$K$119"]
[null,null,null,null,"zvkx16_a__TY1V01","*=Kostenverzamelstaat!$L$119"]
[null,null,null,null,"zvkx16_c__TY2V01","*=Kostenverzamelstaat!$M$119"]
[null,null,null,null,"zvkx16_a__TY2V01","*=Kostenverzamelstaat!$N$119"]
[null,null,null,null,"zvkx16_a__TY3V01","*=Kostenverzamelstaat!$O$119"]
[null,null,null,null,"zvkx_c__TY0V01","*=Kostenverzamelstaat!$I$120"]
[null,null,null,null,"zvkx_a__TY0V01","*=Kostenverzamelstaat!$J$120"]
[null,null,null,null,"zvkx_c__TY1V01","*=Kostenverzamelstaat!$K$120"]
[null,null,null,null,"zvkx_a__TY1V01","*=Kostenverzamelstaat!$L$120"]
[null,null,null,null,"zvkx_c__TY2V01","*=Kostenverzamelstaat!$M$120"]
[null,null,null,null,"zvkx_c__TY2V01","*=Kostenverzamelstaat!$N$120"]
[null,null,null,null,"zvkx_a__TY3V01","*=Kostenverzamelstaat!$O$120"]
[null,null,null,null,"zvkxdnb_c8901__TY0V01","*=Kostenverzamelstaat!$I$133","","Verschilposten DNB- Opbrengsten verhaal- incl balans","zvkxdnb","c8901","","TY0V01","Euro's",null,"N","",1]
[null,null,null,null,"zvkxdnb_a8901__TY0V01","*=Kostenverzamelstaat!$J$133","","Verschilposten DNB- Opbrengsten verhaal- geaccepteerd","zvkxdnb","a8901","","TY0V01","Euro's",null,"N","",1]
[null,null,null,null,"zvkxdnb_c8901__TY1V01","*=Kostenverzamelstaat!$K$133","","Verschilposten DNB- Opbrengsten verhaal- incl balans","zvkxdnb","c8901","","TY1V01","Euro's",null,"N","",1]
[null,null,null,null,"zvkxdnb_a8901__TY1V01","*=Kostenverzamelstaat!$L$133","","Verschilposten DNB- Opbrengsten verhaal- geaccepteerd","zvkxdnb","a8901","","TY1V01","Euro's",null,"N","",1]
[null,null,null,null,"zvkxdnb_c8901__TY2V01","*=Kostenverzamelstaat!$M$133","","Verschilposten DNB- Opbrengsten verhaal- incl balans","zvkxdnb","c8901","","TY2V01","Euro's",null,"N","",1]
[null,null,null,null,"zvkxdnb_a8901__TY2V01","*=Kostenverzamelstaat!$N$133","","Verschilposten DNB- Opbrengsten verhaal- geaccepteerd","zvkxdnb","a8901","","TY2V01","Euro's",null,"N","",1]
[null,null,null,null,"zvkxdnb_a8901__TY3V01","*=Kostenverzamelstaat!$O$133","","Verschilposten DNB- Opbrengsten verhaal- geaccepteerd","zvkxdnb","a8901","","TY3V01","Euro's",null,"N","",1]
[null,null,null,null,"zvkxdnb_c910__TY0V01","*=Kostenverzamelstaat!$I$134","","Verschilposten DNB- Schade tlv het vrijwillig eigen risico- incl balans","zvkxdnb","c910","","TY0V01","Euro's",null,"N","",1]
[null,null,null,null,"zvkxdnb_a910__TY0V01","*=Kostenverzamelstaat!$J$134","","Verschilposten DNB- Schade tlv het vrijwillig eigen risico- geaccepteerd","zvkxdnb","a910","","TY0V01","Euro's",null,"N","",1]
[null,null,null,null,"zvkxdnb_c910__TY1V01","*=Kostenverzamelstaat!$K$134","","Verschilposten DNB- Schade tlv het vrijwillig eigen risico- incl balans","zvkxdnb","c910","","TY1V01","Euro's",null,"N","",1]
[null,null,null,null,"zvkxdnb_a910__TY1V01","*=Kostenverzamelstaat!$L$134","","Verschilposten DNB- Schade tlv het vrijwillig eigen risico- geaccepteerd","zvkxdnb","a910","","TY1V01","Euro's",null,"N","",1]
[null,null,null,null,"zvkxdnb_c910__TY2V01","*=Kostenverzamelstaat!$M$134","","Verschilposten DNB- Schade tlv het vrijwillig eigen risico- incl balans","zvkxdnb","c910","","TY2V01","Euro's",null,"N","",1]
[null,null,null,null,"zvkxdnb_a910__TY2V01","*=Kostenverzamelstaat!$N$134","","Verschilposten DNB- Schade tlv het vrijwillig eigen risico- geaccepteerd","zvkxdnb","a910","","TY2V01","Euro's",null,"N","",1]
[null,null,null,null,"zvkxdnb_a910__TY3V01","*=Kostenverzamelstaat!$O$134","","Verschilposten DNB- Schade tlv het vrijwillig eigen risico- geaccepteerd","zvkxdnb","a910","","TY3V01","Euro's",null,"N","",1]
[null,null,null,null,"zvkxdnb_c915__TY0V01","*=Kostenverzamelstaat!$I$135","","Verschilposten DNB- Schade tlv het verplicht eigen risico- incl balans","zvkxdnb","c915","","TY0V01","Euro's",null,"N","",1]
[null,null,null,null,"zvkxdnb_a915__TY0V01","*=Kostenverzamelstaat!$J$135","","Verschilposten DNB- Schade tlv het verplicht eigen risico- geaccepteerd","zvkxdnb","a915","","TY0V01","Euro's",null,"N","",1]
[null,null,null,null,"zvkxdnb_c915__TY1V01","*=Kostenverzamelstaat!$K$135","","Verschilposten DNB- Schade tlv het verplicht eigen risico- incl balans","zvkxdnb","c915","","TY1V01","Euro's",null,"N","",1]
[null,null,null,null,"zvkxdnb_a915__TY1V01","*=Kostenverzamelstaat!$L$135","","Verschilposten DNB- Schade tlv het verplicht eigen risico- geaccepteerd","zvkxdnb","a915","","TY1V01","Euro's",null,"N","",1]
[null,null,null,null,"zvkxdnb_c915__TY2V01","*=Kostenverzamelstaat!$M$135","","Verschilposten DNB- Schade tlv het verplicht eigen risico- incl balans","zvkxdnb","c915","","TY2V01","Euro's",null,"N","",1]
[null,null,null,null,"zvkxdnb_a915__TY2V01","*=Kostenverzamelstaat!$N$135","","Verschilposten DNB- Schade tlv het verplicht eigen risico- geaccepteerd","zvkxdnb","a915","","TY2V01","Euro's",null,"N","",1]
[null,null,null,null,"zvkxdnb_a915__TY3V01","*=Kostenverzamelstaat!$O$135","","Verschilposten DNB- Schade tlv het verplicht eigen risico- geaccepteerd","zvkxdnb","a915","","TY3V01","Euro's",null,"N","",1]
[null,null,null,null,"zvkxdnb_c940__TY0V01","*=Kostenverzamelstaat!$I$136","","Verschilposten DNB- Netto Premieopbrengsten- incl balans","zvkxdnb","c940","","TY0V01","Euro's",null,"N","",1]
[null,null,null,null,"zvkxdnb_a940__TY0V01","*=Kostenverzamelstaat!$J$136","","Verschilposten DNB- Netto Premieopbrengsten- geaccepteerd","zvkxdnb","a940","","TY0V01","Euro's",null,"N","",1]
[null,null,null,null,"zvkxdnb_c940__TY1V01","*=Kostenverzamelstaat!$K$136","","Verschilposten DNB- Netto Premieopbrengsten- incl balans","zvkxdnb","c940","","TY1V01","Euro's",null,"N","",1]
[null,null,null,null,"zvkxdnb_a940__TY1V01","*=Kostenverzamelstaat!$L$136","","Verschilposten DNB- Netto Premieopbrengsten- geaccepteerd","zvkxdnb","a940","","TY1V01","Euro's",null,"N","",1]
[null,null,null,null,"zvkxdnb_c940__TY2V01","*=Kostenverzamelstaat!$M$136","","Verschilposten DNB- Netto Premieopbrengsten- incl balans","zvkxdnb","c940","","TY2V01","Euro's",null,"N","",1]
[null,null,null,null,"zvkxdnb_a940__TY2V01","*=Kostenverzamelstaat!$N$136","","Verschilposten DNB- Netto Premieopbrengsten- geaccepteerd","zvkxdnb","a940","","TY2V01","Euro's",null,"N","",1]
[null,null,null,null,"zvkxdnb_a940__TY3V01","*=Kostenverzamelstaat!$O$136","","Verschilposten DNB- Netto Premieopbrengsten- geaccepteerd","zvkxdnb","a940","","TY3V01","Euro's",null,"N","",1]
[null,null,null,null,"zvrxsg_c978_dl101_TY0V01","*='Specifieke informatie A'!$K$14","","Kosten naar deelbijdrage- Variabele zorgkosten- incl balans","zvrxsg","c978","dl101","TY0V01"]
[null,null,null,null,"zvrxsg_c978_dl102_TY0V01","*='Specifieke informatie A'!$K$15","","Kosten naar deelbijdrage- Vaste zorgkosten- incl balans","zvrxsg","c978","dl102","TY0V01"]
[null,null,null,null,"zvrxsg_c978_dl152_TY0V01","*='Specifieke informatie A'!$K$16","","Kosten naar deelbijdrage- Geneeskundige GGZ- incl balans","zvrxsg","c978","dl152","TY0V01"]
[null,null,null,null,"zvpxlft_m981_lft01a_m04V01","*='Specifieke informatie A'!$I$59","","Verzekerden risicoklasse- 00 t/m 01- man","zvpxlft","m981","lft01a","m04V01","Verzekerden",null,"N",""]
[null,null,null,null,"zvpxlft_m981_lft01b_m04V01","*='Specifieke informatie A'!$I$60","","Verzekerden risicoklasse- 02 t/m 04- man","zvpxlft","m981","lft01b","m04V01","Verzekerden",null,"N",""]
[null,null,null,null,"zvpxlft_m981_lft02_m04V01","*='Specifieke informatie A'!$I$61","","Verzekerden risicoklasse- 05 t/m 09- man","zvpxlft","m981","lft02","m04V01","Verzekerden",null,"N",""]
[null,null,null,null,"zvpxlft_m981_lft03_m04V01","*='Specifieke informatie A'!$I$62","","Verzekerden risicoklasse- 10 t/m 14- man","zvpxlft","m981","lft03","m04V01","Verzekerden",null,"N",""]
[null,null,null,null,"zvpxlft_m981_lft04_m04V01","*='Specifieke informatie A'!$I$63","","Verzekerden risicoklasse- 15 t/m 19- man","zvpxlft","m981","lft04","m04V01","Verzekerden",null,"N",""]
[null,null,null,null,"zvpxlft_m981_lft05_m04V01","*='Specifieke informatie A'!$I$64","","Verzekerden risicoklasse- 20 t/m 24- man","zvpxlft","m981","lft05","m04V01","Verzekerden",null,"N",""]
[null,null,null,null,"zvpxlft_m981_lft06_m04V01","*='Specifieke informatie A'!$I$65","","Verzekerden risicoklasse- 25 t/m 29- man","zvpxlft","m981","lft06","m04V01","Verzekerden",null,"N",""]
[null,null,null,null,"zvpxlft_m981_lft07_m04V01","*='Specifieke informatie A'!$I$66","","Verzekerden risicoklasse- 30 t/m 34- man","zvpxlft","m981","lft07","m04V01","Verzekerden",null,"N",""]
[null,null,null,null,"zvpxlft_m981_lft08_m04V01","*='Specifieke informatie A'!$I$67","","Verzekerden risicoklasse- 35 t/m 39- man","zvpxlft","m981","lft08","m04V01","Verzekerden",null,"N",""]
[null,null,null,null,"zvpxlft_m981_lft09_m04V01","*='Specifieke informatie A'!$I$68","","Verzekerden risicoklasse- 40 t/m 44- man","zvpxlft","m981","lft09","m04V01","Verzekerden",null,"N",""]
[null,null,null,null,"zvpxlft_m981_lft10_m04V01","*='Specifieke informatie A'!$I$69","","Verzekerden risicoklasse- 45 t/m 49- man","zvpxlft","m981","lft10","m04V01","Verzekerden",null,"N",""]
[null,null,null,null,"zvpxlft_m981_lft11_m04V01","*='Specifieke informatie A'!$I$70","","Verzekerden risicoklasse- 50 t/m 54- man","zvpxlft","m981","lft11","m04V01","Verzekerden",null,"N",""]
[null,null,null,null,"zvpxlft_m981_lft12_m04V01","*='Specifieke informatie A'!$I$71","","Verzekerden risicoklasse- 55 t/m 59- man","zvpxlft","m981","lft12","m04V01","Verzekerden",null,"N",""]
[null,null,null,null,"zvpxlft_m981_lft13_m04V01","*='Specifieke informatie A'!$I$72","","Verzekerden risicoklasse- 60 t/m 64- man","zvpxlft","m981","lft13","m04V01","Verzekerden",null,"N",""]
[null,null,null,null,"zvpxlft_m981_lft14_m04V01","*='Specifieke informatie A'!$I$73","","Verzekerden risicoklasse- 65 t/m 69- man","zvpxlft","m981","lft14","m04V01","Verzekerden",null,"N",""]
[null,null,null,null,"zvpxlft_m981_lft15_m04V01","*='Specifieke informatie A'!$I$74","","Verzekerden risicoklasse- 70 t/m 74- man","zvpxlft","m981","lft15","m04V01","Verzekerden",null,"N",""]
[null,null,null,null,"zvpxlft_m981_lft16_m04V01","*='Specifieke informatie A'!$I$75","","Verzekerden risicoklasse- 75 t/m 79- man","zvpxlft","m981","lft16","m04V01","Verzekerden",null,"N",""]
[null,null,null,null,"zvpxlft_m981_lft17_m04V01","*='Specifieke informatie A'!$I$76","","Verzekerden risicoklasse- 80 t/m 84- man","zvpxlft","m981","lft17","m04V01","Verzekerden",null,"N",""]
[null,null,null,null,"zvpxlft_m981_lft18_m04V01","*='Specifieke informatie A'!$I$77","","Verzekerden risicoklasse- 85 t/m 89- man","zvpxlft","m981","lft18","m04V01","Verzekerden",null,"N",""]
[null,null,null,null,"zvpxlft_m981_lft19_m04V01","*='Specifieke informatie A'!$I$78","","Verzekerden risicoklasse- 90 en ouder- man","zvpxlft","m981","lft19","m04V01","Verzekerden",null,"N",""]
[null,null,null,null,"zvpxlft_v981_lft01a_m04V01","*='Specifieke informatie A'!$J$59","","Verzekerden risicoklasse- 00 t/m 01- vrouw","zvpxlft","v981","lft01a","m04V01","Verzekerden",null,"N",""]
[null,null,null,null,"zvpxlft_v981_lft01b_m04V01","*='Specifieke informatie A'!$J$60","","Verzekerden risicoklasse- 02 t/m 04- vrouw","zvpxlft","v981","lft01b","m04V01","Verzekerden",null,"N",""]
[null,null,null,null,"zvpxlft_v981_lft02_m04V01","*='Specifieke informatie A'!$J$61","","Verzekerden risicoklasse- 05 t/m 09- vrouw","zvpxlft","v981","lft02","m04V01","Verzekerden",null,"N",""]
[null,null,null,null,"zvpxlft_v981_lft03_m04V01","*='Specifieke informatie A'!$J$62","","Verzekerden risicoklasse- 10 t/m 14- vrouw","zvpxlft","v981","lft03","m04V01","Verzekerden",null,"N",""]
[null,null,null,null,"zvpxlft_v981_lft04_m04V01","*='Specifieke informatie A'!$J$63","","Verzekerden risicoklasse- 15 t/m 19- vrouw","zvpxlft","v981","lft04","m04V01","Verzekerden",null,"N",""]
[null,null,null,null,"zvpxlft_v981_lft05_m04V01","*='Specifieke informatie A'!$J$64","","Verzekerden risicoklasse- 20 t/m 24- vrouw","zvpxlft","v981","lft05","m04V01","Verzekerden",null,"N",""]
[null,null,null,null,"zvpxlft_v981_lft06_m04V01","*='Specifieke informatie A'!$J$65","","Verzekerden risicoklasse- 25 t/m 29- vrouw","zvpxlft","v981","lft06","m04V01","Verzekerden",null,"N",""]
[null,null,null,null,"zvpxlft_v981_lft07_m04V01","*='Specifieke informatie A'!$J$66","","Verzekerden risicoklasse- 30 t/m 34- vrouw","zvpxlft","v981","lft07","m04V01","Verzekerden",null,"N",""]
[null,null,null,null,"zvpxlft_v981_lft08_m04V01","*='Specifieke informatie A'!$J$67","","Verzekerden risicoklasse- 35 t/m 39- vrouw","zvpxlft","v981","lft08","m04V01","Verzekerden",null,"N",""]
[null,null,null,null,"zvpxlft_v981_lft09_m04V01","*='Specifieke informatie A'!$J$68","","Verzekerden risicoklasse- 40 t/m 44- vrouw","zvpxlft","v981","lft09","m04V01","Verzekerden",null,"N",""]
[null,null,null,null,"zvpxlft_v981_lft10_m04V01","*='Specifieke informatie A'!$J$69","","Verzekerden risicoklasse- 45 t/m 49- vrouw","zvpxlft","v981","lft10","m04V01","Verzekerden",null,"N",""]
[null,null,null,null,"zvpxlft_v981_lft11_m04V01","*='Specifieke informatie A'!$J$70","","Verzekerden risicoklasse- 50 t/m 54- vrouw","zvpxlft","v981","lft11","m04V01","Verzekerden",null,"N",""]
[null,null,null,null,"zvpxlft_v981_lft12_m04V01","*='Specifieke informatie A'!$J$71","","Verzekerden risicoklasse- 55 t/m 59- vrouw","zvpxlft","v981","lft12","m04V01","Verzekerden",null,"N",""]
[null,null,null,null,"zvpxlft_v981_lft13_m04V01","*='Specifieke informatie A'!$J$72","","Verzekerden risicoklasse- 60 t/m 64- vrouw","zvpxlft","v981","lft13","m04V01","Verzekerden",null,"N",""]
[null,null,null,null,"zvpxlft_v981_lft14_m04V01","*='Specifieke informatie A'!$J$73","","Verzekerden risicoklasse- 65 t/m 69- vrouw","zvpxlft","v981","lft14","m04V01","Verzekerden",null,"N",""]
[null,null,null,null,"zvpxlft_v981_lft15_m04V01","*='Specifieke informatie A'!$J$74","","Verzekerden risicoklasse- 70 t/m 74- vrouw","zvpxlft","v981","lft15","m04V01","Verzekerden",null,"N",""]
[null,null,null,null,"zvpxlft_v981_lft16_m04V01","*='Specifieke informatie A'!$J$75","","Verzekerden risicoklasse- 75 t/m 79- vrouw","zvpxlft","v981","lft16","m04V01","Verzekerden",null,"N",""]
[null,null,null,null,"zvpxlft_v981_lft17_m04V01","*='Specifieke informatie A'!$J$76","","Verzekerden risicoklasse- 80 t/m 84- vrouw","zvpxlft","v981","lft17","m04V01","Verzekerden",null,"N",""]
[null,null,null,null,"zvpxlft_v981_lft18_m04V01","*='Specifieke informatie A'!$J$77","","Verzekerden risicoklasse- 85 t/m 89- vrouw","zvpxlft","v981","lft18","m04V01","Verzekerden",null,"N",""]
[null,null,null,null,"zvpxlft_v981_lft19_m04V01","*='Specifieke informatie A'!$J$78","","Verzekerden risicoklasse- 90 en ouder- vrouw","zvpxlft","v981","lft19","m04V01","Verzekerden",null,"N",""]
[null,null,null,null,"zvpxlft_o981_lft01a_m04V01","*='Specifieke informatie A'!$K$59","","Verzekerden risicoklasse- 00 t/m 01- onbepaald","zvpxlft","o981","lft01a","m04V01","Verzekerden",null,"N",""]
[null,null,null,null,"zvpxlft_o981_lft01b_m04V01","*='Specifieke informatie A'!$K$60","","Verzekerden risicoklasse- 02 t/m 04- onbepaald","zvpxlft","o981","lft01b","m04V01","Verzekerden",null,"N",""]
[null,null,null,null,"zvpxlft_o981_lft02_m04V01","*='Specifieke informatie A'!$K$61","","Verzekerden risicoklasse- 05 t/m 09- onbepaald","zvpxlft","o981","lft02","m04V01","Verzekerden",null,"N",""]
[null,null,null,null,"zvpxlft_o981_lft03_m04V01","*='Specifieke informatie A'!$K$62","","Verzekerden risicoklasse- 10 t/m 14- onbepaald","zvpxlft","o981","lft03","m04V01","Verzekerden",null,"N",""]
[null,null,null,null,"zvpxlft_o981_lft04_m04V01","*='Specifieke informatie A'!$K$63","","Verzekerden risicoklasse- 15 t/m 19- onbepaald","zvpxlft","o981","lft04","m04V01","Verzekerden",null,"N",""]
[null,null,null,null,"zvpxlft_o981_lft05_m04V01","*='Specifieke informatie A'!$K$64","","Verzekerden risicoklasse- 20 t/m 24- onbepaald","zvpxlft","o981","lft05","m04V01","Verzekerden",null,"N",""]
[null,null,null,null,"zvpxlft_o981_lft06_m04V01","*='Specifieke informatie A'!$K$65","","Verzekerden risicoklasse- 25 t/m 29- onbepaald","zvpxlft","o981","lft06","m04V01","Verzekerden",null,"N",""]
[null,null,null,null,"zvpxlft_o981_lft07_m04V01","*='Specifieke informatie A'!$K$66","","Verzekerden risicoklasse- 30 t/m 34- onbepaald","zvpxlft","o981","lft07","m04V01","Verzekerden",null,"N",""]
[null,null,null,null,"zvpxlft_o981_lft08_m04V01","*='Specifieke informatie A'!$K$67","","Verzekerden risicoklasse- 35 t/m 39- onbepaald","zvpxlft","o981","lft08","m04V01","Verzekerden",null,"N",""]
[null,null,null,null,"zvpxlft_o981_lft09_m04V01","*='Specifieke informatie A'!$K$68","","Verzekerden risicoklasse- 40 t/m 44- onbepaald","zvpxlft","o981","lft09","m04V01","Verzekerden",null,"N",""]
[null,null,null,null,"zvpxlft_o981_lft10_m04V01","*='Specifieke informatie A'!$K$69","","Verzekerden risicoklasse- 45 t/m 49- onbepaald","zvpxlft","o981","lft10","m04V01","Verzekerden",null,"N",""]
[null,null,null,null,"zvpxlft_o981_lft11_m04V01","*='Specifieke informatie A'!$K$70","","Verzekerden risicoklasse- 50 t/m 54- onbepaald","zvpxlft","o981","lft11","m04V01","Verzekerden",null,"N",""]
[null,null,null,null,"zvpxlft_o981_lft12_m04V01","*='Specifieke informatie A'!$K$71","","Verzekerden risicoklasse- 55 t/m 59- onbepaald","zvpxlft","o981","lft12","m04V01","Verzekerden",null,"N",""]
[null,null,null,null,"zvpxlft_o981_lft13_m04V01","*='Specifieke informatie A'!$K$72","","Verzekerden risicoklasse- 60 t/m 64- onbepaald","zvpxlft","o981","lft13","m04V01","Verzekerden",null,"N",""]
[null,null,null,null,"zvpxlft_o981_lft14_m04V01","*='Specifieke informatie A'!$K$73","","Verzekerden risicoklasse- 65 t/m 69- onbepaald","zvpxlft","o981","lft14","m04V01","Verzekerden",null,"N",""]
[null,null,null,null,"zvpxlft_o981_lft15_m04V01","*='Specifieke informatie A'!$K$74","","Verzekerden risicoklasse- 70 t/m 74- onbepaald","zvpxlft","o981","lft15","m04V01","Verzekerden",null,"N",""]
[null,null,null,null,"zvpxlft_o981_lft16_m04V01","*='Specifieke informatie A'!$K$75","","Verzekerden risicoklasse- 75 t/m 79- onbepaald","zvpxlft","o981","lft16","m04V01","Verzekerden",null,"N",""]
[null,null,null,null,"zvpxlft_o981_lft17_m04V01","*='Specifieke informatie A'!$K$76","","Verzekerden risicoklasse- 80 t/m 84- onbepaald","zvpxlft","o981","lft17","m04V01","Verzekerden",null,"N",""]
[null,null,null,null,"zvpxlft_o981_lft18_m04V01","*='Specifieke informatie A'!$K$77","","Verzekerden risicoklasse- 85 t/m 89- onbepaald","zvpxlft","o981","lft18","m04V01","Verzekerden",null,"N",""]
[null,null,null,null,"zvpxlft_o981_lft19_m04V01","*='Specifieke informatie A'!$K$78","","Verzekerden risicoklasse- 90 en ouder- onbepaald","zvpxlft","o981","lft19","m04V01","Verzekerden",null,"N",""]
[null,null,null,null,"zvpxprm_s981_nomy_m04V01","*='Specifieke informatie A'!$L$84","","Verzekerden premiekenmerk- met nominale premie ZVW","zvpxprm","s981","nomy","m05V01","Verzekerden",null,"N",""]
[null,null,null,null,"zvpxprm_s981_nomn_m04V01","*='Specifieke informatie A'!$L$85","","Verzekerden premiekenmerk- zonder nominale premie ZVW","zvpxprm","s981","nomn","m05V01","Verzekerden",null,"N",""]
[null,null,null,null,"zvpxwnb_s982_d2m_m01V01","*=Wanbetalers!$I$12","","Wanbetalers- achterstand 2 of 3 maanden","zvpxwnb","s982","d2m","m01V01","Wanbetalers",null,"N",""]
[null,null,null,null,"zvpxwnb_s982_d2m_m02V01","*=Wanbetalers!$J$12","","Wanbetalers- achterstand 2 of 3 maanden","zvpxwnb","s982","d2m","m02V01","Wanbetalers",null,"N",""]
[null,null,null,null,"zvpxwnb_s982_d2m_m03V01","*=Wanbetalers!$K$12","","Wanbetalers- achterstand 2 of 3 maanden","zvpxwnb","s982","d2m","m03V01","Wanbetalers",null,"N",""]
[null,null,null,null,"zvpxwnb_s982_d4m_m01V01","*=Wanbetalers!$I$13","","Wanbetalers- achterstand 4 of 5 maanden","zvpxwnb","s982","d4m","m01V01","Wanbetalers",null,"N",""]
[null,null,null,null,"zvpxwnb_s982_d4m_m02V01","*=Wanbetalers!$J$13","","Wanbetalers- achterstand 4 of 5 maanden","zvpxwnb","s982","d4m","m02V01","Wanbetalers",null,"N",""]
[null,null,null,null,"zvpxwnb_s982_d4m_m03V01","*=Wanbetalers!$K$13","","Wanbetalers- achterstand 4 of 5 maanden","zvpxwnb","s982","d4m","m03V01","Wanbetalers",null,"N",""]
[null,null,null,null,"zvpxwnb_s982_d6m_m01V01","*=Wanbetalers!$I$14","","Wanbetalers- achterstand 6 of meer maanden","zvpxwnb","s982","d6m","m01V01","Wanbetalers",null,"N",""]
[null,null,null,null,"zvpxwnb_s982_d6m_m02V01","*=Wanbetalers!$J$14","","Wanbetalers- achterstand 6 of meer maanden","zvpxwnb","s982","d6m","m02V01","Wanbetalers",null,"N",""]
[null,null,null,null,"zvpxwnb_s982_d6m_m03V01","*=Wanbetalers!$K$14","","Wanbetalers- achterstand 6 of meer maanden","zvpxwnb","s982","d6m","m03V01","Wanbetalers",null,"N",""]
[null,null,null,null,"zvpxwnb_s982_dm2b_m01V01","*=Wanbetalers!$I$17","","Wanbetalers- tweedemaandsbrieven","zvpxwnb","s982","dm2b","m01V01","Wanbetalers",null,"N",""]
[null,null,null,null,"zvpxwnb_s982_dm2b_m02V01","*=Wanbetalers!$J$17","","Wanbetalers- tweedemaandsbrieven","zvpxwnb","s982","dm2b","m02V01","Wanbetalers",null,"N",""]
[null,null,null,null,"zvpxwnb_s982_dm2b_m03V01","*=Wanbetalers!$K$17","","Wanbetalers- tweedemaandsbrieven","zvpxwnb","s982","dm2b","m03V01","Wanbetalers",null,"N",""]
[null,null,null,null,"zvpxwnb_s982_dm4b_m01V01","*=Wanbetalers!$I$18","","Wanbetalers- vierdemaandsbrieven","zvpxwnb","s982","dm4b","m01V01","Wanbetalers",null,"N",""]
[null,null,null,null,"zvpxwnb_s982_dm4b_m02V01","*=Wanbetalers!$J$18","","Wanbetalers- vierdemaandsbrieven","zvpxwnb","s982","dm4b","m02V01","Wanbetalers",null,"N",""]
[null,null,null,null,"zvpxwnb_s982_dm4b_m03V01","*=Wanbetalers!$K$18","","Wanbetalers- vierdemaandsbrieven","zvpxwnb","s982","dm4b","m03V01","Wanbetalers",null,"N",""]
[null,null,null,null,"zvpxwnb_s982_dr0i_m01V01","*=Wanbetalers!$I$21","","Wanbetalers- interne betalingsregeling","zvpxwnb","s982","dr0i","m01V01","Wanbetalers",null,"N",""]
[null,null,null,null,"zvpxwnb_s982_dr0i_m02V01","*=Wanbetalers!$J$21","","Wanbetalers- interne betalingsregeling","zvpxwnb","s982","dr0i","m02V01","Wanbetalers",null,"N",""]
[null,null,null,null,"zvpxwnb_s982_dr0i_m03V01","*=Wanbetalers!$K$21","","Wanbetalers- interne betalingsregeling","zvpxwnb","s982","dr0i","m03V01","Wanbetalers",null,"N",""]
[null,null,null,null,"zvpxwnb_s982_dr0e_m01V01","*=Wanbetalers!$I$22","","Wanbetalers- externe betalingsregeling","zvpxwnb","s982","dr0e","m01V01","Wanbetalers",null,"N",""]
[null,null,null,null,"zvpxwnb_s982_dr0e_m02V01","*=Wanbetalers!$J$22","","Wanbetalers- externe betalingsregeling","zvpxwnb","s982","dr0e","m02V01","Wanbetalers",null,"N",""]
[null,null,null,null,"zvpxwnb_s982_dr0e_m03V01","*=Wanbetalers!$K$22","","Wanbetalers- externe betalingsregeling","zvpxwnb","s982","dr0e","m03V01","Wanbetalers",null,"N",""]
[null,null,null,null,"zvpxwnb_s982_dr0s_m01V01","*=Wanbetalers!$I$23","","Wanbetalers- stabilisatieovereenkomst","zvpxwnb","s982","dr0s","m01V01","Wanbetalers",null,"N",""]
[null,null,null,null,"zvpxwnb_s982_dr0s_m02V01","*=Wanbetalers!$J$23","","Wanbetalers- stabilisatieovereenkomst","zvpxwnb","s982","dr0s","m02V01","Wanbetalers",null,"N",""]
[null,null,null,null,"zvpxwnb_s982_dr0s_m03V01","*=Wanbetalers!$K$23","","Wanbetalers- stabilisatieovereenkomst","zvpxwnb","s982","dr0s","m03V01","Wanbetalers",null,"N",""]
[null,null,null,null,"zvpxwnb_s982_dr81_m01V01","*=Wanbetalers!$I$26","","Wanbetalers- cak bdr < 250","zvpxwnb","s982","dr81","m01V01","Wanbetalers",null,"N",""]
[null,null,null,null,"zvpxwnb_s982_dr81_m02V01","*=Wanbetalers!$J$26","","Wanbetalers- cak bdr < 250","zvpxwnb","s982","dr81","m02V01","Wanbetalers",null,"N",""]
[null,null,null,null,"zvpxwnb_s982_dr81_m03V01","*=Wanbetalers!$K$26","","Wanbetalers- cak bdr < 250","zvpxwnb","s982","dr81","m03V01","Wanbetalers",null,"N",""]
[null,null,null,null,"zvpxwnb_s982_dr82_m01V01","*=Wanbetalers!$I$27","","Wanbetalers- cak 250 < bdr < 750","zvpxwnb","s982","dr82","m01V01","Wanbetalers",null,"N",""]
[null,null,null,null,"zvpxwnb_s982_dr82_m02V01","*=Wanbetalers!$J$27","","Wanbetalers- cak 250 < bdr < 750","zvpxwnb","s982","dr82","m02V01","Wanbetalers",null,"N",""]
[null,null,null,null,"zvpxwnb_s982_dr82_m03V01","*=Wanbetalers!$K$27","","Wanbetalers- cak 250 < bdr < 750","zvpxwnb","s982","dr82","m03V01","Wanbetalers",null,"N",""]
[null,null,null,null,"zvpxwnb_s982_dr83_m01V01","*=Wanbetalers!$I$28","","Wanbetalers- cak 750 < bdr","zvpxwnb","s982","dr83","m01V01","Wanbetalers",null,"N",""]
[null,null,null,null,"zvpxwnb_s982_dr83_m02V01","*=Wanbetalers!$J$28","","Wanbetalers- cak 750 < bdr","zvpxwnb","s982","dr83","m02V01","Wanbetalers",null,"N",""]
[null,null,null,null,"zvpxwnb_s982_dr83_m03V01","*=Wanbetalers!$K$28","","Wanbetalers- cak 750 < bdr","zvpxwnb","s982","dr83","m03V01","Wanbetalers",null,"N",""]

{"sheet":"Parameters","index":12,"n_rows":33,"n_cols":7,"rows_kept":33,"cut":false,"hidden":true,"merged":[[1,4,1,5]]}
[]
[null,"Kwartaal:",2,null,"HASHTOTALEN"]
[null,"Jaar:",2025,null,"Alle waarden tabblad specifieke informatie A",{"$f":"ROUND(SUM(alle_cellen_info_a),0)","v":{"$error":"#REF!"}},"Opm: kolom I..L"]
[null,"Wet:","ZVW",null,"Alle waarden tabblad specifieke informatie B",{"$f":"ROUND(SUM(alle_cellen_info_c),0)","v":{"$error":"#REF!"}},"Opm: kolom I..L"]
[null,"Document:",{"$f":"CONCATENATE(\"KS\",jaar_id,wet_id,\".\",kwartaal_id)","v":"KS2025ZVW.2"},null,"Alle waarden tabbladen specifieke informatie A en C",{"$f":"SUM(F3:F4)","v":{"$error":"#REF!"}},"Opm: kolom I..L"]
[null,"Revisie:","A"]
[null,"Revisiedatum:","2024-10-02"]
[null,"Versie:",{"$f":"CONCATENATE(document_id,revisie_id)","v":"KS2025ZVW.2A"}]
[]
[]
[]
[null,"NUMMER_UO","NAAM_UO","FORMAT_UO1"]
[null,"0000","KIES UW UZOVI-NUMMER",{"$f":"CONCATENATE(B13,\" \",C13)","v":"0000 KIES UW UZOVI-NUMMER"}]
[null,"0101","UNIVÉ ZORG","0101 UNIVÉ ZORG"]
[null,"0104","CENTRALE ZORGVERZEKERINGEN NZV N.V.","0104 CENTRALE ZORGVERZEKERINGEN NZV N.V."]
[null,"0201","OHRA ZORGVERZEKERINGEN N.V.","0201 OHRA ZORGVERZEKERINGEN N.V."]
[null,"0403","ASR ","0403 ASR "]
[null,"0699","IZA","0699 IZA"]
[null,"0736","UMC","0736 UMC"]
[null,"3311","ZILVEREN KRUIS","3311 ZILVEREN KRUIS"]
[null,"3313","INTERPOLIS","3313 INTERPOLIS"]
[null,"3332","MENZIS","3332 MENZIS"]
[null,"3333","ANDERZORG","3333 ANDERZORG"]
[null,"3343","ONVZ",{"$f":"CONCATENATE(B24,\" \",C24)","v":"3343 ONVZ"}]
[null,"3347","SALLAND ZORGVERZEKERAAR N.V.",{"$f":"CONCATENATE(B25,\" \",C25)","v":"3347 SALLAND ZORGVERZEKERAAR N.V."}]
[null,"3351","FBTO",{"$f":"CONCATENATE(B26,\" \",C26)","v":"3351 FBTO"}]
[null,"3358","DE FRIESLAND",{"$f":"CONCATENATE(B27,\" \",C27)","v":"3358 DE FRIESLAND"}]
[null,"3359","EUCARE INSURANCE PCC LTD",{"$f":"CONCATENATE(B28,\" \",C28)","v":"3359 EUCARE INSURANCE PCC LTD"}]
[null,"7029","DSW","7029 DSW"]
[null,"7037","STAD HOLLAND",{"$f":"CONCATENATE(B30,\" \",C30)","v":"7037 STAD HOLLAND"}]
[null,"7085","ZORG EN ZEKERHEID","7085 ZORG EN ZEKERHEID"]
[null,"7095","VGZ ZORGVERZEKERAAR","7095 VGZ ZORGVERZEKERAAR"]
[null,"7119","CZ ZORGVERZEKERINGEN N.V.","7119 CZ ZORGVERZEKERINGEN N.V."]